{"text_format":"1","workbook":"xlsx","n_sheets":5,"sheets":["Pravidla","Výsledky","Knt","Seřazení Knt","Žebříček"],"not_rendered":{"charts":0,"images":0,"macros":1,"external_links":0,"defined_names":1,"comments":0,"pivot_tables":1},"unopened":[],"bounds":{"document_bytes":16777216,"sheet_cells":100000,"rows_first":2000,"rows_last":500,"rows_between":2000,"halvings":0,"cell_chars":16384,"cell_head_chars":4096},"cells_cut":0,"cells_raw":0,"read":"whole","date_system":"1900"}

{"sheet":"Pravidla","index":0,"n_rows":4,"n_cols":1,"rows_kept":4,"cut":false,"hidden":false,"merged":[]}
["O pořadí v žebříčku rozhoduje  :"]
["1. - počet bodů (1. m. = 3 b., 2. m. = 2 b., 3. m. = 1 b. + 1. za každý vyhraný zápas)"]
["2. - rozdíl vyhraných a prohraných zápasů"]
["3. - podíl vyhraných a prohraných zápasů"]

{"sheet":"Výsledky","index":1,"n_rows":500,"n_cols":13,"rows_kept":500,"cut":false,"hidden":false,"merged":[]}
["datum","příjmení","jméno","rok nar.","hm. kateg.","umístění","výhry","remíza","prohry","pom. b. +","pom. b. -","příjmení a jméno","body"]
["2014-02-01","Drastich","Vojtěch",2003,35,1,2,0,0,17,0,{"$f":"B2&\" \"&C2","v":"Drastich Vojtěch"},{"$f":"IF(ISBLANK(F2),\"\",IF(F2<4,CHOOSE(F2,3,2,1),0)+G2)","v":5}]
["2014-02-01","Škuta","Otakar",2002,35,3,0,0,2,0,20,{"$f":"B3&\" \"&C3","v":"Škuta Otakar"},{"$f":"IF(ISBLANK(F3),\"\",IF(F3<4,CHOOSE(F3,3,2,1),0)+G3)","v":1}]
["2014-02-01","Kantoš","David",2002,35,2,1,0,1,10,7,"Kantoš David",3]
["2014-02-01","Šabacká","Denisa",2003,38,3,1,0,2,10,30,"Šabacká Denisa",2]
["2014-02-01","Endt","David",2003,38,4,0,1,2,0,20,"Endt David",0]
["2014-02-01","Kuncová","Viktorie",2001,38,2,1,1,1,10,7,"Kuncová Viktorie",3]
["2014-02-01","Pražák","Tomáš",2002,38,1,3,0,0,27,0,"Pražák Tomáš",6]
["2014-02-01","Motyčka","Lukáš",2004,35,2,1,1,1,10,1,"Motyčka Lukáš",3]
["2014-02-01","Hořín","Matyáš",2004,35,4,1,0,2,10,20,"Hořín Matyáš",1]
["2014-02-01","Rudinský","Alex",2004,35,1,2,0,1,11,1,"Rudinský Alex",5]
["2014-02-01","Wanecki","Filip",2004,35,3,1,1,1,10,10,"Wanecki Filip",2]
["2014-02-01","Ryška","Václav",2004,32,4,1,0,3,7,27,"Ryška Václav",1]
["2014-02-01","Bedáčková","Denisa",2004,32,5,0,0,4,0,37,"Bedáčková Denisa",0]
["2014-02-01","Freiwald","Richard",2004,32,3,2,0,2,20,20,"Freiwald Richard",3]
["2014-02-01","Kolář","Daniel",2004,32,2,3,0,1,30,10,"Kolář Daniel",5]
["2014-02-01","Malaczynski","Filip",2003,32,1,4,0,0,27,0,"Malaczynski Filip",7]
["2014-02-01","Bartoň","Metoděj",2005,26,3,1,0,2,10,20,"Bartoň Metoděj",2]
["2014-02-01","Greé","Daniel",2007,26,4,0,0,3,0,30,"Greé Daniel",0]
["2014-02-01","Blažej","Daniel",2007,26,2,2,0,1,20,10,"Blažej Daniel",4]
["2014-02-01","Meixner","Michal",2006,26,1,3,0,0,30,0,"Meixner Michal",6]
["2014-02-01","Cagala","Šimon",2006,22,2,2,0,1,20,10,"Cagala Šimon",4]
["2014-02-01","Vaculík","Lukáš",2006,22,1,3,0,0,30,0,"Vaculík Lukáš",6]
["2014-02-01","Malaczynski","Alex",2008,22,4,0,0,3,0,30,"Malaczynski Alex",0]
["2014-02-01","Papavasilevský","Marek",2007,22,3,1,0,2,10,20,"Papavasilevský Marek",2]
["2014-02-01","Hroch ","Jakub",2005,37,4,0,0,3,0,30,"Hroch  Jakub",0]
["2014-02-01","Konvičný","Dominik",2006,37,1,3,0,0,30,10,"Konvičný Dominik",6]
["2014-02-01","Tobola","Alexandr",2005,37,3,1,0,2,10,15,"Tobola Alexandr",2]
["2014-02-01","Čerchla","Michal",2005,37,2,2,0,1,15,10,"Čerchla Michal",4]
["2014-02-01","Pařík","Teodor",2004,43,1,3,0,0,30,10,"Pařík Teodor",6]
["2014-02-01","Stryžovský","Sebastian",2003,43,2,2,0,1,20,10,"Stryžovský Sebastian",4]
["2014-02-01","Dej","František",2005,43,4,0,0,3,0,30,"Dej František",0]
["2014-02-01","Žárski","Adam",2004,43,3,1,0,2,10,20,"Žárski Adam",2]
["2014-02-01","Kožušník","Vojtěch",2006,27,1,3,0,1,30,7,"Kožušník Vojtěch",6]
["2014-02-01","Volný","Jakub",2007,27,3,2,0,2,15,20,"Volný Jakub",3]
["2014-02-01","Kolář","Vojtěch",2006,27,5,1,0,3,10,25,"Kolář Vojtěch",1]
["2014-02-01","Zach","Matyáš",2006,27,2,2,1,1,20,10,"Zach Matyáš",4]
["2014-02-01","Seibert","Marian",2007,27,4,1,1,2,7,20,"Seibert Marian",1]
["2014-02-01","Končítek","Kryštof",2006,26,3,1,0,2,5,15,"Končítek Kryštof",2]
["2014-02-01","Bortlíček","Adam",2005,26,1,2,1,0,20,0,"Bortlíček Adam",5]
["2014-02-01","Řeha","Daniel",2006,26,4,0,0,3,0,25,"Řeha Daniel",0]
["2014-02-01","Slavíček","Václav",2006,26,2,2,1,0,15,0,"Slavíček Václav",4]
["2014-02-01","Přibyl","Jan",2004,28,1,2,0,0,15,0,{"$f":"B43&\" \"&C43","v":"Přibyl Jan"},{"$f":"IF(ISBLANK(F43),\"\",IF(F43<4,CHOOSE(F43,3,2,1),0)+G43)","v":5}]
["2014-02-01","Miková","Nikola",2004,28,3,0,0,2,0,20,"Miková Nikola",1]
["2014-02-01","Jakubec","Lukáš",2004,28,2,1,0,1,10,5,"Jakubec Lukáš",3]
["2014-02-01","Přibyl","Jakub",2006,31,1,3,0,0,25,0,"Přibyl Jakub",6]
["2014-02-01","Huvar","Jakub",2006,31,3,1,0,2,10,20,"Huvar Jakub",2]
["2014-02-01","Macháček","Matyáš",2006,31,2,1,1,1,10,10,"Macháček Matyáš",3]
["2014-02-01","Diviš","Jiří",2006,31,4,0,1,2,0,15,"Diviš Jiří",0]
["2014-02-01","Škoda","Vojtěch",2003,57,2,1,0,1,10,10,"Škoda Vojtěch",3]
["2014-02-01","Huvar","Jan",2007,57,1,2,0,0,15,0,"Huvar Jan",5]
["2014-02-01","Dušenka","Michal",2002,57,3,0,0,2,0,15,"Dušenka Michal",1]
["2014-02-01","Čerchlová","Markéta",2003,65,3,0,0,2,0,20,"Čerchlová Markéta",1]
["2014-02-01","Obercian","Martin",2002,65,2,1,0,1,10,10,"Obercian Martin",3]
["2014-02-01","Vykydal","Tomáš",2000,65,1,2,0,0,20,0,"Vykydal Tomáš",5]
["2014-02-01","Baštinská","Adéla",2003,48,1,2,0,0,20,0,"Baštinská Adéla",5]
["2014-02-01","Ďurina","Lukáš",2003,48,3,0,0,2,0,10,"Ďurina Lukáš",1]
["2014-02-01","Frais","Jiří",2001,48,2,1,0,1,5,10,"Frais Jiří",3]
["2014-02-01","Kuželová","Dominika",2005,31,2,1,1,1,10,10,"Kuželová Dominika",3]
["2014-02-01","Košťálek","Václav",2005,31,1,3,0,0,30,10,"Košťálek Václav",6]
["2014-02-01","Válek","Prokop",2005,31,4,0,0,3,0,30,"Válek Prokop",0]
["2014-02-01","Novotný","Ladislav",2006,31,2,1,1,1,10,10,"Novotný Ladislav",3]
["2014-02-01","Košťálek","Vojtěch",2005,33,1,3,0,0,25,0,"Košťálek Vojtěch",6]
["2014-02-01","Holík","Denis",2005,33,3,1,0,2,10,20,"Holík Denis",2]
["2014-02-01","Baran","David",2007,33,4,0,0,3,0,30,"Baran David",0]
["2014-02-01","Papaj","Tobiáš",2006,33,2,2,0,1,20,5,"Papaj Tobiáš",4]
["2014-03-15","Papaj ","Tobiáš",2006,35,2,1,0,1,10,10,"Papaj  Tobiáš",3]
["2014-03-15","Košťálek","Vojtěch",2005,35,1,2,0,0,20,0,"Košťálek Vojtěch",5]
["2014-03-15","Holík","Denis",2006,35,3,0,0,2,0,20,"Holík Denis",1]
["2014-03-15","Hořín","Matyáš",2004,37,2,1,0,1,7,10,"Hořín Matyáš",3]
["2014-03-15","Motyčka","Lukáš",2004,37,1,2,0,0,20,0,"Motyčka Lukáš",5]
["2014-03-15","Wanecki","Filip",2004,37,3,0,0,2,0,20,"Wanecki Filip",1]
["2014-03-15","Přibyl","Jan",2004,29,1,1,1,0,10,0,"Přibyl Jan",4]
["2014-03-15","Kukelka ","Filip",2004,29,3,0,1,1,0,10,"Kukelka  Filip",1]
["2014-03-15","Mikendová","Tereza",2005,29,2,0,2,0,0,0,"Mikendová Tereza",2]
["2014-03-15","Seibert","Marian",2007,26,1,3,0,0,30,0,"Seibert Marian",6]
["2014-03-15","Martináková ","Stela",2007,26,2,1,1,1,10,10,"Martináková  Stela",3]
["2014-03-15","Blažej","Daniel",2007,26,4,0,0,3,0,27,"Blažej Daniel",0]
["2014-03-15","Greé","Daniel",2007,26,3,1,1,1,7,10,"Greé Daniel",2]
["2014-03-15","Bartoň","Metoděj",null,27,3,0,0,2,0,20,"Bartoň Metoděj",1]
["2014-03-15","Rajna","Alexandr",null,27,1,2,0,0,20,0,"Rajna Alexandr",5]
["2014-03-15","Bortlíček","Adam",null,27,2,1,0,1,10,10,"Bortlíček Adam",3]
["2014-03-15","Meixner","Michal",null,26,1,3,0,0,27,0,"Meixner Michal",6]
["2014-03-15","Rybář","Adam",null,26,3,1,0,2,10,20,"Rybář Adam",2]
["2014-03-15","Miková ","Nikola",null,26,2,2,0,1,20,7,"Miková  Nikola",4]
["2014-03-15","Řeha","Daniel",null,26,4,0,0,3,0,30,"Řeha Daniel",0]
["2014-03-15","Dej","František",null,45,5,0,0,4,0,40,"Dej František",0]
["2014-03-15","Žák","Pavel",null,45,1,4,0,0,37,0,"Žák Pavel",7]
["2014-03-15","Paloch","Martin",null,45,4,1,0,3,10,27,"Paloch Martin",1]
["2014-03-15","Turčínek","Tomáš",null,45,3,2,1,1,17,10,"Turčínek Tomáš",3]
["2014-03-15","Částečka","Filip",null,45,2,2,1,1,20,7,"Částečka Filip",4]
["2014-03-15","Čerchlová","Markéta",null,68,2,0,0,2,0,20,"Čerchlová Markéta",2]
["2014-03-15","Vykydal","Tomáš",null,68,1,2,0,0,20,0,"Vykydal Tomáš",5]
["2014-03-15","Škoda","Vojtěch",null,63,2,1,0,1,10,10,"Škoda Vojtěch",3]
["2014-03-15","Šlauka","Martin",null,63,1,2,0,0,20,0,"Šlauka Martin",5]
["2014-03-15","Obercian","Martin",null,63,3,0,0,2,0,20,"Obercian Martin",1]
["2014-03-15","Polák","Matyáš",null,34,1,2,0,0,20,0,"Polák Matyáš",5]
["2014-03-15","Michalík","Denis",null,34,2,0,1,1,0,10,"Michalík Denis",2]
["2014-03-15","Škuta","Otakar",null,34,2,0,1,1,0,10,"Škuta Otakar",2]
["2014-03-15","Volný","Jakub",null,29,3,1,0,2,5,17,"Volný Jakub",2]
["2014-03-15","Večeřa","Adam",null,29,4,0,1,2,0,15,"Večeřa Adam",0]
["2014-03-15","Marek","Šimon",null,29,2,1,2,0,7,0,"Marek Šimon",3]
["2014-03-15","Kožušník","Vojtěch",null,29,1,2,1,0,20,0,"Kožušník Vojtěch",5]
["2014-03-15","Válek","Prokop",null,30,5,0,0,4,0,40,"Válek Prokop",0]
["2014-03-15","Martináková ","Ema",null,30,4,1,0,3,10,30,"Martináková  Ema",1]
["2014-03-15","Kuželová","Dominika",null,30,3,2,0,2,20,20,"Kuželová Dominika",3]
["2014-03-15","Košťálek","Václav",null,30,1,4,0,0,40,0,{"$f":"B107&\" \"&C107","v":"Košťálek Václav"},{"$f":"IF(ISBLANK(F107),\"\",IF(F107<4,CHOOSE(F107,3,2,1),0)+G107)","v":7}]
["2014-03-15","Přibyl","Jakub",null,30,2,3,0,1,30,10,"Přibyl Jakub",5]
["2014-03-15","Kolář","Daniel",2004,34,3,1,0,2,10,15,"Kolář Daniel",2]
["2014-03-15","Freiwald","Richard",2004,34,2,2,0,1,20,7,"Freiwald Richard",4]
["2014-03-15","Klemens","Daniel",2004,34,4,0,0,3,0,30,"Klemens Daniel",0]
["2014-03-15","Zabek","Matyáš",2004,34,1,3,0,0,22,0,"Zabek Matyáš",6]
["2014-03-15","Neuwirt","Petr",null,23,5,0,0,4,0,31,"Neuwirt Petr",0]
["2014-03-15","Cagala","Šimon",null,23,3,3,0,1,21,10,"Cagala Šimon",4]
["2014-03-15","Gurbovič","Daniel",null,23,2,3,0,1,30,10,"Gurbovič Daniel",5]
["2014-03-15","Vaculík","Lukáš",null,23,1,3,0,1,30,10,"Vaculík Lukáš",6]
["2014-03-15","Kovalčík","Martin",null,23,4,1,0,3,10,30,"Kovalčík Martin",1]
["2014-03-15","Kuncová","Viktorie",null,39,1,3,0,0,30,0,"Kuncová Viktorie",6]
["2014-03-15","Endt","David",null,39,2,1,1,1,7,10,"Endt David",3]
["2014-03-15","Šlauka","David",null,39,2,1,1,1,7,10,"Šlauka David",3]
["2014-03-15","Machálek","Lukáš",null,39,3,0,0,3,0,24,"Machálek Lukáš",1]
["2014-03-15","Dušenka","Michal",null,52,3,0,0,2,0,15,"Dušenka Michal",1]
["2014-03-15","Mlčák","Jan",null,52,2,1,0,1,5,7,"Mlčák Jan",3]
["2014-03-15","Huvar","Jan",null,52,1,2,0,0,17,0,"Huvar Jan",5]
["2014-03-15","Kolář","Vojtěch",2006,26,2,2,0,1,17,10,"Kolář Vojtěch",4]
["2014-03-15","Končítek","Kryštof",2006,26,1,3,0,0,30,0,"Končítek Kryštof",6]
["2014-03-15","Berka","Ondřej",2006,26,3,1,0,2,10,20,"Berka Ondřej",2]
["2014-03-15","Nachtmann","Michael",2006,26,4,0,0,3,0,30,"Nachtmann Michael",0]
["2014-03-15","Hroch ","Jakub",2006,38,3,1,0,2,10,20,"Hroch  Jakub",2]
["2014-03-15","Pravda","Adam",2006,38,4,0,0,3,0,30,"Pravda Adam",0]
["2014-03-15","Konvičný","Dominik",2006,38,2,2,0,1,20,10,"Konvičný Dominik",4]
["2014-03-15","Čerchla","Michal",2006,38,1,3,0,0,30,10,"Čerchla Michal",6]
["2014-04-26","Vykydal","Tomáš",null,69,1,2,0,0,20,0,"Vykydal Tomáš",5]
["2014-04-26","Čerchlová","Markéta",null,69,3,0,0,2,0,20,"Čerchlová Markéta",1]
["2014-04-26","Škoda","Vojtěch",null,69,2,1,0,1,10,10,"Škoda Vojtěch",3]
["2014-04-26","Částečka","Filip",null,53,1,2,1,0,20,0,"Částečka Filip",5]
["2014-04-26","Žárski","Adam",null,53,2,1,0,2,10,20,"Žárski Adam",3]
["2014-04-26","Paloch","Martin",null,53,1,2,1,0,20,10,"Paloch Martin",5]
["2014-04-26","Šineider","Libor",null,53,3,0,0,3,0,30,"Šineider Libor",1]
["2014-04-26","Motyčka","Lukáš",null,42,3,1,0,2,10,15,"Motyčka Lukáš",2]
["2014-04-26","Dej","František",null,42,4,0,0,3,0,30,"Dej František",0]
["2014-04-26","Tomek","David",null,42,2,2,0,1,20,10,"Tomek David",4]
["2014-04-26","Čerchla","Michal",null,42,1,3,0,0,25,0,"Čerchla Michal",6]
["2014-04-26","Ďurina","Lukáš",null,56,2,0,1,1,0,10,"Ďurina Lukáš",2]
["2014-04-26","Veselý","Kryštof",null,56,2,0,1,1,0,10,"Veselý Kryštof",2]
["2014-04-26","Král","Miroslav",null,56,1,2,0,0,20,0,"Král Miroslav",5]
["2014-04-26","Papavasilevský","Marek",null,24,4,0,0,3,0,30,"Papavasilevský Marek",0]
["2014-04-26","Neuwirt","Petr",null,24,3,1,0,2,10,20,"Neuwirt Petr",2]
["2014-04-26","Cagala","Šimon",null,24,1,3,0,0,30,0,"Cagala Šimon",6]
["2014-04-26","Kovalčík","Martin",null,24,2,2,0,1,20,10,"Kovalčík Martin",4]
["2014-04-26","Mikendová","Tereza",null,32,1,2,1,0,20,0,"Mikendová Tereza",5]
["2014-04-26","Martináková ","Ema",null,32,4,0,1,2,0,20,"Martináková  Ema",0]
["2014-04-26","Šebesta","Jakub",null,32,2,0,3,0,0,0,"Šebesta Jakub",2]
["2014-04-26","Kuželová","Dominika",null,32,3,1,1,1,10,10,"Kuželová Dominika",2]
["2014-04-26","Škuta","Otakar",null,36,2,0,2,1,0,10,"Škuta Otakar",2]
["2014-04-26","Freiwald","Richard",null,36,2,0,2,1,0,10,"Freiwald Richard",2]
["2014-04-26","Konvičný","Dominik",null,36,1,3,0,0,30,0,"Konvičný Dominik",6]
["2014-04-26","Papaj","Tobiáš",null,36,3,0,1,2,0,20,"Papaj Tobiáš",1]
["2014-04-26","Greé","Daniel",null,28,4,0,1,2,0,20,"Greé Daniel",0]
["2014-04-26","Martináková ","Stela",null,28,2,1,2,0,10,0,"Martináková  Stela",3]
["2014-04-26","Seibert","Marian",null,28,1,2,1,0,20,0,"Seibert Marian",5]
["2014-04-26","Nachtmann","Michael",null,28,3,1,0,2,10,20,"Nachtmann Michael",2]
["2014-04-26","Caletka","Petr",null,35,4,0,0,3,0,30,"Caletka Petr",0]
["2014-04-26","Přibyl","Jakub",null,35,2,2,0,1,20,10,"Přibyl Jakub",4]
["2014-04-26","Kolář","Daniel",null,35,1,3,0,0,30,0,"Kolář Daniel",6]
["2014-04-26","Válek","Prokop",null,35,3,1,0,2,10,20,"Válek Prokop",2]
["2014-04-26","Pražák","Tomáš",null,40,2,1,0,1,10,10,"Pražák Tomáš",3]
["2014-04-26","Kubík","Martin",null,40,1,2,0,0,20,0,"Kubík Martin",5]
["2014-04-26","Nejtek","Martin",null,40,3,0,0,2,0,20,"Nejtek Martin",1]
["2014-04-26","Bortlíček","Adam",null,29,1,2,0,0,20,0,"Bortlíček Adam",5]
["2014-04-26","Caletka","Michal",null,29,3,0,0,2,0,20,{"$f":"B171&\" \"&C171","v":"Caletka Michal"},{"$f":"IF(ISBLANK(F171),\"\",IF(F171<4,CHOOSE(F171,3,2,1),0)+G171)","v":1}]
["2014-04-26","Zach","Matyáš",null,29,2,1,0,1,10,10,"Zach Matyáš",3]
["2014-04-26","Neckář","Matěj",null,38,1,3,0,0,30,10,"Neckář Matěj",6]
["2014-04-26","Hořín","Matyáš",null,38,2,2,0,1,20,10,"Hořín Matyáš",4]
["2014-04-26","Holík","Denis",null,38,3,1,0,2,10,20,"Holík Denis",2]
["2014-04-26","Koryčan","Michal",null,38,4,0,0,3,0,30,"Koryčan Michal",0]
["2014-04-26","Macháček","Matyáš",null,30,1,2,0,1,20,10,"Macháček Matyáš",5]
["2014-04-26","Řeha","Daniel",null,30,4,0,0,3,0,30,"Řeha Daniel",0]
["2014-04-26","Kolář","Vojtěch",null,30,1,2,0,1,20,10,"Kolář Vojtěch",5]
["2014-04-26","Bartoň","Metoděj",null,30,1,2,0,1,20,10,"Bartoň Metoděj",5]
["2014-04-26","Vidlička","Kristián",null,null,3,1,0,3,10,30,"Vidlička Kristián",2]
["2014-04-26","Matýsek","Jan",null,null,2,2,1,1,20,10,"Matýsek Jan",4]
["2014-04-26","Čebík","Filip",null,null,1,4,0,0,40,0,"Čebík Filip",7]
["2014-04-26","Miková","Nikola",null,null,5,0,0,4,0,40,"Miková Nikola",0]
["2014-04-26","Přibyl","Jan",null,null,2,2,1,1,20,10,"Přibyl Jan",4]
["2014-10-05","Nachtmannová","Radka",null,null,"4.",0,0,3,null,null,"Nachtmannová Radka",0]
["2014-10-05","Válek","Matěj",null,null,2,2,0,1,20,10,"Válek Matěj",4]
["2014-10-05","Gurbovič","Daniel",null,null,1,3,0,0,30,0,"Gurbovič Daniel",6]
["2014-10-05","Neuwirt","Petr",null,null,3,1,0,2,10,20,"Neuwirt Petr",2]
["2014-10-05","Válek","Prokop",null,null,3,1,0,2,10,20,"Válek Prokop",2]
["2014-10-05","Večeřa","Adam",null,null,4,0,0,3,0,30,"Večeřa Adam",0]
["2014-10-05","Přibyl","Jakub",null,null,2,2,0,1,20,10,"Přibyl Jakub",4]
["2014-10-05","Macháček","Matyáš",null,null,1,3,0,0,30,0,"Macháček Matyáš",6]
["2014-10-05","Neckář","Matěj",null,null,2,2,0,1,15,10,"Neckář Matěj",4]
["2014-10-05","Caletka","Petr",null,null,3,1,0,2,10,20,"Caletka Petr",2]
["2014-10-05","Konvičný","Dominik",null,null,1,3,0,0,30,0,"Konvičný Dominik",6]
["2014-10-05","Papaj","Tobiáš",null,null,4,0,0,3,0,25,"Papaj Tobiáš",0]
["2014-10-05","Jakšik","Daniel",null,null,2,2,0,1,15,0,"Jakšik Daniel",4]
["2014-10-05","Končítek","Kryštof",null,null,1,3,0,0,30,0,"Končítek Kryštof",6]
["2014-10-05","Nachtmann","Michael",null,null,3,1,0,2,7,20,"Nachtmann Michael",2]
["2014-10-05","Řeha","Daniel",null,null,4,0,0,3,0,30,"Řeha Daniel",0]
["2014-10-05","Přibyl","Jan",null,null,4,0,0,3,0,27,"Přibyl Jan",0]
["2014-10-05","Krčmář","Jakub",null,null,3,1,1,1,10,10,"Krčmář Jakub",2]
["2014-10-05","Mikendová","Tereza",null,null,1,2,1,0,17,0,"Mikendová Tereza",5]
["2014-10-05","Martináková ","Ema",null,null,2,2,0,1,20,10,"Martináková  Ema",4]
["2014-10-05","Anošová","Anna",null,null,1,3,0,0,30,10,"Anošová Anna",6]
["2014-10-05","Hroch ","Jakub",null,null,2,2,0,1,20,10,"Hroch  Jakub",4]
["2014-10-05",true,"Adam",null,null,3,1,0,2,5,20,"PRAVDA Adam",2]
["2014-10-05","Holík","Denis",null,null,4,0,0,3,0,30,"Holík Denis",0]
["2014-10-05","Dušenka","Michael",null,null,4,0,0,3,0,30,"Dušenka Michael",0]
["2014-10-05","Mlčák","Jan",null,null,2,2,0,1,20,10,"Mlčák Jan",4]
["2014-10-05","Jarošek","Adam",null,null,3,1,0,2,5,20,"Jarošek Adam",2]
["2014-10-05","Baštinská","Adéla",null,null,1,3,0,0,30,0,"Baštinská Adéla",6]
["2014-10-05","Horák","Adam",null,null,2,0,0,2,0,15,"Horák Adam",2]
["2014-10-05","Motyka","Dominik",null,null,1,2,0,0,15,0,"Motyka Dominik",5]
["2014-10-05","Strachota","Vojtěch",null,null,3,0,0,2,0,20,"Strachota Vojtěch",1]
["2014-10-05","Šlauka","David",null,null,2,1,0,1,10,10,"Šlauka David",3]
["2014-10-05","Šabacká","Denisa",null,null,1,2,0,0,20,0,"Šabacká Denisa",5]
["2014-10-05","Gregorczyk","Šimon",null,null,4,0,0,3,0,30,"Gregorczyk Šimon",0]
["2014-10-05","Martináková ","Stela",null,null,1,3,0,0,20,0,"Martináková  Stela",6]
["2014-10-05","Kovalčík","Martin",null,null,3,1,0,2,10,20,"Kovalčík Martin",2]
["2014-10-05","Cagala","Šimon",null,null,2,2,0,1,20,10,"Cagala Šimon",4]
["2014-10-05","Bartoň","Metoděj",null,null,4,0,1,3,0,30,"Bartoň Metoděj",0]
["2014-10-05","Caletka","Michal",null,null,4,0,1,3,0,30,"Caletka Michal",0]
["2014-10-05","Kuzník","Tadeáš",null,null,2,3,0,1,30,7,"Kuzník Tadeáš",5]
["2014-10-05","Kolář","Vojtěch",null,null,3,2,0,2,20,20,"Kolář Vojtěch",3]
["2014-10-05","Beutel","David",null,null,1,4,0,0,37,0,"Beutel David",7]
["2014-10-05","Mojík","Filip",null,null,1,3,0,0,21,0,"Mojík Filip",6]
["2014-10-05","Tokarský","Filip",null,null,3,1,0,2,0,20,"Tokarský Filip",2]
["2014-10-05","Blažek","Daniel",null,null,4,0,0,3,0,30,"Blažek Daniel",0]
["2014-10-05","Seibert","Marian",null,null,2,2,0,1,20,1,"Seibert Marian",4]
["2014-10-05","Hořín","Matyáš",null,null,3,0,0,3,0,30,"Hořín Matyáš",1]
["2014-10-05","Škuta","Otakar",null,null,2,1,1,0,10,10,"Škuta Otakar",3]
["2014-10-05","Boháč","Adam",null,null,2,1,1,0,10,10,"Boháč Adam",3]
["2014-10-05","Freiwald","Richard",null,null,1,3,0,0,30,0,{"$f":"B235&\" \"&C235","v":"Freiwald Richard"},{"$f":"IF(ISBLANK(F235),\"\",IF(F235<4,CHOOSE(F235,3,2,1),0)+G235)","v":6}]
["2014-10-05","Kolář","Daniel",null,null,2,3,0,1,30,10,"Kolář Daniel",5]
["2014-10-05","Ryška","Václav",null,null,3,2,0,2,20,20,"Ryška Václav",3]
["2014-10-05","Tokarský","Robin",null,null,5,0,0,4,0,40,"Tokarský Robin",0]
["2014-10-05","Otáhalová","Magda",null,null,4,1,0,3,10,30,"Otáhalová Magda",1]
["2014-10-05","Polák","Matyáš",null,null,1,4,0,0,40,0,"Polák Matyáš",7]
["2014-10-05","Bortlíček","Adam",null,null,2,3,0,1,27,0,"Bortlíček Adam",5]
["2014-10-05","Kožušník","Vojtěch",null,null,3,2,0,2,12,20,"Kožušník Vojtěch",3]
["2014-10-05","Huvar","Jakub",null,null,5,0,0,4,0,40,"Huvar Jakub",0]
["2014-10-05","Zach","Matyáš",null,null,1,3,0,1,30,0,"Zach Matyáš",6]
["2014-10-05","Šebesta","Jakub",null,null,4,1,1,2,0,10,"Šebesta Jakub",1]
["2014-11-08","Neuwirt","Petr",null,null,2,2,0,1,20,10,"Neuwirt Petr",4]
["2014-11-08","Malcová","Sabrina",null,null,"4.",0,0,3,0,30,"Malcová Sabrina",0]
["2014-11-08","Cagala","Šimon",null,null,1,3,0,0,30,0,"Cagala Šimon",6]
["2014-11-08","Buranyč","Filip",null,null,3,1,0,2,10,20,"Buranyč Filip",2]
["2014-11-08","Mička","Ladislav",null,null,"4.",0,0,4,0,35,"Mička Ladislav",0]
["2014-11-08","Přibyl","Jakub",null,null,3,1,1,2,6,13,"Přibyl Jakub",2]
["2014-11-08","Zabek","Matyáš",null,null,2,3,0,1,27,5,"Zabek Matyáš",5]
["2014-11-08","Papaj","Tobiáš",null,null,3,1,1,2,11,21,"Papaj Tobiáš",2]
["2014-11-08","Neckář","Matěj",null,null,1,3,0,0,30,0,"Neckář Matěj",6]
["2014-11-08","Pražák","Tomáš",null,null,1,4,0,0,40,0,"Pražák Tomáš",7]
["2014-11-08","Kolář","Daniel",null,null,2,3,0,1,30,10,"Kolář Daniel",5]
["2014-11-08","Boháč","Adam",null,null,4,1,0,3,10,30,"Boháč Adam",1]
["2014-11-08","Husarik","Jakub",null,null,5,0,0,4,0,40,"Husarik Jakub",0]
["2014-11-08","Freiwald","Richard",null,null,3,2,0,2,20,20,"Freiwald Richard",3]
["2014-11-08","Mojík","Filip",null,null,2,1,0,1,10,10,"Mojík Filip",3]
["2014-11-08","Černý","Michal",null,null,1,2,0,0,20,0,"Černý Michal",5]
["2014-11-08","Matúšek","Jakub",null,null,3,0,0,2,0,20,"Matúšek Jakub",1]
["2014-11-08","Marek","Šimon",null,null,2,0,0,3,0,30,"Marek Šimon",2]
["2014-11-08","Huvar","Jakub",null,null,1,2,0,1,20,10,"Huvar Jakub",5]
["2014-11-08","Kožušník","Vojtěch",null,null,1,2,0,1,20,10,"Kožušník Vojtěch",5]
["2014-11-08","Vavřina","Viktor",null,null,1,2,0,1,20,10,"Vavřina Viktor",5]
["2014-11-08","Zach","Matyáš",null,null,1,2,0,0,20,0,"Zach Matyáš",5]
["2014-11-08","Kolář","Vojtěch",null,null,2,1,0,1,5,10,"Kolář Vojtěch",3]
["2014-11-08","Kobeljaková","Carolina",null,null,3,0,0,2,0,15,"Kobeljaková Carolina",1]
["2014-11-08","Konvičný","Dominik",null,null,1,3,0,0,30,0,"Konvičný Dominik",6]
["2014-11-08","Hořín","Matyáš",null,null,3,1,0,2,10,20,"Hořín Matyáš",2]
["2014-11-08","Pravda","Adam",null,null,4,0,0,3,0,30,"Pravda Adam",0]
["2014-11-08","Hroch ","Jakub",null,null,2,2,0,1,20,10,"Hroch  Jakub",4]
["2014-11-08","Konečná","Kateřina",null,null,3,2,0,2,20,20,"Konečná Kateřina",3]
["2014-11-08","Dušenka","Michal",null,null,5,0,0,4,0,40,"Dušenka Michal",0]
["2014-11-08","Baštinská","Adéla",null,null,2,3,0,1,30,10,"Baštinská Adéla",5]
["2014-11-08","Ďurina","Lukáš",null,null,4,1,1,2,11,20,"Ďurina Lukáš",1]
["2014-11-08","Turčínek","Tomáš",null,null,1,3,1,0,30,0,"Turčínek Tomáš",6]
["2014-11-08","Janík","Tadeáš",null,null,1,2,0,0,20,0,"Janík Tadeáš",5]
["2014-11-08","Filipec","Viktor",null,null,2,1,0,1,10,10,"Filipec Viktor",3]
["2014-11-08","Křenková","Marie",null,null,3,0,0,2,0,20,"Křenková Marie",1]
["2014-11-08","Turek","Jakub",null,null,3,0,0,2,0,20,"Turek Jakub",1]
["2014-11-08","Blažek","Daniel",null,null,2,1,0,1,10,10,"Blažek Daniel",3]
["2014-11-08","Seibert","Marian",null,null,1,2,0,0,20,0,"Seibert Marian",5]
["2014-11-08","Otáhalová","Magda",null,null,3,0,0,2,0,12,"Otáhalová Magda",1]
["2014-11-08","Matýsek","Jan",null,null,2,1,1,0,5,0,"Matýsek Jan",3]
["2014-11-08","Přibyl","Jan",null,null,1,1,1,0,7,0,"Přibyl Jan",4]
["2014-11-08","Kobeljaková","Barbora",null,null,3,0,0,2,0,20,"Kobeljaková Barbora",1]
["2014-11-08","Jakubec","Lukáš",null,null,1,2,0,0,20,0,"Jakubec Lukáš",5]
["2014-11-08","Miková","Nikola",null,null,2,1,0,1,10,10,"Miková Nikola",3]
["2014-11-08","Mikenda","Ondřej",null,null,1,1,0,1,10,10,"Mikenda Ondřej",4]
["2014-11-08","Kajfosz","Kryštof",null,null,1,1,0,1,10,10,"Kajfosz Kryštof",4]
["2014-11-08","Vrbas","Alexandr",null,null,1,1,0,1,10,10,"Vrbas Alexandr",4]
["2014-11-08","Válek","Prokop",null,null,4,0,0,3,0,40,"Válek Prokop",0]
["2014-11-08","Mikendová","Tereza",null,null,1,3,0,0,30,0,"Mikendová Tereza",6]
["2014-11-08","Bortlíček","Adam",null,null,3,1,0,2,10,20,"Bortlíček Adam",2]
["2014-11-08","Krčmář","Jakub",null,null,2,2,0,1,20,10,"Krčmář Jakub",4]
["2014-12-13","Gibej","Daniel",null,null,"5.",0,0,4,0,40,"Gibej Daniel",0]
["2014-12-13","Otáhalová","Magda",null,null,"3.",2,1,0,20,0,{"$f":"B299&\" \"&C299","v":"Otáhalová Magda"},{"$f":"IF(ISBLANK(F299),\"\",IF(F299<4,CHOOSE(F299,3,2,1),0)+G299)","v":2}]
["2014-12-13","Coufal","David",null,null,4,1,1,2,10,20,"Coufal David",1]
["2014-12-13","Mička","Ladislav",null,null,2,3,0,1,30,10,"Mička Ladislav",5]
["2014-12-13","Ryška","Václav",null,null,1,3,0,1,30,10,"Ryška Václav",6]
["2014-12-13","Hrubý","Jan",null,null,4,1,0,3,10,30,"Hrubý Jan",1]
["2014-12-13","Přibyl","Jakub",null,null,2,3,0,1,30,10,"Přibyl Jakub",5]
["2014-12-13","Mikendová","Tereza",null,null,1,4,0,0,40,0,"Mikendová Tereza",7]
["2014-12-13","Čech","Jiří",null,null,3,2,0,2,20,20,"Čech Jiří",3]
["2014-12-13","Caletka","Petr",null,null,5,0,0,4,0,40,"Caletka Petr",0]
["2014-12-13","Hořín","Matyáš",null,null,2,2,0,2,20,20,"Hořín Matyáš",4]
["2014-12-13","Holík","Denis",null,null,4,1,0,3,10,30,"Holík Denis",1]
["2014-12-13","Neckář","Matěj",null,null,3,2,0,2,20,20,"Neckář Matěj",3]
["2014-12-13","Papaj","Tobiáš",null,null,1,4,0,0,40,0,"Papaj Tobiáš",7]
["2014-12-13","Pavlík","Lukáš",null,null,5,1,0,0,10,0,"Pavlík Lukáš",1]
["2014-12-13","Mojík","Filip",null,null,2,1,0,1,10,10,"Mojík Filip",3]
["2014-12-13","Tomek","Vojtěch",null,null,3,0,0,2,0,20,"Tomek Vojtěch",1]
["2014-12-13","Beutel","David",null,null,"1.",2,0,0,20,0,"Beutel David",2]
["2014-12-13","Caletka","Michal",null,null,3,1,0,2,10,20,"Caletka Michal",2]
["2014-12-13","Bartoň","Metoděj",null,null,2,2,0,1,20,10,"Bartoň Metoděj",4]
["2014-12-13","Jakšik","Daniel",null,null,1,3,0,0,30,0,"Jakšik Daniel",6]
["2014-12-13","Štaffa","Ondřej",null,null,4,0,0,3,0,30,"Štaffa Ondřej",0]
["2014-12-13","Hrubá","Hanna",null,null,3,0,0,2,0,20,"Hrubá Hanna",1]
["2014-12-13","Rudinský","Jakub",null,null,2,1,0,1,10,10,"Rudinský Jakub",3]
["2014-12-13","Čerchlová","Markéta",null,null,1,2,0,0,20,0,"Čerchlová Markéta",5]
["2014-12-13","Zvardoň","Daniel",null,null,1,2,0,0,20,0,"Zvardoň Daniel",5]
["2014-12-13","Dušenka","Michal",null,null,2,0,0,2,0,20,"Dušenka Michal",2]
["2014-12-13","Jarošek","Adam",null,null,2,0,0,2,0,20,"Jarošek Adam",2]
["2014-12-13","Král","Miroslav",null,null,1,2,0,0,20,0,"Král Miroslav",5]
["2014-12-13","Šabacká","Denisa",null,null,1,4,0,0,40,0,"Šabacká Denisa",7]
["2014-12-13","Mohyla","Michal",null,null,4,1,0,3,10,30,"Mohyla Michal",1]
["2014-12-13","Čerchla","Michal",null,null,3,2,0,2,20,20,"Čerchla Michal",3]
["2014-12-13","Hřebavka","Patrik",null,null,2,3,0,1,30,10,"Hřebavka Patrik",5]
["2014-12-13","Hroch ","Jakub",null,null,5,0,0,4,0,40,"Hroch  Jakub",0]
["2014-12-13","Konvičný","Dominik",null,null,3,2,0,2,20,20,"Konvičný Dominik",3]
["2014-12-13","Freiwald","Richard",null,null,2,3,0,2,20,20,"Freiwald Richard",5]
["2014-12-13","Bencúr","Eliáš",null,null,4,0,1,3,0,30,"Bencúr Eliáš",0]
["2014-12-13","Boháč","Adam",null,null,1,4,0,0,40,0,"Boháč Adam",7]
["2014-12-13","Husarik","Jakub",null,null,4,0,1,3,0,30,"Husarik Jakub",0]
["2014-12-13","Matušek","Jakub",null,null,1,2,0,0,20,0,"Matušek Jakub",5]
["2014-12-13","Papavasilevský","Marek",null,null,2,1,0,1,10,10,"Papavasilevský Marek",3]
["2014-12-13","Turek","Jakub",null,null,3,0,0,2,0,20,"Turek Jakub",1]
["2014-12-13","Večeřa","Adam",null,null,4,0,0,3,0,30,"Večeřa Adam",0]
["2014-12-13","Huvar","Jakub",null,null,2,2,0,1,20,10,"Huvar Jakub",4]
["2014-12-13","Přibyl","Jan",null,null,1,3,0,0,30,0,"Přibyl Jan",6]
["2014-12-13","Bortlíček","Adam",null,null,3,1,0,2,10,20,"Bortlíček Adam",2]
["2014-12-13","Řeha","Daniel",null,null,4,0,1,2,0,20,"Řeha Daniel",0]
["2014-12-13","Blažek","Daniel",null,null,3,1,1,1,10,10,"Blažek Daniel",2]
["2014-12-13","Seibert","Marian",null,null,2,1,2,0,10,0,"Seibert Marian",3]
["2014-12-13","Kuzník","Tadeáš",null,null,1,2,1,0,20,0,"Kuzník Tadeáš",5]
["2014-12-13","Doubek","Benjamin",null,null,2,1,0,1,10,10,"Doubek Benjamin",3]
["2014-12-13","Malcová","Sabrina",null,null,3,0,0,2,0,20,"Malcová Sabrina",1]
["2014-12-13","Neuwirt","Petr",null,null,1,2,0,0,20,0,"Neuwirt Petr",5]
["2014-12-13","Kovalčík","Martin",null,null,1,2,0,0,20,0,"Kovalčík Martin",5]
["2014-12-13","Mikenda","Ondřej",null,null,3,0,0,2,0,20,"Mikenda Ondřej",1]
["2014-12-13","Cagala","Šimon",null,null,2,1,0,1,10,10,"Cagala Šimon",3]
["2014-12-13","Jakšik","Petr",null,null,3,0,0,2,0,20,"Jakšik Petr",1]
["2014-12-13","Kajfosz","Kryštof",null,null,1,2,0,0,20,0,"Kajfosz Kryštof",5]
["2014-12-13","Vrbas","Alexandr",null,null,2,1,0,1,10,10,"Vrbas Alexandr",3]
["2014-12-13","Vavřina","Viktor",null,null,3,1,1,0,10,0,"Vavřina Viktor",2]
["2014-12-13","Marek","Šimon",null,null,4,0,0,3,0,30,"Marek Šimon",0]
["2014-12-13","Kožušník","Vojtěch",null,null,2,1,1,0,10,0,"Kožušník Vojtěch",3]
["2014-12-13","Zach","Matyáš",null,null,1,3,0,0,30,0,"Zach Matyáš",6]
[null,null,null,null,null,null,null,null,null,null,null," ",""]
[null,null,null,null,null,null,null,null,null,null,null," ",""]
[null,null,null,null,null,null,null,null,null,null,null,{"$f":"B363&\" \"&C363","v":" "},{"$f":"IF(ISBLANK(F363),\"\",IF(F363<4,CHOOSE(F363,3,2,1),0)+G363)","v":""}]
[null,null,null,null,null,null,null,null,null,null,null," ",""]
[null,null,null,null,null,null,null,null,null,null,null," ",""]
[null,null,null,null,null,null,null,null,null,null,null," ",""]
[null,null,null,null,null,null,null,null,null,null,null," ",""]
[null,null,null,null,null,null,null,null,null,null,null," ",""]
[null,null,null,null,null,null,null,null,null,null,null," ",""]
[null,null,null,null,null,null,null,null,null,null,null," ",""]
[null,null,null,null,null,null,null,null,null,null,null," ",""]
[null,null,null,null,null,null,null,null,null,null,null," ",""]
[null,null,null,null,null,null,null,null,null,null,null," ",""]
[null,null,null,null,null,null,null,null,null,null,null," ",""]
[null,null,null,null,null,null,null,null,null,null,null," ",""]
[null,null,null,null,null,null,null,null,null,null,null," ",""]
[null,null,null,null,null,null,null,null,null,null,null," ",""]
[null,null,null,null,null,null,null,null,null,null,null," ",""]
[null,null,null,null,null,null,null,null,null,null,null," ",""]
[null,null,null,null,null,null,null,null,null,null,null," ",""]
[null,null,null,null,null,null,null,null,null,null,null," ",""]
[null,null,null,null,null,null,null,null,null,null,null," ",""]
[null,null,null,null,null,null,null,null,null,null,null," ",""]
[null,null,null,null,null,null,null,null,null,null,null," ",""]
[null,null,null,null,null,null,null,null,null,null,null," ",""]
[null,null,null,null,null,null,null,null,null,null,null," ",""]
[null,null,null,null,null,null,null,null,null,null,null," ",""]
[null,null,null,null,null,null,null,null,null,null,null," ",""]
[null,null,null,null,null,null,null,null,null,null,null," ",""]
[null,null,null,null,null,null,null,null,null,null,null," ",""]
[null,null,null,null,null,null,null,null,null,null,null," ",""]
[null,null,null,null,null,null,null,null,null,null,null," ",""]
[null,null,null,null,null,null,null,null,null,null,null," ",""]
[null,null,null,null,null,null,null,null,null,null,null," ",""]
[null,null,null,null,null,null,null,null,null,null,null," ",""]
[null,null,null,null,null,null,null,null,null,null,null," ",""]
[null,null,null,null,null,null,null,null,null,null,null," ",""]
[null,null,null,null,null,null,null,null,null,null,null," ",""]
[null,null,null,null,null,null,null,null,null,null,null," ",""]
[null,null,null,null,null,null,null,null,null,null,null," ",""]
[null,null,null,null,null,null,null,null,null,null,null," ",""]
[null,null,null,null,null,null,null,null,null,null,null," ",""]
[null,null,null,null,null,null,null,null,null,null,null," ",""]
[null,null,null,null,null,null,null,null,null,null,null," ",""]
[null,null,null,null,null,null,null,null,null,null,null," ",""]
[null,null,null,null,null,null,null,null,null,null,null," ",""]
[null,null,null,null,null,null,null,null,null,null,null," ",""]
[null,null,null,null,null,null,null,null,null,null,null," ",""]
[null,null,null,null,null,null,null,null,null,null,null," ",""]
[null,null,null,null,null,null,null,null,null,null,null," ",""]
[null,null,null,null,null,null,null,null,null,null,null," ",""]
[null,null,null,null,null,null,null,null,null,null,null," ",""]
[null,null,null,null,null,null,null,null,null,null,null," ",""]
[null,null,null,null,null,null,null,null,null,null,null," ",""]
[null,null,null,null,null,null,null,null,null,null,null," ",""]
[null,null,null,null,null,null,null,null,null,null,null," ",""]
[null,null,null,null,null,null,null,null,null,null,null," ",""]
[null,null,null,null,null,null,null,null,null,null,null," ",""]
[null,null,null,null,null,null,null,null,null,null,null," ",""]
[null,null,null,null,null,null,null,null,null,null,null," ",""]
[null,null,null,null,null,null,null,null,null,null,null," ",""]
[null,null,null,null,null,null,null,null,null,null,null," ",""]
[null,null,null,null,null,null,null,null,null,null,null," ",""]
[null,null,null,null,null,null,null,null,null,null,null," ",""]
[null,null,null,null,null,null,null,null,null,null,null," ",""]
[null,null,null,null,null,null,null,null,null,null,null," ",""]
[null,null,null,null,null,null,null,null,null,null,null,{"$f":"B427&\" \"&C427","v":" "},{"$f":"IF(ISBLANK(F427),\"\",IF(F427<4,CHOOSE(F427,3,2,1),0)+G427)","v":""}]
[null,null,null,null,null,null,null,null,null,null,null," ",""]
[null,null,null,null,null,null,null,null,null,null,null," ",""]
[null,null,null,null,null,null,null,null,null,null,null," ",""]
[null,null,null,null,null,null,null,null,null,null,null," ",""]
[null,null,null,null,null,null,null,null,null,null,null," ",""]
[null,null,null,null,null,null,null,null,null,null,null," ",""]
[null,null,null,null,null,null,null,null,null,null,null," ",""]
[null,null,null,null,null,null,null,null,null,null,null," ",""]
[null,null,null,null,null,null,null,null,null,null,null," ",""]
[null,null,null,null,null,null,null,null,null,null,null," ",""]
[null,null,null,null,null,null,null,null,null,null,null," ",""]
[null,null,null,null,null,null,null,null,null,null,null," ",""]
[null,null,null,null,null,null,null,null,null,null,null," ",""]
[null,null,null,null,null,null,null,null,null,null,null," ",""]
[null,null,null,null,null,null,null,null,null,null,null," ",""]
[null,null,null,null,null,null,null,null,null,null,null," ",""]
[null,null,null,null,null,null,null,null,null,null,null," ",""]
[null,null,null,null,null,null,null,null,null,null,null," ",""]
[null,null,null,null,null,null,null,null,null,null,null," ",""]
[null,null,null,null,null,null,null,null,null,null,null," ",""]
[null,null,null,null,null,null,null,null,null,null,null," ",""]
[null,null,null,null,null,null,null,null,null,null,null," ",""]
[null,null,null,null,null,null,null,null,null,null,null," ",""]
[null,null,null,null,null,null,null,null,null,null,null," ",""]
[null,null,null,null,null,null,null,null,null,null,null," ",""]
[null,null,null,null,null,null,null,null,null,null,null," ",""]
[null,null,null,null,null,null,null,null,null,null,null," ",""]
[null,null,null,null,null,null,null,null,null,null,null," ",""]
[null,null,null,null,null,null,null,null,null,null,null," ",""]
[null,null,null,null,null,null,null,null,null,null,null," ",""]
[null,null,null,null,null,null,null,null,null,null,null," ",""]
[null,null,null,null,null,null,null,null,null,null,null," ",""]
[null,null,null,null,null,null,null,null,null,null,null," ",""]
[null,null,null,null,null,null,null,null,null,null,null," ",""]
[null,null,null,null,null,null,null,null,null,null,null," ",""]
[null,null,null,null,null,null,null,null,null,null,null," ",""]
[null,null,null,null,null,null,null,null,null,null,null," ",""]
[null,null,null,null,null,null,null,null,null,null,null," ",""]
[null,null,null,null,null,null,null,null,null,null,null," ",""]
[null,null,null,null,null,null,null,null,null,null,null," ",""]
[null,null,null,null,null,null,null,null,null,null,null," ",""]
[null,null,null,null,null,null,null,null,null,null,null," ",""]
[null,null,null,null,null,null,null,null,null,null,null," ",""]
[null,null,null,null,null,null,null,null,null,null,null," ",""]
[null,null,null,null,null,null,null,null,null,null,null," ",""]
[null,null,null,null,null,null,null,null,null,null,null," ",""]
[null,null,null,null,null,null,null,null,null,null,null," ",""]
[null,null,null,null,null,null,null,null,null,null,null," ",""]
[null,null,null,null,null,null,null,null,null,null,null," ",""]
[null,null,null,null,null,null,null,null,null,null,null," ",""]
[null,null,null,null,null,null,null,null,null,null,null," ",""]
[null,null,null,null,null,null,null,null,null,null,null," ",""]
[null,null,null,null,null,null,null,null,null,null,null," ",""]
[null,null,null,null,null,null,null,null,null,null,null," ",""]
[null,null,null,null,null,null,null,null,null,null,null," ",""]
[null,null,null,null,null,null,null,null,null,null,null," ",""]
[null,null,null,null,null,null,null,null,null,null,null," ",""]
[null,null,null,null,null,null,null,null,null,null,null," ",""]
[null,null,null,null,null,null,null,null,null,null,null," ",""]
[null,null,null,null,null,null,null,null,null,null,null," ",""]
[null,null,null,null,null,null,null,null,null,null,null," ",""]
[null,null,null,null,null,null,null,null,null,null,null," ",""]
[null,null,null,null,null,null,null,null,null,null,null," ",""]
[null,null,null,null,null,null,null,null,null,null,null,{"$f":"B491&\" \"&C491","v":" "},{"$f":"IF(ISBLANK(F491),\"\",IF(F491<4,CHOOSE(F491,3,2,1),0)+G491)","v":""}]
[null,null,null,null,null,null,null,null,null,null,null," ",""]
[null,null,null,null,null,null,null,null,null,null,null," ",""]
[null,null,null,null,null,null,null,null,null,null,null," ",""]
[null,null,null,null,null,null,null,null,null,null,null," ",""]
[null,null,null,null,null,null,null,null,null,null,null," ",""]
[null,null,null,null,null,null,null,null,null,null,null," ",""]
[null,null,null,null,null,null,null,null,null,null,null," ",""]
[null,null,null,null,null,null,null,null,null,null,null," ",""]
[null,null,null,null,null,null,null,null,null,null,null," ",""]

{"sheet":"Knt","index":2,"n_rows":165,"n_cols":25,"rows_kept":165,"cut":false,"hidden":true,"merged":[]}
["RZB - rozdíl vyhraných a prohraných"]
["PZB - poměr vyhraných a prohraných"]
[null,"Turnaj"]
[null,"(blank)",null,null,"2014-02-01",null,null,"2014-03-15",null,null,"2014-04-26",null,null,"2014-10-05",null,null,"2014-11-08",null,null,"2014-12-13",null,null,"Total Bodů","Total Součet z RZB","Total Součet z PZB"]
["Závodník","Bodů","Součet z RZB","Součet z PZB","Bodů","Součet z RZB","Součet z PZB","Bodů","Součet z RZB","Součet z PZB","Bodů","Součet z RZB","Součet z PZB","Bodů","Součet z RZB","Součet z PZB","Bodů","Součet z RZB","Součet z PZB","Bodů","Součet z RZB","Součet z PZB"]
["Konvičný Dominik",0,0,0,6,3,0,4,1,2,6,3,0,6,3,0,6,3,0,3,0,1,31,13,5.333333333333333]
["Cagala Šimon",0,0,0,4,1,2,4,2,3,6,3,0,4,1,2,6,3,0,3,0,1,27,10,3.5]
["Přibyl Jakub",0,0,0,6,3,0,5,2,3,4,1,2,4,1,2,2,-1,0.5,5,2,3,26,8,2.3333333333333335]
["Mikendová Tereza",0,0,0,0,0,0,2,0,0,5,2,0,5,2,0,6,3,0,7,4,0,25,11,0]
["Zach Matyáš",0,0,0,4,1,2,0,0,0,3,0,1,6,2,3,5,2,0,6,3,0,24,8,3.6666666666666665]
["Seibert Marian",0,0,0,1,-1,0.5,6,3,0,5,2,0,4,1,2,5,2,0,3,1,0,24,8,3.6666666666666665]
["Přibyl Jan",0,0,0,5,2,0,4,1,0,4,1,2,0,-3,0,4,1,0,6,3,0,23,5,2.25]
["Freiwald Richard",0,0,0,3,0,1,4,1,2,2,-1,0,6,3,0,3,0,1,5,1,1.5,23,4,1.5]
["Kolář Daniel",0,0,0,5,2,3,2,-1,0.5,6,3,0,5,2,3,5,2,3,0,0,0,23,8,2.6]
["Bortlíček Adam",0,0,0,5,2,0,3,0,1,5,2,0,5,2,3,2,-1,0.5,2,-1,0.5,22,4,1.6666666666666667]
["Kožušník Vojtěch",0,0,0,6,2,3,5,2,0,0,0,0,3,0,1,5,1,2,3,1,0,22,6,2.5]
["Čerchla Michal",0,0,0,4,1,2,6,3,0,6,3,0,0,0,0,0,0,0,3,0,1,19,7,3.3333333333333335]
["Neckář Matěj",0,0,0,0,0,0,0,0,0,6,3,0,4,1,2,6,3,0,3,0,1,19,7,3.3333333333333335]
["Pražák Tomáš",0,0,0,6,3,0,0,0,0,3,0,1,0,0,0,7,4,0,0,0,0,16,7,8]
["Baštinská Adéla",0,0,0,5,2,0,0,0,0,0,0,0,6,3,0,5,2,3,0,0,0,16,7,8]
["Kolář Vojtěch",0,0,0,1,-2,0.33333333333333331,4,1,2,5,1,2,3,0,1,3,0,1,0,0,0,16,0,1]
["Vykydal Tomáš",0,0,0,5,2,0,5,2,0,5,2,0,0,0,0,0,0,0,0,0,0,15,6,0]
["Hořín Matyáš",0,0,0,1,-1,0.5,3,0,1,4,1,2,1,-3,0,2,-1,0.5,4,0,1,15,-4,0.63636363636363635]
["Macháček Matyáš",0,0,0,3,0,1,0,0,0,5,1,2,6,3,0,0,0,0,0,0,0,14,4,3]
["Papaj Tobiáš",0,0,0,4,1,2,0,0,0,1,-2,0,0,-3,0,2,-1,0.5,7,4,0,14,-1,0.875]
["Končítek Kryštof",0,0,0,2,-1,0.5,6,3,0,0,0,0,6,3,0,0,0,0,0,0,0,14,5,3.5]
["Šabacká Denisa",0,0,0,2,-1,0.5,0,0,0,0,0,0,5,2,0,0,0,0,7,4,0,14,5,3.5]
["Neuwirt Petr",0,0,0,0,0,0,0,-4,0,2,-1,0.5,2,-1,0.5,4,1,2,5,2,0,13,-3,0.66666666666666663]
["Košťálek Václav",0,0,0,6,3,0,7,4,0,0,0,0,0,0,0,0,0,0,0,0,0,13,7,0]
["Polák Matyáš",0,0,0,0,0,0,5,2,0,0,0,0,7,4,0,0,0,0,0,0,0,12,6,0]
["Meixner Michal",0,0,0,6,3,0,6,3,0,0,0,0,0,0,0,0,0,0,0,0,0,12,6,0]
["Martináková  Stela",0,0,0,0,0,0,3,0,1,3,1,0,6,3,0,0,0,0,0,0,0,12,4,5]
["Kovalčík Martin",0,0,0,0,0,0,1,-2,0.33333333333333331,4,1,2,2,-1,0.5,0,0,0,5,2,0,12,0,1]
["Mojík Filip",0,0,0,0,0,0,0,0,0,0,0,0,6,3,0,3,0,1,3,0,1,12,3,2.5]
["Bartoň Metoděj",0,0,0,2,-1,0.5,1,-2,0,5,1,2,0,-3,0,0,0,0,4,1,2,12,-4,0.55555555555555558]
["Vaculík Lukáš",0,0,0,6,3,0,6,2,3,0,0,0,0,0,0,0,0,0,0,0,0,12,5,6]
["Boháč Adam",0,0,0,0,0,0,0,0,0,0,0,0,3,1,0,1,-2,0.33333333333333331,7,4,0,11,3,2]
["Huvar Jakub",0,0,0,2,-1,0.5,0,0,0,0,0,0,0,-4,0,5,1,2,4,1,2,11,-3,0.625]
["Zabek Matyáš",0,0,0,0,0,0,6,3,0,0,0,0,0,0,0,5,2,3,0,0,0,11,5,6]
["Košťálek Vojtěch",0,0,0,6,3,0,5,2,0,0,0,0,0,0,0,0,0,0,0,0,0,11,5,0]
["Gurbovič Daniel",0,0,0,0,0,0,5,2,3,0,0,0,6,3,0,0,0,0,0,0,0,11,5,6]
["Jakšik Daniel",0,0,0,0,0,0,0,0,0,0,0,0,4,1,2,0,0,0,6,3,0,10,4,5]
["Motyčka Lukáš",0,0,0,3,0,1,5,2,0,2,-1,0.5,0,0,0,0,0,0,0,0,0,10,1,1.3333333333333333]
["Kuzník Tadeáš",0,0,0,0,0,0,0,0,0,0,0,0,5,2,3,0,0,0,5,2,0,10,4,5]
["Ryška Václav",0,0,0,1,-2,0.33333333333333331,0,0,0,0,0,0,3,0,1,0,0,0,6,2,3,10,0,1]
["Král Miroslav",0,0,0,0,0,0,0,0,0,5,2,0,0,0,0,0,0,0,5,2,0,10,4,0]
["Huvar Jan",0,0,0,5,2,0,5,2,0,0,0,0,0,0,0,0,0,0,0,0,0,10,4,0]
["Hroch  Jakub",0,0,0,0,-3,0,2,-1,0.5,0,0,0,4,1,2,4,1,2,0,-4,0,10,-6,0.45454545454545453]
["Kajfosz Kryštof",0,0,0,0,0,0,0,0,0,0,0,0,0,0,0,4,0,1,5,2,0,9,2,3]
["Škoda Vojtěch",0,0,0,3,0,1,3,0,1,3,0,1,0,0,0,0,0,0,0,0,0,9,0,1]
["Čerchlová Markéta",0,0,0,1,-2,0,2,-2,0,1,-2,0,0,0,0,0,0,0,5,2,0,9,-4,0.33333333333333331]
["Turčínek Tomáš",0,0,0,0,0,0,3,1,2,0,0,0,0,0,0,6,3,0,0,0,0,9,4,5]
["Beutel David",0,0,0,0,0,0,0,0,0,0,0,0,7,4,0,0,0,0,2,2,0,9,6,0]
["Částečka Filip",0,0,0,0,0,0,4,1,2,5,2,0,0,0,0,0,0,0,0,0,0,9,3,4]
["Kuncová Viktorie",0,0,0,3,0,1,6,3,0,0,0,0,0,0,0,0,0,0,0,0,0,9,3,4]
["Kuželová Dominika",0,0,0,3,0,1,3,0,1,2,0,1,0,0,0,0,0,0,0,0,0,8,0,1]
["Škuta Otakar",0,0,0,1,-2,0,2,-1,0,2,-1,0,3,1,0,0,0,0,0,0,0,8,-3,0.25]
["Jakubec Lukáš",0,0,0,3,0,1,0,0,0,0,0,0,0,0,0,5,2,0,0,0,0,8,2,3]
["Čebík Filip",0,0,0,0,0,0,0,0,0,7,4,0,0,0,0,0,0,0,0,0,0,7,4,0]
["Malaczynski Filip",0,0,0,7,4,0,0,0,0,0,0,0,0,0,0,0,0,0,0,0,0,7,4,0]
["Matýsek Jan",0,0,0,0,0,0,0,0,0,4,1,2,0,0,0,3,1,0,0,0,0,7,2,3]
["Žák Pavel",0,0,0,0,0,0,7,4,0,0,0,0,0,0,0,0,0,0,0,0,0,7,4,0]
["Vavřina Viktor",0,0,0,0,0,0,0,0,0,0,0,0,0,0,0,5,1,2,2,1,0,7,2,3]
["Mlčák Jan",0,0,0,0,0,0,3,0,1,0,0,0,4,1,2,0,0,0,0,0,0,7,1,1.5]
["Vrbas Alexandr",0,0,0,0,0,0,0,0,0,0,0,0,0,0,0,4,0,1,3,0,1,7,0,1]
["Anošová Anna",0,0,0,0,0,0,0,0,0,0,0,0,6,3,0,0,0,0,0,0,0,6,3,0]
["Šlauka David",0,0,0,0,0,0,3,0,1,0,0,0,3,0,1,0,0,0,0,0,0,6,0,1]
["Paloch Martin",0,0,0,0,0,0,1,-2,0.33333333333333331,5,2,0,0,0,0,0,0,0,0,0,0,6,0,1]
["Pařík Teodor",0,0,0,6,3,0,0,0,0,0,0,0,0,0,0,0,0,0,0,0,0,6,3,0]
["Holík Denis",0,0,0,2,-1,0.5,1,-2,0,2,-1,0.5,0,-3,0,0,0,0,1,-2,0.33333333333333331,6,-9,0.25]
["Krčmář Jakub",0,0,0,0,0,0,0,0,0,0,0,0,2,0,1,4,1,2,0,0,0,6,1,1.5]
["Mikenda Ondřej",0,0,0,0,0,0,0,0,0,0,0,0,0,0,0,4,0,1,1,-2,0,5,-2,0.33333333333333331]
["Mička Ladislav",0,0,0,0,0,0,0,0,0,0,0,0,0,0,0,0,-4,0,5,2,3,5,-2,0.6]
["Drastich Vojtěch",0,0,0,5,2,0,0,0,0,0,0,0,0,0,0,0,0,0,0,0,0,5,2,0]
["Blažek Daniel",0,0,0,0,0,0,0,0,0,0,0,0,0,-3,0,3,0,1,2,0,1,5,-3,0.4]
["Matušek Jakub",0,0,0,0,0,0,0,0,0,0,0,0,0,0,0,0,0,0,5,2,0,5,2,0]
["Volný Jakub",0,0,0,3,0,1,2,-1,0.5,0,0,0,0,0,0,0,0,0,0,0,0,5,-1,0.75]
["Rajna Alexandr",0,0,0,0,0,0,5,2,0,0,0,0,0,0,0,0,0,0,0,0,0,5,2,0]
["Žárski Adam",0,0,0,2,-1,0.5,0,0,0,3,-1,0.5,0,0,0,0,0,0,0,0,0,5,-2,0.5]
["Šlauka Martin",0,0,0,0,0,0,5,2,0,0,0,0,0,0,0,0,0,0,0,0,0,5,2,0]
["Papavasilevský Marek",0,0,0,2,-1,0.5,0,0,0,0,-3,0,0,0,0,0,0,0,3,0,1,5,-4,0.33333333333333331]
["Černý Michal",0,0,0,0,0,0,0,0,0,0,0,0,0,0,0,5,2,0,0,0,0,5,2,0]
["Zvardoň Daniel",0,0,0,0,0,0,0,0,0,0,0,0,0,0,0,0,0,0,5,2,0,5,2,0]
["Janík Tadeáš",0,0,0,0,0,0,0,0,0,0,0,0,0,0,0,5,2,0,0,0,0,5,2,0]
["Motyka Dominik",0,0,0,0,0,0,0,0,0,0,0,0,5,2,0,0,0,0,0,0,0,5,2,0]
["Hřebavka Patrik",0,0,0,0,0,0,0,0,0,0,0,0,0,0,0,0,0,0,5,2,3,5,2,3]
["Rudinský Alex",0,0,0,5,1,2,0,0,0,0,0,0,0,0,0,0,0,0,0,0,0,5,1,2]
["Kubík Martin",0,0,0,0,0,0,0,0,0,5,2,0,0,0,0,0,0,0,0,0,0,5,2,0]
["Martináková  Ema",0,0,0,0,0,0,1,-2,0.33333333333333331,0,-2,0,4,1,2,0,0,0,0,0,0,5,-3,0.5]
["Marek Šimon",0,0,0,0,0,0,3,1,0,0,0,0,0,0,0,2,-3,0,0,-3,0,5,-5,0.16666666666666666]
["Nachtmann Michael",0,0,0,0,0,0,0,-3,0,2,-1,0.5,2,-1,0.5,0,0,0,0,0,0,4,-5,0.2857142857142857]
["Jarošek Adam",0,0,0,0,0,0,0,0,0,0,0,0,2,-1,0.5,0,0,0,2,-2,0,4,-3,0.25]
["Stryžovský Sebastian",0,0,0,4,1,2,0,0,0,0,0,0,0,0,0,0,0,0,0,0,0,4,1,2]
["Obercian Martin",0,0,0,3,0,1,1,-2,0,0,0,0,0,0,0,0,0,0,0,0,0,4,-2,0.33333333333333331]
["Dušenka Michal",0,0,0,1,-2,0,1,-2,0,0,0,0,0,0,0,0,-4,0,2,-2,0,4,-10,0]
["Blažej Daniel",0,0,0,4,1,2,0,-3,0,0,0,0,0,0,0,0,0,0,0,0,0,4,-2,0.5]
["Miková Nikola",0,0,0,1,-2,0,0,0,0,0,-4,0,0,0,0,3,0,1,0,0,0,4,-6,0.14285714285714285]
["Válek Prokop",0,0,0,0,-3,0,0,-4,0,2,-1,0.5,2,-1,0.5,0,-3,0,0,0,0,4,-12,0.14285714285714285]
["Slavíček Václav",0,0,0,4,2,0,0,0,0,0,0,0,0,0,0,0,0,0,0,0,0,4,2,0]
["Otáhalová Magda",0,0,0,0,0,0,0,0,0,0,0,0,1,-2,0.33333333333333331,1,-2,0,2,2,0,4,-2,0.6]
["Tomek David",0,0,0,0,0,0,0,0,0,4,1,2,0,0,0,0,0,0,0,0,0,4,1,2]
["Ďurina Lukáš",0,0,0,1,-2,0,0,0,0,2,-1,0,0,0,0,1,-1,0.5,0,0,0,4,-4,0.2]
["Válek Matěj",0,0,0,0,0,0,0,0,0,0,0,0,4,1,2,0,0,0,0,0,0,4,1,2]
["Miková  Nikola",0,0,0,0,0,0,4,1,2,0,0,0,0,0,0,0,0,0,0,0,0,4,1,2]
["Filipec Viktor",0,0,0,0,0,0,0,0,0,0,0,0,0,0,0,3,0,1,0,0,0,3,0,1]
["Rudinský Jakub",0,0,0,0,0,0,0,0,0,0,0,0,0,0,0,0,0,0,3,0,1,3,0,1]
["Frais Jiří",0,0,0,3,0,1,0,0,0,0,0,0,0,0,0,0,0,0,0,0,0,3,0,1]
["Wanecki Filip",0,0,0,2,0,1,1,-2,0,0,0,0,0,0,0,0,0,0,0,0,0,3,-2,0.33333333333333331]
["Konečná Kateřina",0,0,0,0,0,0,0,0,0,0,0,0,0,0,0,3,0,1,0,0,0,3,0,1]
["Novotný Ladislav",0,0,0,3,0,1,0,0,0,0,0,0,0,0,0,0,0,0,0,0,0,3,0,1]
["Šebesta Jakub",0,0,0,0,0,0,0,0,0,2,0,0,1,-1,0.5,0,0,0,0,0,0,3,-1,0.5]
["Caletka Michal",0,0,0,0,0,0,0,0,0,1,-2,0,0,-3,0,0,0,0,2,-1,0.5,3,-6,0.14285714285714285]
["Čech Jiří",0,0,0,0,0,0,0,0,0,0,0,0,0,0,0,0,0,0,3,0,1,3,0,1]
["Endt David",0,0,0,0,-2,0,3,0,1,0,0,0,0,0,0,0,0,0,0,0,0,3,-2,0.33333333333333331]
["Papaj  Tobiáš",0,0,0,0,0,0,3,0,1,0,0,0,0,0,0,0,0,0,0,0,0,3,0,1]
["Doubek Benjamin",0,0,0,0,0,0,0,0,0,0,0,0,0,0,0,0,0,0,3,0,1,3,0,1]
["Kantoš David",0,0,0,3,0,1,0,0,0,0,0,0,0,0,0,0,0,0,0,0,0,3,0,1]
["Tobola Alexandr",0,0,0,2,-1,0.5,0,0,0,0,0,0,0,0,0,0,0,0,0,0,0,2,-1,0.5]
["Vidlička Kristián",0,0,0,0,0,0,0,0,0,2,-2,0.33333333333333331,0,0,0,0,0,0,0,0,0,2,-2,0.33333333333333331]
["Tokarský Filip",0,0,0,0,0,0,0,0,0,0,0,0,2,-1,0.5,0,0,0,0,0,0,2,-1,0.5]
["Horák Adam",0,0,0,0,0,0,0,0,0,0,0,0,2,-2,0,0,0,0,0,0,0,2,-2,0]
["Turek Jakub",0,0,0,0,0,0,0,0,0,0,0,0,0,0,0,1,-2,0,1,-2,0,2,-4,0]
["Veselý Kryštof",0,0,0,0,0,0,0,0,0,2,-1,0,0,0,0,0,0,0,0,0,0,2,-1,0]
["Pravda Adam",0,0,0,0,0,0,0,-3,0,0,0,0,2,-1,0.5,0,-3,0,0,0,0,2,-7,0.125]
["Caletka Petr",0,0,0,0,0,0,0,0,0,0,-3,0,2,-1,0.5,0,0,0,0,-4,0,2,-8,0.1111111111111111]
["Michalík Denis",0,0,0,0,0,0,2,-1,0,0,0,0,0,0,0,0,0,0,0,0,0,2,-1,0]
["Rybář Adam",0,0,0,0,0,0,2,-1,0.5,0,0,0,0,0,0,0,0,0,0,0,0,2,-1,0.5]
["Greé Daniel",0,0,0,0,-3,0,2,0,1,0,-2,0,0,0,0,0,0,0,0,0,0,2,-5,0.16666666666666666]
["Berka Ondřej",0,0,0,0,0,0,2,-1,0.5,0,0,0,0,0,0,0,0,0,0,0,0,2,-1,0.5]
["Buranyč Filip",0,0,0,0,0,0,0,0,0,0,0,0,0,0,0,2,-1,0.5,0,0,0,2,-1,0.5]
["Šineider Libor",0,0,0,0,0,0,0,0,0,1,-3,0,0,0,0,0,0,0,0,0,0,1,-3,0]
["Tomek Vojtěch",0,0,0,0,0,0,0,0,0,0,0,0,0,0,0,0,0,0,1,-2,0,1,-2,0]
["Hrubý Jan",0,0,0,0,0,0,0,0,0,0,0,0,0,0,0,0,0,0,1,-2,0.33333333333333331,1,-2,0.33333333333333331]
["Nejtek Martin",0,0,0,0,0,0,0,0,0,1,-2,0,0,0,0,0,0,0,0,0,0,1,-2,0]
["Mohyla Michal",0,0,0,0,0,0,0,0,0,0,0,0,0,0,0,0,0,0,1,-2,0.33333333333333331,1,-2,0.33333333333333331]
["Malcová Sabrina",0,0,0,0,0,0,0,0,0,0,0,0,0,0,0,0,-3,0,1,-2,0,1,-5,0]
["Coufal David",0,0,0,0,0,0,0,0,0,0,0,0,0,0,0,0,0,0,1,-1,0.5,1,-1,0.5]
["Matúšek Jakub",0,0,0,0,0,0,0,0,0,0,0,0,0,0,0,1,-2,0,0,0,0,1,-2,0]
["Pavlík Lukáš",0,0,0,0,0,0,0,0,0,0,0,0,0,0,0,0,0,0,1,1,0,1,1,0]
["Kobeljaková Carolina",0,0,0,0,0,0,0,0,0,0,0,0,0,0,0,1,-2,0,0,0,0,1,-2,0]
["Hrubá Hanna",0,0,0,0,0,0,0,0,0,0,0,0,0,0,0,0,0,0,1,-2,0,1,-2,0]
["Křenková Marie",0,0,0,0,0,0,0,0,0,0,0,0,0,0,0,1,-2,0,0,0,0,1,-2,0]
["Kukelka  Filip",0,0,0,0,0,0,1,-1,0,0,0,0,0,0,0,0,0,0,0,0,0,1,-1,0]
["Machálek Lukáš",0,0,0,0,0,0,1,-3,0,0,0,0,0,0,0,0,0,0,0,0,0,1,-3,0]
["Jakšik Petr",0,0,0,0,0,0,0,0,0,0,0,0,0,0,0,0,0,0,1,-2,0,1,-2,0]
["Kobeljaková Barbora",0,0,0,0,0,0,0,0,0,0,0,0,0,0,0,1,-2,0,0,0,0,1,-2,0]
["Strachota Vojtěch",0,0,0,0,0,0,0,0,0,0,0,0,1,-2,0,0,0,0,0,0,0,1,-2,0]
["Malaczynski Alex",0,0,0,0,-3,0,0,0,0,0,0,0,0,0,0,0,0,0,0,0,0,0,-3,0]
["Večeřa Adam",0,0,0,0,0,0,0,-2,0,0,0,0,0,-3,0,0,0,0,0,-3,0,0,-8,0]
["Štaffa Ondřej",0,0,0,0,0,0,0,0,0,0,0,0,0,0,0,0,0,0,0,-3,0,0,-3,0]
["Gregorczyk Šimon",0,0,0,0,0,0,0,0,0,0,0,0,0,-3,0,0,0,0,0,0,0,0,-3,0]
["Dej František",0,0,0,0,-3,0,0,-4,0,0,-3,0,0,0,0,0,0,0,0,0,0,0,-10,0]
["Baran David",0,0,0,0,-3,0,0,0,0,0,0,0,0,0,0,0,0,0,0,0,0,0,-3,0]
["Diviš Jiří",0,0,0,0,-2,0,0,0,0,0,0,0,0,0,0,0,0,0,0,0,0,0,-2,0]
["Gibej Daniel",0,0,0,0,0,0,0,0,0,0,0,0,0,0,0,0,0,0,0,-4,0,0,-4,0]
["Bedáčková Denisa",0,0,0,0,-4,0,0,0,0,0,0,0,0,0,0,0,0,0,0,0,0,0,-4,0]
["Tokarský Robin",0,0,0,0,0,0,0,0,0,0,0,0,0,-4,0,0,0,0,0,0,0,0,-4,0]
["Řeha Daniel",0,0,0,0,-3,0,0,-3,0,0,-3,0,0,-3,0,0,0,0,0,-2,0,0,-14,0]
["Klemens Daniel",0,0,0,0,0,0,0,-3,0,0,0,0,0,0,0,0,0,0,0,0,0,0,-3,0]
["Bencúr Eliáš",0,0,0,0,0,0,0,0,0,0,0,0,0,0,0,0,0,0,0,-3,0,0,-3,0]
[" ",0,0,0,0,0,0,0,0,0,0,0,0,0,0,0,0,0,0,0,0,0,0,0,0]
["Husarik Jakub",0,0,0,0,0,0,0,0,0,0,0,0,0,0,0,0,-4,0,0,-3,0,0,-7,0]
["Nachtmannová Radka",0,0,0,0,0,0,0,0,0,0,0,0,0,-3,0,0,0,0,0,0,0,0,-3,0]
["Koryčan Michal",0,0,0,0,0,0,0,0,0,0,-3,0,0,0,0,0,0,0,0,0,0,0,-3,0]
["Dušenka Michael",0,0,0,0,0,0,0,0,0,0,0,0,0,-3,0,0,0,0,0,0,0,0,-3,0]

{"sheet":"Seřazení Knt","index":3,"n_rows":121,"n_cols":4,"rows_kept":121,"cut":false,"hidden":false,"merged":[]}
[{"$f":"Knt!A5","v":"Závodník"},"Celkem Bodů","Celkem Součet z RZB","Celkem Součet z PZB"]
[{"$f":"IF(Knt!A6=\" \",0,Knt!A6)","v":"Konvičný Dominik"},{"$f":"IF(ISERR(GETPIVOTDATA(\"Bodů\",Knt!$A$3,\"příjmení a jméno\",$A2)),-1,GETPIVOTDATA(\"Bodů\",Knt!$A$3,\"příjmení a jméno\",$A2))","v":31},{"$f":"IF(ISERR(GETPIVOTDATA(\"Součet z RZB\",Knt!$A$3,\"příjmení a jméno\",$A2)),0,GETPIVOTDATA(\"Součet z RZB\",Knt!$A$3,\"příjmení a jméno\",$A2))","v":13},{"$f":"IF(ISERR(GETPIVOTDATA(\"Součet z PZB\",Knt!$A$3,\"příjmení a jméno\",$A2)),0,GETPIVOTDATA(\"Součet z PZB\",Knt!$A$3,\"příjmení a jméno\",$A2))","v":5.333333333333333}]
[{"$f":"IF(Knt!A7=\" \",0,Knt!A7)","v":"Cagala Šimon"},{"$f":"IF(ISERR(GETPIVOTDATA(\"Bodů\",Knt!$A$3,\"příjmení a jméno\",$A3)),-1,GETPIVOTDATA(\"Bodů\",Knt!$A$3,\"příjmení a jméno\",$A3))","v":27},{"$f":"IF(ISERR(GETPIVOTDATA(\"Součet z RZB\",Knt!$A$3,\"příjmení a jméno\",$A3)),0,GETPIVOTDATA(\"Součet z RZB\",Knt!$A$3,\"příjmení a jméno\",$A3))","v":10},{"$f":"IF(ISERR(GETPIVOTDATA(\"Součet z PZB\",Knt!$A$3,\"příjmení a jméno\",$A3)),0,GETPIVOTDATA(\"Součet z PZB\",Knt!$A$3,\"příjmení a jméno\",$A3))","v":3.5}]
[{"$f":"IF(Knt!A8=\" \",0,Knt!A8)","v":"Přibyl Jakub"},{"$f":"IF(ISERR(GETPIVOTDATA(\"Bodů\",Knt!$A$3,\"příjmení a jméno\",$A4)),-1,GETPIVOTDATA(\"Bodů\",Knt!$A$3,\"příjmení a jméno\",$A4))","v":26},{"$f":"IF(ISERR(GETPIVOTDATA(\"Součet z RZB\",Knt!$A$3,\"příjmení a jméno\",$A4)),0,GETPIVOTDATA(\"Součet z RZB\",Knt!$A$3,\"příjmení a jméno\",$A4))","v":8},{"$f":"IF(ISERR(GETPIVOTDATA(\"Součet z PZB\",Knt!$A$3,\"příjmení a jméno\",$A4)),0,GETPIVOTDATA(\"Součet z PZB\",Knt!$A$3,\"příjmení a jméno\",$A4))","v":2.3333333333333335}]
[{"$f":"IF(Knt!A9=\" \",0,Knt!A9)","v":"Mikendová Tereza"},{"$f":"IF(ISERR(GETPIVOTDATA(\"Bodů\",Knt!$A$3,\"příjmení a jméno\",$A5)),-1,GETPIVOTDATA(\"Bodů\",Knt!$A$3,\"příjmení a jméno\",$A5))","v":25},{"$f":"IF(ISERR(GETPIVOTDATA(\"Součet z RZB\",Knt!$A$3,\"příjmení a jméno\",$A5)),0,GETPIVOTDATA(\"Součet z RZB\",Knt!$A$3,\"příjmení a jméno\",$A5))","v":11},{"$f":"IF(ISERR(GETPIVOTDATA(\"Součet z PZB\",Knt!$A$3,\"příjmení a jméno\",$A5)),0,GETPIVOTDATA(\"Součet z PZB\",Knt!$A$3,\"příjmení a jméno\",$A5))","v":0}]
[{"$f":"IF(Knt!A10=\" \",0,Knt!A10)","v":"Zach Matyáš"},{"$f":"IF(ISERR(GETPIVOTDATA(\"Bodů\",Knt!$A$3,\"příjmení a jméno\",$A6)),-1,GETPIVOTDATA(\"Bodů\",Knt!$A$3,\"příjmení a jméno\",$A6))","v":24},{"$f":"IF(ISERR(GETPIVOTDATA(\"Součet z RZB\",Knt!$A$3,\"příjmení a jméno\",$A6)),0,GETPIVOTDATA(\"Součet z RZB\",Knt!$A$3,\"příjmení a jméno\",$A6))","v":8},{"$f":"IF(ISERR(GETPIVOTDATA(\"Součet z PZB\",Knt!$A$3,\"příjmení a jméno\",$A6)),0,GETPIVOTDATA(\"Součet z PZB\",Knt!$A$3,\"příjmení a jméno\",$A6))","v":3.6666666666666665}]
[{"$f":"IF(Knt!A11=\" \",0,Knt!A11)","v":"Seibert Marian"},{"$f":"IF(ISERR(GETPIVOTDATA(\"Bodů\",Knt!$A$3,\"příjmení a jméno\",$A7)),-1,GETPIVOTDATA(\"Bodů\",Knt!$A$3,\"příjmení a jméno\",$A7))","v":24},{"$f":"IF(ISERR(GETPIVOTDATA(\"Součet z RZB\",Knt!$A$3,\"příjmení a jméno\",$A7)),0,GETPIVOTDATA(\"Součet z RZB\",Knt!$A$3,\"příjmení a jméno\",$A7))","v":8},{"$f":"IF(ISERR(GETPIVOTDATA(\"Součet z PZB\",Knt!$A$3,\"příjmení a jméno\",$A7)),0,GETPIVOTDATA(\"Součet z PZB\",Knt!$A$3,\"příjmení a jméno\",$A7))","v":3.6666666666666665}]
[{"$f":"IF(Knt!A14=\" \",0,Knt!A14)","v":"Kolář Daniel"},{"$f":"IF(ISERR(GETPIVOTDATA(\"Bodů\",Knt!$A$3,\"příjmení a jméno\",$A8)),-1,GETPIVOTDATA(\"Bodů\",Knt!$A$3,\"příjmení a jméno\",$A8))","v":23},{"$f":"IF(ISERR(GETPIVOTDATA(\"Součet z RZB\",Knt!$A$3,\"příjmení a jméno\",$A8)),0,GETPIVOTDATA(\"Součet z RZB\",Knt!$A$3,\"příjmení a jméno\",$A8))","v":8},{"$f":"IF(ISERR(GETPIVOTDATA(\"Součet z PZB\",Knt!$A$3,\"příjmení a jméno\",$A8)),0,GETPIVOTDATA(\"Součet z PZB\",Knt!$A$3,\"příjmení a jméno\",$A8))","v":2.6}]
[{"$f":"IF(Knt!A12=\" \",0,Knt!A12)","v":"Přibyl Jan"},{"$f":"IF(ISERR(GETPIVOTDATA(\"Bodů\",Knt!$A$3,\"příjmení a jméno\",$A9)),-1,GETPIVOTDATA(\"Bodů\",Knt!$A$3,\"příjmení a jméno\",$A9))","v":23},{"$f":"IF(ISERR(GETPIVOTDATA(\"Součet z RZB\",Knt!$A$3,\"příjmení a jméno\",$A9)),0,GETPIVOTDATA(\"Součet z RZB\",Knt!$A$3,\"příjmení a jméno\",$A9))","v":5},{"$f":"IF(ISERR(GETPIVOTDATA(\"Součet z PZB\",Knt!$A$3,\"příjmení a jméno\",$A9)),0,GETPIVOTDATA(\"Součet z PZB\",Knt!$A$3,\"příjmení a jméno\",$A9))","v":2.25}]
[{"$f":"IF(Knt!A13=\" \",0,Knt!A13)","v":"Freiwald Richard"},{"$f":"IF(ISERR(GETPIVOTDATA(\"Bodů\",Knt!$A$3,\"příjmení a jméno\",$A10)),-1,GETPIVOTDATA(\"Bodů\",Knt!$A$3,\"příjmení a jméno\",$A10))","v":23},{"$f":"IF(ISERR(GETPIVOTDATA(\"Součet z RZB\",Knt!$A$3,\"příjmení a jméno\",$A10)),0,GETPIVOTDATA(\"Součet z RZB\",Knt!$A$3,\"příjmení a jméno\",$A10))","v":4},{"$f":"IF(ISERR(GETPIVOTDATA(\"Součet z PZB\",Knt!$A$3,\"příjmení a jméno\",$A10)),0,GETPIVOTDATA(\"Součet z PZB\",Knt!$A$3,\"příjmení a jméno\",$A10))","v":1.5}]
[{"$f":"IF(Knt!A16=\" \",0,Knt!A16)","v":"Kožušník Vojtěch"},{"$f":"IF(ISERR(GETPIVOTDATA(\"Bodů\",Knt!$A$3,\"příjmení a jméno\",$A11)),-1,GETPIVOTDATA(\"Bodů\",Knt!$A$3,\"příjmení a jméno\",$A11))","v":22},{"$f":"IF(ISERR(GETPIVOTDATA(\"Součet z RZB\",Knt!$A$3,\"příjmení a jméno\",$A11)),0,GETPIVOTDATA(\"Součet z RZB\",Knt!$A$3,\"příjmení a jméno\",$A11))","v":6},{"$f":"IF(ISERR(GETPIVOTDATA(\"Součet z PZB\",Knt!$A$3,\"příjmení a jméno\",$A11)),0,GETPIVOTDATA(\"Součet z PZB\",Knt!$A$3,\"příjmení a jméno\",$A11))","v":2.5}]
[{"$f":"IF(Knt!A15=\" \",0,Knt!A15)","v":"Bortlíček Adam"},{"$f":"IF(ISERR(GETPIVOTDATA(\"Bodů\",Knt!$A$3,\"příjmení a jméno\",$A12)),-1,GETPIVOTDATA(\"Bodů\",Knt!$A$3,\"příjmení a jméno\",$A12))","v":22},{"$f":"IF(ISERR(GETPIVOTDATA(\"Součet z RZB\",Knt!$A$3,\"příjmení a jméno\",$A12)),0,GETPIVOTDATA(\"Součet z RZB\",Knt!$A$3,\"příjmení a jméno\",$A12))","v":4},{"$f":"IF(ISERR(GETPIVOTDATA(\"Součet z PZB\",Knt!$A$3,\"příjmení a jméno\",$A12)),0,GETPIVOTDATA(\"Součet z PZB\",Knt!$A$3,\"příjmení a jméno\",$A12))","v":1.6666666666666667}]
[{"$f":"IF(Knt!A17=\" \",0,Knt!A17)","v":"Čerchla Michal"},{"$f":"IF(ISERR(GETPIVOTDATA(\"Bodů\",Knt!$A$3,\"příjmení a jméno\",$A13)),-1,GETPIVOTDATA(\"Bodů\",Knt!$A$3,\"příjmení a jméno\",$A13))","v":19},{"$f":"IF(ISERR(GETPIVOTDATA(\"Součet z RZB\",Knt!$A$3,\"příjmení a jméno\",$A13)),0,GETPIVOTDATA(\"Součet z RZB\",Knt!$A$3,\"příjmení a jméno\",$A13))","v":7},{"$f":"IF(ISERR(GETPIVOTDATA(\"Součet z PZB\",Knt!$A$3,\"příjmení a jméno\",$A13)),0,GETPIVOTDATA(\"Součet z PZB\",Knt!$A$3,\"příjmení a jméno\",$A13))","v":3.3333333333333335}]
[{"$f":"IF(Knt!A18=\" \",0,Knt!A18)","v":"Neckář Matěj"},{"$f":"IF(ISERR(GETPIVOTDATA(\"Bodů\",Knt!$A$3,\"příjmení a jméno\",$A14)),-1,GETPIVOTDATA(\"Bodů\",Knt!$A$3,\"příjmení a jméno\",$A14))","v":19},{"$f":"IF(ISERR(GETPIVOTDATA(\"Součet z RZB\",Knt!$A$3,\"příjmení a jméno\",$A14)),0,GETPIVOTDATA(\"Součet z RZB\",Knt!$A$3,\"příjmení a jméno\",$A14))","v":7},{"$f":"IF(ISERR(GETPIVOTDATA(\"Součet z PZB\",Knt!$A$3,\"příjmení a jméno\",$A14)),0,GETPIVOTDATA(\"Součet z PZB\",Knt!$A$3,\"příjmení a jméno\",$A14))","v":3.3333333333333335}]
[{"$f":"IF(Knt!A19=\" \",0,Knt!A19)","v":"Pražák Tomáš"},{"$f":"IF(ISERR(GETPIVOTDATA(\"Bodů\",Knt!$A$3,\"příjmení a jméno\",$A15)),-1,GETPIVOTDATA(\"Bodů\",Knt!$A$3,\"příjmení a jméno\",$A15))","v":16},{"$f":"IF(ISERR(GETPIVOTDATA(\"Součet z RZB\",Knt!$A$3,\"příjmení a jméno\",$A15)),0,GETPIVOTDATA(\"Součet z RZB\",Knt!$A$3,\"příjmení a jméno\",$A15))","v":7},{"$f":"IF(ISERR(GETPIVOTDATA(\"Součet z PZB\",Knt!$A$3,\"příjmení a jméno\",$A15)),0,GETPIVOTDATA(\"Součet z PZB\",Knt!$A$3,\"příjmení a jméno\",$A15))","v":8}]
[{"$f":"IF(Knt!A20=\" \",0,Knt!A20)","v":"Baštinská Adéla"},{"$f":"IF(ISERR(GETPIVOTDATA(\"Bodů\",Knt!$A$3,\"příjmení a jméno\",$A16)),-1,GETPIVOTDATA(\"Bodů\",Knt!$A$3,\"příjmení a jméno\",$A16))","v":16},{"$f":"IF(ISERR(GETPIVOTDATA(\"Součet z RZB\",Knt!$A$3,\"příjmení a jméno\",$A16)),0,GETPIVOTDATA(\"Součet z RZB\",Knt!$A$3,\"příjmení a jméno\",$A16))","v":7},{"$f":"IF(ISERR(GETPIVOTDATA(\"Součet z PZB\",Knt!$A$3,\"příjmení a jméno\",$A16)),0,GETPIVOTDATA(\"Součet z PZB\",Knt!$A$3,\"příjmení a jméno\",$A16))","v":8}]
[{"$f":"IF(Knt!A21=\" \",0,Knt!A21)","v":"Kolář Vojtěch"},{"$f":"IF(ISERR(GETPIVOTDATA(\"Bodů\",Knt!$A$3,\"příjmení a jméno\",$A17)),-1,GETPIVOTDATA(\"Bodů\",Knt!$A$3,\"příjmení a jméno\",$A17))","v":16},{"$f":"IF(ISERR(GETPIVOTDATA(\"Součet z RZB\",Knt!$A$3,\"příjmení a jméno\",$A17)),0,GETPIVOTDATA(\"Součet z RZB\",Knt!$A$3,\"příjmení a jméno\",$A17))","v":0},{"$f":"IF(ISERR(GETPIVOTDATA(\"Součet z PZB\",Knt!$A$3,\"příjmení a jméno\",$A17)),0,GETPIVOTDATA(\"Součet z PZB\",Knt!$A$3,\"příjmení a jméno\",$A17))","v":1}]
[{"$f":"IF(Knt!A22=\" \",0,Knt!A22)","v":"Vykydal Tomáš"},{"$f":"IF(ISERR(GETPIVOTDATA(\"Bodů\",Knt!$A$3,\"příjmení a jméno\",$A18)),-1,GETPIVOTDATA(\"Bodů\",Knt!$A$3,\"příjmení a jméno\",$A18))","v":15},{"$f":"IF(ISERR(GETPIVOTDATA(\"Součet z RZB\",Knt!$A$3,\"příjmení a jméno\",$A18)),0,GETPIVOTDATA(\"Součet z RZB\",Knt!$A$3,\"příjmení a jméno\",$A18))","v":6},{"$f":"IF(ISERR(GETPIVOTDATA(\"Součet z PZB\",Knt!$A$3,\"příjmení a jméno\",$A18)),0,GETPIVOTDATA(\"Součet z PZB\",Knt!$A$3,\"příjmení a jméno\",$A18))","v":0}]
[{"$f":"IF(Knt!A23=\" \",0,Knt!A23)","v":"Hořín Matyáš"},{"$f":"IF(ISERR(GETPIVOTDATA(\"Bodů\",Knt!$A$3,\"příjmení a jméno\",$A19)),-1,GETPIVOTDATA(\"Bodů\",Knt!$A$3,\"příjmení a jméno\",$A19))","v":15},{"$f":"IF(ISERR(GETPIVOTDATA(\"Součet z RZB\",Knt!$A$3,\"příjmení a jméno\",$A19)),0,GETPIVOTDATA(\"Součet z RZB\",Knt!$A$3,\"příjmení a jméno\",$A19))","v":-4},{"$f":"IF(ISERR(GETPIVOTDATA(\"Součet z PZB\",Knt!$A$3,\"příjmení a jméno\",$A19)),0,GETPIVOTDATA(\"Součet z PZB\",Knt!$A$3,\"příjmení a jméno\",$A19))","v":0.63636363636363635}]
[{"$f":"IF(Knt!A27=\" \",0,Knt!A27)","v":"Šabacká Denisa"},{"$f":"IF(ISERR(GETPIVOTDATA(\"Bodů\",Knt!$A$3,\"příjmení a jméno\",$A20)),-1,GETPIVOTDATA(\"Bodů\",Knt!$A$3,\"příjmení a jméno\",$A20))","v":14},{"$f":"IF(ISERR(GETPIVOTDATA(\"Součet z RZB\",Knt!$A$3,\"příjmení a jméno\",$A20)),0,GETPIVOTDATA(\"Součet z RZB\",Knt!$A$3,\"příjmení a jméno\",$A20))","v":5},{"$f":"IF(ISERR(GETPIVOTDATA(\"Součet z PZB\",Knt!$A$3,\"příjmení a jméno\",$A20)),0,GETPIVOTDATA(\"Součet z PZB\",Knt!$A$3,\"příjmení a jméno\",$A20))","v":3.5}]
[{"$f":"IF(Knt!A26=\" \",0,Knt!A26)","v":"Končítek Kryštof"},{"$f":"IF(ISERR(GETPIVOTDATA(\"Bodů\",Knt!$A$3,\"příjmení a jméno\",$A21)),-1,GETPIVOTDATA(\"Bodů\",Knt!$A$3,\"příjmení a jméno\",$A21))","v":14},{"$f":"IF(ISERR(GETPIVOTDATA(\"Součet z RZB\",Knt!$A$3,\"příjmení a jméno\",$A21)),0,GETPIVOTDATA(\"Součet z RZB\",Knt!$A$3,\"příjmení a jméno\",$A21))","v":5},{"$f":"IF(ISERR(GETPIVOTDATA(\"Součet z PZB\",Knt!$A$3,\"příjmení a jméno\",$A21)),0,GETPIVOTDATA(\"Součet z PZB\",Knt!$A$3,\"příjmení a jméno\",$A21))","v":3.5}]
[{"$f":"IF(Knt!A24=\" \",0,Knt!A24)","v":"Macháček Matyáš"},{"$f":"IF(ISERR(GETPIVOTDATA(\"Bodů\",Knt!$A$3,\"příjmení a jméno\",$A22)),-1,GETPIVOTDATA(\"Bodů\",Knt!$A$3,\"příjmení a jméno\",$A22))","v":14},{"$f":"IF(ISERR(GETPIVOTDATA(\"Součet z RZB\",Knt!$A$3,\"příjmení a jméno\",$A22)),0,GETPIVOTDATA(\"Součet z RZB\",Knt!$A$3,\"příjmení a jméno\",$A22))","v":4},{"$f":"IF(ISERR(GETPIVOTDATA(\"Součet z PZB\",Knt!$A$3,\"příjmení a jméno\",$A22)),0,GETPIVOTDATA(\"Součet z PZB\",Knt!$A$3,\"příjmení a jméno\",$A22))","v":3}]
[{"$f":"IF(Knt!A25=\" \",0,Knt!A25)","v":"Papaj Tobiáš"},{"$f":"IF(ISERR(GETPIVOTDATA(\"Bodů\",Knt!$A$3,\"příjmení a jméno\",$A23)),-1,GETPIVOTDATA(\"Bodů\",Knt!$A$3,\"příjmení a jméno\",$A23))","v":14},{"$f":"IF(ISERR(GETPIVOTDATA(\"Součet z RZB\",Knt!$A$3,\"příjmení a jméno\",$A23)),0,GETPIVOTDATA(\"Součet z RZB\",Knt!$A$3,\"příjmení a jméno\",$A23))","v":-1},{"$f":"IF(ISERR(GETPIVOTDATA(\"Součet z PZB\",Knt!$A$3,\"příjmení a jméno\",$A23)),0,GETPIVOTDATA(\"Součet z PZB\",Knt!$A$3,\"příjmení a jméno\",$A23))","v":0.875}]
[{"$f":"IF(Knt!A29=\" \",0,Knt!A29)","v":"Košťálek Václav"},{"$f":"IF(ISERR(GETPIVOTDATA(\"Bodů\",Knt!$A$3,\"příjmení a jméno\",$A24)),-1,GETPIVOTDATA(\"Bodů\",Knt!$A$3,\"příjmení a jméno\",$A24))","v":13},{"$f":"IF(ISERR(GETPIVOTDATA(\"Součet z RZB\",Knt!$A$3,\"příjmení a jméno\",$A24)),0,GETPIVOTDATA(\"Součet z RZB\",Knt!$A$3,\"příjmení a jméno\",$A24))","v":7},{"$f":"IF(ISERR(GETPIVOTDATA(\"Součet z PZB\",Knt!$A$3,\"příjmení a jméno\",$A24)),0,GETPIVOTDATA(\"Součet z PZB\",Knt!$A$3,\"příjmení a jméno\",$A24))","v":0}]
[{"$f":"IF(Knt!A28=\" \",0,Knt!A28)","v":"Neuwirt Petr"},{"$f":"IF(ISERR(GETPIVOTDATA(\"Bodů\",Knt!$A$3,\"příjmení a jméno\",$A25)),-1,GETPIVOTDATA(\"Bodů\",Knt!$A$3,\"příjmení a jméno\",$A25))","v":13},{"$f":"IF(ISERR(GETPIVOTDATA(\"Součet z RZB\",Knt!$A$3,\"příjmení a jméno\",$A25)),0,GETPIVOTDATA(\"Součet z RZB\",Knt!$A$3,\"příjmení a jméno\",$A25))","v":-3},{"$f":"IF(ISERR(GETPIVOTDATA(\"Součet z PZB\",Knt!$A$3,\"příjmení a jméno\",$A25)),0,GETPIVOTDATA(\"Součet z PZB\",Knt!$A$3,\"příjmení a jméno\",$A25))","v":0.66666666666666663}]
[{"$f":"IF(Knt!A31=\" \",0,Knt!A31)","v":"Meixner Michal"},{"$f":"IF(ISERR(GETPIVOTDATA(\"Bodů\",Knt!$A$3,\"příjmení a jméno\",$A26)),-1,GETPIVOTDATA(\"Bodů\",Knt!$A$3,\"příjmení a jméno\",$A26))","v":12},{"$f":"IF(ISERR(GETPIVOTDATA(\"Součet z RZB\",Knt!$A$3,\"příjmení a jméno\",$A26)),0,GETPIVOTDATA(\"Součet z RZB\",Knt!$A$3,\"příjmení a jméno\",$A26))","v":6},{"$f":"IF(ISERR(GETPIVOTDATA(\"Součet z PZB\",Knt!$A$3,\"příjmení a jméno\",$A26)),0,GETPIVOTDATA(\"Součet z PZB\",Knt!$A$3,\"příjmení a jméno\",$A26))","v":0}]
[{"$f":"IF(Knt!A30=\" \",0,Knt!A30)","v":"Polák Matyáš"},{"$f":"IF(ISERR(GETPIVOTDATA(\"Bodů\",Knt!$A$3,\"příjmení a jméno\",$A27)),-1,GETPIVOTDATA(\"Bodů\",Knt!$A$3,\"příjmení a jméno\",$A27))","v":12},{"$f":"IF(ISERR(GETPIVOTDATA(\"Součet z RZB\",Knt!$A$3,\"příjmení a jméno\",$A27)),0,GETPIVOTDATA(\"Součet z RZB\",Knt!$A$3,\"příjmení a jméno\",$A27))","v":6},{"$f":"IF(ISERR(GETPIVOTDATA(\"Součet z PZB\",Knt!$A$3,\"příjmení a jméno\",$A27)),0,GETPIVOTDATA(\"Součet z PZB\",Knt!$A$3,\"příjmení a jméno\",$A27))","v":0}]
[{"$f":"IF(Knt!A36=\" \",0,Knt!A36)","v":"Vaculík Lukáš"},{"$f":"IF(ISERR(GETPIVOTDATA(\"Bodů\",Knt!$A$3,\"příjmení a jméno\",$A28)),-1,GETPIVOTDATA(\"Bodů\",Knt!$A$3,\"příjmení a jméno\",$A28))","v":12},{"$f":"IF(ISERR(GETPIVOTDATA(\"Součet z RZB\",Knt!$A$3,\"příjmení a jméno\",$A28)),0,GETPIVOTDATA(\"Součet z RZB\",Knt!$A$3,\"příjmení a jméno\",$A28))","v":5},{"$f":"IF(ISERR(GETPIVOTDATA(\"Součet z PZB\",Knt!$A$3,\"příjmení a jméno\",$A28)),0,GETPIVOTDATA(\"Součet z PZB\",Knt!$A$3,\"příjmení a jméno\",$A28))","v":6}]
[{"$f":"IF(Knt!A32=\" \",0,Knt!A32)","v":"Martináková  Stela"},{"$f":"IF(ISERR(GETPIVOTDATA(\"Bodů\",Knt!$A$3,\"příjmení a jméno\",$A29)),-1,GETPIVOTDATA(\"Bodů\",Knt!$A$3,\"příjmení a jméno\",$A29))","v":12},{"$f":"IF(ISERR(GETPIVOTDATA(\"Součet z RZB\",Knt!$A$3,\"příjmení a jméno\",$A29)),0,GETPIVOTDATA(\"Součet z RZB\",Knt!$A$3,\"příjmení a jméno\",$A29))","v":4},{"$f":"IF(ISERR(GETPIVOTDATA(\"Součet z PZB\",Knt!$A$3,\"příjmení a jméno\",$A29)),0,GETPIVOTDATA(\"Součet z PZB\",Knt!$A$3,\"příjmení a jméno\",$A29))","v":5}]
[{"$f":"IF(Knt!A34=\" \",0,Knt!A34)","v":"Mojík Filip"},{"$f":"IF(ISERR(GETPIVOTDATA(\"Bodů\",Knt!$A$3,\"příjmení a jméno\",$A30)),-1,GETPIVOTDATA(\"Bodů\",Knt!$A$3,\"příjmení a jméno\",$A30))","v":12},{"$f":"IF(ISERR(GETPIVOTDATA(\"Součet z RZB\",Knt!$A$3,\"příjmení a jméno\",$A30)),0,GETPIVOTDATA(\"Součet z RZB\",Knt!$A$3,\"příjmení a jméno\",$A30))","v":3},{"$f":"IF(ISERR(GETPIVOTDATA(\"Součet z PZB\",Knt!$A$3,\"příjmení a jméno\",$A30)),0,GETPIVOTDATA(\"Součet z PZB\",Knt!$A$3,\"příjmení a jméno\",$A30))","v":2.5}]
[{"$f":"IF(Knt!A33=\" \",0,Knt!A33)","v":"Kovalčík Martin"},{"$f":"IF(ISERR(GETPIVOTDATA(\"Bodů\",Knt!$A$3,\"příjmení a jméno\",$A31)),-1,GETPIVOTDATA(\"Bodů\",Knt!$A$3,\"příjmení a jméno\",$A31))","v":12},{"$f":"IF(ISERR(GETPIVOTDATA(\"Součet z RZB\",Knt!$A$3,\"příjmení a jméno\",$A31)),0,GETPIVOTDATA(\"Součet z RZB\",Knt!$A$3,\"příjmení a jméno\",$A31))","v":0},{"$f":"IF(ISERR(GETPIVOTDATA(\"Součet z PZB\",Knt!$A$3,\"příjmení a jméno\",$A31)),0,GETPIVOTDATA(\"Součet z PZB\",Knt!$A$3,\"příjmení a jméno\",$A31))","v":1}]
[{"$f":"IF(Knt!A35=\" \",0,Knt!A35)","v":"Bartoň Metoděj"},{"$f":"IF(ISERR(GETPIVOTDATA(\"Bodů\",Knt!$A$3,\"příjmení a jméno\",$A32)),-1,GETPIVOTDATA(\"Bodů\",Knt!$A$3,\"příjmení a jméno\",$A32))","v":12},{"$f":"IF(ISERR(GETPIVOTDATA(\"Součet z RZB\",Knt!$A$3,\"příjmení a jméno\",$A32)),0,GETPIVOTDATA(\"Součet z RZB\",Knt!$A$3,\"příjmení a jméno\",$A32))","v":-4},{"$f":"IF(ISERR(GETPIVOTDATA(\"Součet z PZB\",Knt!$A$3,\"příjmení a jméno\",$A32)),0,GETPIVOTDATA(\"Součet z PZB\",Knt!$A$3,\"příjmení a jméno\",$A32))","v":0.55555555555555558}]
[{"$f":"IF(Knt!A41=\" \",0,Knt!A41)","v":"Gurbovič Daniel"},{"$f":"IF(ISERR(GETPIVOTDATA(\"Bodů\",Knt!$A$3,\"příjmení a jméno\",$A33)),-1,GETPIVOTDATA(\"Bodů\",Knt!$A$3,\"příjmení a jméno\",$A33))","v":11},{"$f":"IF(ISERR(GETPIVOTDATA(\"Součet z RZB\",Knt!$A$3,\"příjmení a jméno\",$A33)),0,GETPIVOTDATA(\"Součet z RZB\",Knt!$A$3,\"příjmení a jméno\",$A33))","v":5},{"$f":"IF(ISERR(GETPIVOTDATA(\"Součet z PZB\",Knt!$A$3,\"příjmení a jméno\",$A33)),0,GETPIVOTDATA(\"Součet z PZB\",Knt!$A$3,\"příjmení a jméno\",$A33))","v":6}]
[{"$f":"IF(Knt!A39=\" \",0,Knt!A39)","v":"Zabek Matyáš"},{"$f":"IF(ISERR(GETPIVOTDATA(\"Bodů\",Knt!$A$3,\"příjmení a jméno\",$A34)),-1,GETPIVOTDATA(\"Bodů\",Knt!$A$3,\"příjmení a jméno\",$A34))","v":11},{"$f":"IF(ISERR(GETPIVOTDATA(\"Součet z RZB\",Knt!$A$3,\"příjmení a jméno\",$A34)),0,GETPIVOTDATA(\"Součet z RZB\",Knt!$A$3,\"příjmení a jméno\",$A34))","v":5},{"$f":"IF(ISERR(GETPIVOTDATA(\"Součet z PZB\",Knt!$A$3,\"příjmení a jméno\",$A34)),0,GETPIVOTDATA(\"Součet z PZB\",Knt!$A$3,\"příjmení a jméno\",$A34))","v":6}]
[{"$f":"IF(Knt!A40=\" \",0,Knt!A40)","v":"Košťálek Vojtěch"},{"$f":"IF(ISERR(GETPIVOTDATA(\"Bodů\",Knt!$A$3,\"příjmení a jméno\",$A35)),-1,GETPIVOTDATA(\"Bodů\",Knt!$A$3,\"příjmení a jméno\",$A35))","v":11},{"$f":"IF(ISERR(GETPIVOTDATA(\"Součet z RZB\",Knt!$A$3,\"příjmení a jméno\",$A35)),0,GETPIVOTDATA(\"Součet z RZB\",Knt!$A$3,\"příjmení a jméno\",$A35))","v":5},{"$f":"IF(ISERR(GETPIVOTDATA(\"Součet z PZB\",Knt!$A$3,\"příjmení a jméno\",$A35)),0,GETPIVOTDATA(\"Součet z PZB\",Knt!$A$3,\"příjmení a jméno\",$A35))","v":0}]
[{"$f":"IF(Knt!A37=\" \",0,Knt!A37)","v":"Boháč Adam"},{"$f":"IF(ISERR(GETPIVOTDATA(\"Bodů\",Knt!$A$3,\"příjmení a jméno\",$A36)),-1,GETPIVOTDATA(\"Bodů\",Knt!$A$3,\"příjmení a jméno\",$A36))","v":11},{"$f":"IF(ISERR(GETPIVOTDATA(\"Součet z RZB\",Knt!$A$3,\"příjmení a jméno\",$A36)),0,GETPIVOTDATA(\"Součet z RZB\",Knt!$A$3,\"příjmení a jméno\",$A36))","v":3},{"$f":"IF(ISERR(GETPIVOTDATA(\"Součet z PZB\",Knt!$A$3,\"příjmení a jméno\",$A36)),0,GETPIVOTDATA(\"Součet z PZB\",Knt!$A$3,\"příjmení a jméno\",$A36))","v":2}]
[{"$f":"IF(Knt!A38=\" \",0,Knt!A38)","v":"Huvar Jakub"},{"$f":"IF(ISERR(GETPIVOTDATA(\"Bodů\",Knt!$A$3,\"příjmení a jméno\",$A37)),-1,GETPIVOTDATA(\"Bodů\",Knt!$A$3,\"příjmení a jméno\",$A37))","v":11},{"$f":"IF(ISERR(GETPIVOTDATA(\"Součet z RZB\",Knt!$A$3,\"příjmení a jméno\",$A37)),0,GETPIVOTDATA(\"Součet z RZB\",Knt!$A$3,\"příjmení a jméno\",$A37))","v":-3},{"$f":"IF(ISERR(GETPIVOTDATA(\"Součet z PZB\",Knt!$A$3,\"příjmení a jméno\",$A37)),0,GETPIVOTDATA(\"Součet z PZB\",Knt!$A$3,\"příjmení a jméno\",$A37))","v":0.625}]
[{"$f":"IF(Knt!A42=\" \",0,Knt!A42)","v":"Jakšik Daniel"},{"$f":"IF(ISERR(GETPIVOTDATA(\"Bodů\",Knt!$A$3,\"příjmení a jméno\",$A38)),-1,GETPIVOTDATA(\"Bodů\",Knt!$A$3,\"příjmení a jméno\",$A38))","v":10},{"$f":"IF(ISERR(GETPIVOTDATA(\"Součet z RZB\",Knt!$A$3,\"příjmení a jméno\",$A38)),0,GETPIVOTDATA(\"Součet z RZB\",Knt!$A$3,\"příjmení a jméno\",$A38))","v":4},{"$f":"IF(ISERR(GETPIVOTDATA(\"Součet z PZB\",Knt!$A$3,\"příjmení a jméno\",$A38)),0,GETPIVOTDATA(\"Součet z PZB\",Knt!$A$3,\"příjmení a jméno\",$A38))","v":5}]
[{"$f":"IF(Knt!A44=\" \",0,Knt!A44)","v":"Kuzník Tadeáš"},{"$f":"IF(ISERR(GETPIVOTDATA(\"Bodů\",Knt!$A$3,\"příjmení a jméno\",$A39)),-1,GETPIVOTDATA(\"Bodů\",Knt!$A$3,\"příjmení a jméno\",$A39))","v":10},{"$f":"IF(ISERR(GETPIVOTDATA(\"Součet z RZB\",Knt!$A$3,\"příjmení a jméno\",$A39)),0,GETPIVOTDATA(\"Součet z RZB\",Knt!$A$3,\"příjmení a jméno\",$A39))","v":4},{"$f":"IF(ISERR(GETPIVOTDATA(\"Součet z PZB\",Knt!$A$3,\"příjmení a jméno\",$A39)),0,GETPIVOTDATA(\"Součet z PZB\",Knt!$A$3,\"příjmení a jméno\",$A39))","v":5}]
[{"$f":"IF(Knt!A46=\" \",0,Knt!A46)","v":"Král Miroslav"},{"$f":"IF(ISERR(GETPIVOTDATA(\"Bodů\",Knt!$A$3,\"příjmení a jméno\",$A40)),-1,GETPIVOTDATA(\"Bodů\",Knt!$A$3,\"příjmení a jméno\",$A40))","v":10},{"$f":"IF(ISERR(GETPIVOTDATA(\"Součet z RZB\",Knt!$A$3,\"příjmení a jméno\",$A40)),0,GETPIVOTDATA(\"Součet z RZB\",Knt!$A$3,\"příjmení a jméno\",$A40))","v":4},{"$f":"IF(ISERR(GETPIVOTDATA(\"Součet z PZB\",Knt!$A$3,\"příjmení a jméno\",$A40)),0,GETPIVOTDATA(\"Součet z PZB\",Knt!$A$3,\"příjmení a jméno\",$A40))","v":0}]
[{"$f":"IF(Knt!A47=\" \",0,Knt!A47)","v":"Huvar Jan"},{"$f":"IF(ISERR(GETPIVOTDATA(\"Bodů\",Knt!$A$3,\"příjmení a jméno\",$A41)),-1,GETPIVOTDATA(\"Bodů\",Knt!$A$3,\"příjmení a jméno\",$A41))","v":10},{"$f":"IF(ISERR(GETPIVOTDATA(\"Součet z RZB\",Knt!$A$3,\"příjmení a jméno\",$A41)),0,GETPIVOTDATA(\"Součet z RZB\",Knt!$A$3,\"příjmení a jméno\",$A41))","v":4},{"$f":"IF(ISERR(GETPIVOTDATA(\"Součet z PZB\",Knt!$A$3,\"příjmení a jméno\",$A41)),0,GETPIVOTDATA(\"Součet z PZB\",Knt!$A$3,\"příjmení a jméno\",$A41))","v":0}]
[{"$f":"IF(Knt!A43=\" \",0,Knt!A43)","v":"Motyčka Lukáš"},{"$f":"IF(ISERR(GETPIVOTDATA(\"Bodů\",Knt!$A$3,\"příjmení a jméno\",$A42)),-1,GETPIVOTDATA(\"Bodů\",Knt!$A$3,\"příjmení a jméno\",$A42))","v":10},{"$f":"IF(ISERR(GETPIVOTDATA(\"Součet z RZB\",Knt!$A$3,\"příjmení a jméno\",$A42)),0,GETPIVOTDATA(\"Součet z RZB\",Knt!$A$3,\"příjmení a jméno\",$A42))","v":1},{"$f":"IF(ISERR(GETPIVOTDATA(\"Součet z PZB\",Knt!$A$3,\"příjmení a jméno\",$A42)),0,GETPIVOTDATA(\"Součet z PZB\",Knt!$A$3,\"příjmení a jméno\",$A42))","v":1.3333333333333333}]
[{"$f":"IF(Knt!A45=\" \",0,Knt!A45)","v":"Ryška Václav"},{"$f":"IF(ISERR(GETPIVOTDATA(\"Bodů\",Knt!$A$3,\"příjmení a jméno\",$A43)),-1,GETPIVOTDATA(\"Bodů\",Knt!$A$3,\"příjmení a jméno\",$A43))","v":10},{"$f":"IF(ISERR(GETPIVOTDATA(\"Součet z RZB\",Knt!$A$3,\"příjmení a jméno\",$A43)),0,GETPIVOTDATA(\"Součet z RZB\",Knt!$A$3,\"příjmení a jméno\",$A43))","v":0},{"$f":"IF(ISERR(GETPIVOTDATA(\"Součet z PZB\",Knt!$A$3,\"příjmení a jméno\",$A43)),0,GETPIVOTDATA(\"Součet z PZB\",Knt!$A$3,\"příjmení a jméno\",$A43))","v":1}]
[{"$f":"IF(Knt!A48=\" \",0,Knt!A48)","v":"Hroch  Jakub"},{"$f":"IF(ISERR(GETPIVOTDATA(\"Bodů\",Knt!$A$3,\"příjmení a jméno\",$A44)),-1,GETPIVOTDATA(\"Bodů\",Knt!$A$3,\"příjmení a jméno\",$A44))","v":10},{"$f":"IF(ISERR(GETPIVOTDATA(\"Součet z RZB\",Knt!$A$3,\"příjmení a jméno\",$A44)),0,GETPIVOTDATA(\"Součet z RZB\",Knt!$A$3,\"příjmení a jméno\",$A44))","v":-6},{"$f":"IF(ISERR(GETPIVOTDATA(\"Součet z PZB\",Knt!$A$3,\"příjmení a jméno\",$A44)),0,GETPIVOTDATA(\"Součet z PZB\",Knt!$A$3,\"příjmení a jméno\",$A44))","v":0.45454545454545453}]
[{"$f":"IF(Knt!A53=\" \",0,Knt!A53)","v":"Beutel David"},{"$f":"IF(ISERR(GETPIVOTDATA(\"Bodů\",Knt!$A$3,\"příjmení a jméno\",$A45)),-1,GETPIVOTDATA(\"Bodů\",Knt!$A$3,\"příjmení a jméno\",$A45))","v":9},{"$f":"IF(ISERR(GETPIVOTDATA(\"Součet z RZB\",Knt!$A$3,\"příjmení a jméno\",$A45)),0,GETPIVOTDATA(\"Součet z RZB\",Knt!$A$3,\"příjmení a jméno\",$A45))","v":6},{"$f":"IF(ISERR(GETPIVOTDATA(\"Součet z PZB\",Knt!$A$3,\"příjmení a jméno\",$A45)),0,GETPIVOTDATA(\"Součet z PZB\",Knt!$A$3,\"příjmení a jméno\",$A45))","v":0}]
[{"$f":"IF(Knt!A52=\" \",0,Knt!A52)","v":"Turčínek Tomáš"},{"$f":"IF(ISERR(GETPIVOTDATA(\"Bodů\",Knt!$A$3,\"příjmení a jméno\",$A46)),-1,GETPIVOTDATA(\"Bodů\",Knt!$A$3,\"příjmení a jméno\",$A46))","v":9},{"$f":"IF(ISERR(GETPIVOTDATA(\"Součet z RZB\",Knt!$A$3,\"příjmení a jméno\",$A46)),0,GETPIVOTDATA(\"Součet z RZB\",Knt!$A$3,\"příjmení a jméno\",$A46))","v":4},{"$f":"IF(ISERR(GETPIVOTDATA(\"Součet z PZB\",Knt!$A$3,\"příjmení a jméno\",$A46)),0,GETPIVOTDATA(\"Součet z PZB\",Knt!$A$3,\"příjmení a jméno\",$A46))","v":5}]
[{"$f":"IF(Knt!A54=\" \",0,Knt!A54)","v":"Částečka Filip"},{"$f":"IF(ISERR(GETPIVOTDATA(\"Bodů\",Knt!$A$3,\"příjmení a jméno\",$A47)),-1,GETPIVOTDATA(\"Bodů\",Knt!$A$3,\"příjmení a jméno\",$A47))","v":9},{"$f":"IF(ISERR(GETPIVOTDATA(\"Součet z RZB\",Knt!$A$3,\"příjmení a jméno\",$A47)),0,GETPIVOTDATA(\"Součet z RZB\",Knt!$A$3,\"příjmení a jméno\",$A47))","v":3},{"$f":"IF(ISERR(GETPIVOTDATA(\"Součet z PZB\",Knt!$A$3,\"příjmení a jméno\",$A47)),0,GETPIVOTDATA(\"Součet z PZB\",Knt!$A$3,\"příjmení a jméno\",$A47))","v":4}]
[{"$f":"IF(Knt!A55=\" \",0,Knt!A55)","v":"Kuncová Viktorie"},{"$f":"IF(ISERR(GETPIVOTDATA(\"Bodů\",Knt!$A$3,\"příjmení a jméno\",$A48)),-1,GETPIVOTDATA(\"Bodů\",Knt!$A$3,\"příjmení a jméno\",$A48))","v":9},{"$f":"IF(ISERR(GETPIVOTDATA(\"Součet z RZB\",Knt!$A$3,\"příjmení a jméno\",$A48)),0,GETPIVOTDATA(\"Součet z RZB\",Knt!$A$3,\"příjmení a jméno\",$A48))","v":3},{"$f":"IF(ISERR(GETPIVOTDATA(\"Součet z PZB\",Knt!$A$3,\"příjmení a jméno\",$A48)),0,GETPIVOTDATA(\"Součet z PZB\",Knt!$A$3,\"příjmení a jméno\",$A48))","v":4}]
[{"$f":"IF(Knt!A49=\" \",0,Knt!A49)","v":"Kajfosz Kryštof"},{"$f":"IF(ISERR(GETPIVOTDATA(\"Bodů\",Knt!$A$3,\"příjmení a jméno\",$A49)),-1,GETPIVOTDATA(\"Bodů\",Knt!$A$3,\"příjmení a jméno\",$A49))","v":9},{"$f":"IF(ISERR(GETPIVOTDATA(\"Součet z RZB\",Knt!$A$3,\"příjmení a jméno\",$A49)),0,GETPIVOTDATA(\"Součet z RZB\",Knt!$A$3,\"příjmení a jméno\",$A49))","v":2},{"$f":"IF(ISERR(GETPIVOTDATA(\"Součet z PZB\",Knt!$A$3,\"příjmení a jméno\",$A49)),0,GETPIVOTDATA(\"Součet z PZB\",Knt!$A$3,\"příjmení a jméno\",$A49))","v":3}]
[{"$f":"IF(Knt!A50=\" \",0,Knt!A50)","v":"Škoda Vojtěch"},{"$f":"IF(ISERR(GETPIVOTDATA(\"Bodů\",Knt!$A$3,\"příjmení a jméno\",$A50)),-1,GETPIVOTDATA(\"Bodů\",Knt!$A$3,\"příjmení a jméno\",$A50))","v":9},{"$f":"IF(ISERR(GETPIVOTDATA(\"Součet z RZB\",Knt!$A$3,\"příjmení a jméno\",$A50)),0,GETPIVOTDATA(\"Součet z RZB\",Knt!$A$3,\"příjmení a jméno\",$A50))","v":0},{"$f":"IF(ISERR(GETPIVOTDATA(\"Součet z PZB\",Knt!$A$3,\"příjmení a jméno\",$A50)),0,GETPIVOTDATA(\"Součet z PZB\",Knt!$A$3,\"příjmení a jméno\",$A50))","v":1}]
[{"$f":"IF(Knt!A51=\" \",0,Knt!A51)","v":"Čerchlová Markéta"},{"$f":"IF(ISERR(GETPIVOTDATA(\"Bodů\",Knt!$A$3,\"příjmení a jméno\",$A51)),-1,GETPIVOTDATA(\"Bodů\",Knt!$A$3,\"příjmení a jméno\",$A51))","v":9},{"$f":"IF(ISERR(GETPIVOTDATA(\"Součet z RZB\",Knt!$A$3,\"příjmení a jméno\",$A51)),0,GETPIVOTDATA(\"Součet z RZB\",Knt!$A$3,\"příjmení a jméno\",$A51))","v":-4},{"$f":"IF(ISERR(GETPIVOTDATA(\"Součet z PZB\",Knt!$A$3,\"příjmení a jméno\",$A51)),0,GETPIVOTDATA(\"Součet z PZB\",Knt!$A$3,\"příjmení a jméno\",$A51))","v":0.33333333333333331}]
[{"$f":"IF(Knt!A58=\" \",0,Knt!A58)","v":"Jakubec Lukáš"},{"$f":"IF(ISERR(GETPIVOTDATA(\"Bodů\",Knt!$A$3,\"příjmení a jméno\",$A52)),-1,GETPIVOTDATA(\"Bodů\",Knt!$A$3,\"příjmení a jméno\",$A52))","v":8},{"$f":"IF(ISERR(GETPIVOTDATA(\"Součet z RZB\",Knt!$A$3,\"příjmení a jméno\",$A52)),0,GETPIVOTDATA(\"Součet z RZB\",Knt!$A$3,\"příjmení a jméno\",$A52))","v":2},{"$f":"IF(ISERR(GETPIVOTDATA(\"Součet z PZB\",Knt!$A$3,\"příjmení a jméno\",$A52)),0,GETPIVOTDATA(\"Součet z PZB\",Knt!$A$3,\"příjmení a jméno\",$A52))","v":3}]
[{"$f":"IF(Knt!A56=\" \",0,Knt!A56)","v":"Kuželová Dominika"},{"$f":"IF(ISERR(GETPIVOTDATA(\"Bodů\",Knt!$A$3,\"příjmení a jméno\",$A53)),-1,GETPIVOTDATA(\"Bodů\",Knt!$A$3,\"příjmení a jméno\",$A53))","v":8},{"$f":"IF(ISERR(GETPIVOTDATA(\"Součet z RZB\",Knt!$A$3,\"příjmení a jméno\",$A53)),0,GETPIVOTDATA(\"Součet z RZB\",Knt!$A$3,\"příjmení a jméno\",$A53))","v":0},{"$f":"IF(ISERR(GETPIVOTDATA(\"Součet z PZB\",Knt!$A$3,\"příjmení a jméno\",$A53)),0,GETPIVOTDATA(\"Součet z PZB\",Knt!$A$3,\"příjmení a jméno\",$A53))","v":1}]
[{"$f":"IF(Knt!A57=\" \",0,Knt!A57)","v":"Škuta Otakar"},{"$f":"IF(ISERR(GETPIVOTDATA(\"Bodů\",Knt!$A$3,\"příjmení a jméno\",$A54)),-1,GETPIVOTDATA(\"Bodů\",Knt!$A$3,\"příjmení a jméno\",$A54))","v":8},{"$f":"IF(ISERR(GETPIVOTDATA(\"Součet z RZB\",Knt!$A$3,\"příjmení a jméno\",$A54)),0,GETPIVOTDATA(\"Součet z RZB\",Knt!$A$3,\"příjmení a jméno\",$A54))","v":-3},{"$f":"IF(ISERR(GETPIVOTDATA(\"Součet z PZB\",Knt!$A$3,\"příjmení a jméno\",$A54)),0,GETPIVOTDATA(\"Součet z PZB\",Knt!$A$3,\"příjmení a jméno\",$A54))","v":0.25}]
[{"$f":"IF(Knt!A59=\" \",0,Knt!A59)","v":"Čebík Filip"},{"$f":"IF(ISERR(GETPIVOTDATA(\"Bodů\",Knt!$A$3,\"příjmení a jméno\",$A55)),-1,GETPIVOTDATA(\"Bodů\",Knt!$A$3,\"příjmení a jméno\",$A55))","v":7},{"$f":"IF(ISERR(GETPIVOTDATA(\"Součet z RZB\",Knt!$A$3,\"příjmení a jméno\",$A55)),0,GETPIVOTDATA(\"Součet z RZB\",Knt!$A$3,\"příjmení a jméno\",$A55))","v":4},{"$f":"IF(ISERR(GETPIVOTDATA(\"Součet z PZB\",Knt!$A$3,\"příjmení a jméno\",$A55)),0,GETPIVOTDATA(\"Součet z PZB\",Knt!$A$3,\"příjmení a jméno\",$A55))","v":0}]
[{"$f":"IF(Knt!A60=\" \",0,Knt!A60)","v":"Malaczynski Filip"},{"$f":"IF(ISERR(GETPIVOTDATA(\"Bodů\",Knt!$A$3,\"příjmení a jméno\",$A56)),-1,GETPIVOTDATA(\"Bodů\",Knt!$A$3,\"příjmení a jméno\",$A56))","v":7},{"$f":"IF(ISERR(GETPIVOTDATA(\"Součet z RZB\",Knt!$A$3,\"příjmení a jméno\",$A56)),0,GETPIVOTDATA(\"Součet z RZB\",Knt!$A$3,\"příjmení a jméno\",$A56))","v":4},{"$f":"IF(ISERR(GETPIVOTDATA(\"Součet z PZB\",Knt!$A$3,\"příjmení a jméno\",$A56)),0,GETPIVOTDATA(\"Součet z PZB\",Knt!$A$3,\"příjmení a jméno\",$A56))","v":0}]
[{"$f":"IF(Knt!A62=\" \",0,Knt!A62)","v":"Žák Pavel"},{"$f":"IF(ISERR(GETPIVOTDATA(\"Bodů\",Knt!$A$3,\"příjmení a jméno\",$A57)),-1,GETPIVOTDATA(\"Bodů\",Knt!$A$3,\"příjmení a jméno\",$A57))","v":7},{"$f":"IF(ISERR(GETPIVOTDATA(\"Součet z RZB\",Knt!$A$3,\"příjmení a jméno\",$A57)),0,GETPIVOTDATA(\"Součet z RZB\",Knt!$A$3,\"příjmení a jméno\",$A57))","v":4},{"$f":"IF(ISERR(GETPIVOTDATA(\"Součet z PZB\",Knt!$A$3,\"příjmení a jméno\",$A57)),0,GETPIVOTDATA(\"Součet z PZB\",Knt!$A$3,\"příjmení a jméno\",$A57))","v":0}]
[{"$f":"IF(Knt!A61=\" \",0,Knt!A61)","v":"Matýsek Jan"},{"$f":"IF(ISERR(GETPIVOTDATA(\"Bodů\",Knt!$A$3,\"příjmení a jméno\",$A58)),-1,GETPIVOTDATA(\"Bodů\",Knt!$A$3,\"příjmení a jméno\",$A58))","v":7},{"$f":"IF(ISERR(GETPIVOTDATA(\"Součet z RZB\",Knt!$A$3,\"příjmení a jméno\",$A58)),0,GETPIVOTDATA(\"Součet z RZB\",Knt!$A$3,\"příjmení a jméno\",$A58))","v":2},{"$f":"IF(ISERR(GETPIVOTDATA(\"Součet z PZB\",Knt!$A$3,\"příjmení a jméno\",$A58)),0,GETPIVOTDATA(\"Součet z PZB\",Knt!$A$3,\"příjmení a jméno\",$A58))","v":3}]
[{"$f":"IF(Knt!A63=\" \",0,Knt!A63)","v":"Vavřina Viktor"},{"$f":"IF(ISERR(GETPIVOTDATA(\"Bodů\",Knt!$A$3,\"příjmení a jméno\",$A59)),-1,GETPIVOTDATA(\"Bodů\",Knt!$A$3,\"příjmení a jméno\",$A59))","v":7},{"$f":"IF(ISERR(GETPIVOTDATA(\"Součet z RZB\",Knt!$A$3,\"příjmení a jméno\",$A59)),0,GETPIVOTDATA(\"Součet z RZB\",Knt!$A$3,\"příjmení a jméno\",$A59))","v":2},{"$f":"IF(ISERR(GETPIVOTDATA(\"Součet z PZB\",Knt!$A$3,\"příjmení a jméno\",$A59)),0,GETPIVOTDATA(\"Součet z PZB\",Knt!$A$3,\"příjmení a jméno\",$A59))","v":3}]
[{"$f":"IF(Knt!A64=\" \",0,Knt!A64)","v":"Mlčák Jan"},{"$f":"IF(ISERR(GETPIVOTDATA(\"Bodů\",Knt!$A$3,\"příjmení a jméno\",$A60)),-1,GETPIVOTDATA(\"Bodů\",Knt!$A$3,\"příjmení a jméno\",$A60))","v":7},{"$f":"IF(ISERR(GETPIVOTDATA(\"Součet z RZB\",Knt!$A$3,\"příjmení a jméno\",$A60)),0,GETPIVOTDATA(\"Součet z RZB\",Knt!$A$3,\"příjmení a jméno\",$A60))","v":1},{"$f":"IF(ISERR(GETPIVOTDATA(\"Součet z PZB\",Knt!$A$3,\"příjmení a jméno\",$A60)),0,GETPIVOTDATA(\"Součet z PZB\",Knt!$A$3,\"příjmení a jméno\",$A60))","v":1.5}]
[{"$f":"IF(Knt!A65=\" \",0,Knt!A65)","v":"Vrbas Alexandr"},{"$f":"IF(ISERR(GETPIVOTDATA(\"Bodů\",Knt!$A$3,\"příjmení a jméno\",$A61)),-1,GETPIVOTDATA(\"Bodů\",Knt!$A$3,\"příjmení a jméno\",$A61))","v":7},{"$f":"IF(ISERR(GETPIVOTDATA(\"Součet z RZB\",Knt!$A$3,\"příjmení a jméno\",$A61)),0,GETPIVOTDATA(\"Součet z RZB\",Knt!$A$3,\"příjmení a jméno\",$A61))","v":0},{"$f":"IF(ISERR(GETPIVOTDATA(\"Součet z PZB\",Knt!$A$3,\"příjmení a jméno\",$A61)),0,GETPIVOTDATA(\"Součet z PZB\",Knt!$A$3,\"příjmení a jméno\",$A61))","v":1}]
[{"$f":"IF(Knt!A66=\" \",0,Knt!A66)","v":"Anošová Anna"},{"$f":"IF(ISERR(GETPIVOTDATA(\"Bodů\",Knt!$A$3,\"příjmení a jméno\",$A62)),-1,GETPIVOTDATA(\"Bodů\",Knt!$A$3,\"příjmení a jméno\",$A62))","v":6},{"$f":"IF(ISERR(GETPIVOTDATA(\"Součet z RZB\",Knt!$A$3,\"příjmení a jméno\",$A62)),0,GETPIVOTDATA(\"Součet z RZB\",Knt!$A$3,\"příjmení a jméno\",$A62))","v":3},{"$f":"IF(ISERR(GETPIVOTDATA(\"Součet z PZB\",Knt!$A$3,\"příjmení a jméno\",$A62)),0,GETPIVOTDATA(\"Součet z PZB\",Knt!$A$3,\"příjmení a jméno\",$A62))","v":0}]
[{"$f":"IF(Knt!A69=\" \",0,Knt!A69)","v":"Pařík Teodor"},{"$f":"IF(ISERR(GETPIVOTDATA(\"Bodů\",Knt!$A$3,\"příjmení a jméno\",$A63)),-1,GETPIVOTDATA(\"Bodů\",Knt!$A$3,\"příjmení a jméno\",$A63))","v":6},{"$f":"IF(ISERR(GETPIVOTDATA(\"Součet z RZB\",Knt!$A$3,\"příjmení a jméno\",$A63)),0,GETPIVOTDATA(\"Součet z RZB\",Knt!$A$3,\"příjmení a jméno\",$A63))","v":3},{"$f":"IF(ISERR(GETPIVOTDATA(\"Součet z PZB\",Knt!$A$3,\"příjmení a jméno\",$A63)),0,GETPIVOTDATA(\"Součet z PZB\",Knt!$A$3,\"příjmení a jméno\",$A63))","v":0}]
[{"$f":"IF(Knt!A71=\" \",0,Knt!A71)","v":"Krčmář Jakub"},{"$f":"IF(ISERR(GETPIVOTDATA(\"Bodů\",Knt!$A$3,\"příjmení a jméno\",$A64)),-1,GETPIVOTDATA(\"Bodů\",Knt!$A$3,\"příjmení a jméno\",$A64))","v":6},{"$f":"IF(ISERR(GETPIVOTDATA(\"Součet z RZB\",Knt!$A$3,\"příjmení a jméno\",$A64)),0,GETPIVOTDATA(\"Součet z RZB\",Knt!$A$3,\"příjmení a jméno\",$A64))","v":1},{"$f":"IF(ISERR(GETPIVOTDATA(\"Součet z PZB\",Knt!$A$3,\"příjmení a jméno\",$A64)),0,GETPIVOTDATA(\"Součet z PZB\",Knt!$A$3,\"příjmení a jméno\",$A64))","v":1.5}]
[{"$f":"IF(Knt!A67=\" \",0,Knt!A67)","v":"Šlauka David"},{"$f":"IF(ISERR(GETPIVOTDATA(\"Bodů\",Knt!$A$3,\"příjmení a jméno\",$A65)),-1,GETPIVOTDATA(\"Bodů\",Knt!$A$3,\"příjmení a jméno\",$A65))","v":6},{"$f":"IF(ISERR(GETPIVOTDATA(\"Součet z RZB\",Knt!$A$3,\"příjmení a jméno\",$A65)),0,GETPIVOTDATA(\"Součet z RZB\",Knt!$A$3,\"příjmení a jméno\",$A65))","v":0},{"$f":"IF(ISERR(GETPIVOTDATA(\"Součet z PZB\",Knt!$A$3,\"příjmení a jméno\",$A65)),0,GETPIVOTDATA(\"Součet z PZB\",Knt!$A$3,\"příjmení a jméno\",$A65))","v":1}]
[{"$f":"IF(Knt!A68=\" \",0,Knt!A68)","v":"Paloch Martin"},{"$f":"IF(ISERR(GETPIVOTDATA(\"Bodů\",Knt!$A$3,\"příjmení a jméno\",$A66)),-1,GETPIVOTDATA(\"Bodů\",Knt!$A$3,\"příjmení a jméno\",$A66))","v":6},{"$f":"IF(ISERR(GETPIVOTDATA(\"Součet z RZB\",Knt!$A$3,\"příjmení a jméno\",$A66)),0,GETPIVOTDATA(\"Součet z RZB\",Knt!$A$3,\"příjmení a jméno\",$A66))","v":0},{"$f":"IF(ISERR(GETPIVOTDATA(\"Součet z PZB\",Knt!$A$3,\"příjmení a jméno\",$A66)),0,GETPIVOTDATA(\"Součet z PZB\",Knt!$A$3,\"příjmení a jméno\",$A66))","v":1}]
[{"$f":"IF(Knt!A70=\" \",0,Knt!A70)","v":"Holík Denis"},{"$f":"IF(ISERR(GETPIVOTDATA(\"Bodů\",Knt!$A$3,\"příjmení a jméno\",$A67)),-1,GETPIVOTDATA(\"Bodů\",Knt!$A$3,\"příjmení a jméno\",$A67))","v":6},{"$f":"IF(ISERR(GETPIVOTDATA(\"Součet z RZB\",Knt!$A$3,\"příjmení a jméno\",$A67)),0,GETPIVOTDATA(\"Součet z RZB\",Knt!$A$3,\"příjmení a jméno\",$A67))","v":-9},{"$f":"IF(ISERR(GETPIVOTDATA(\"Součet z PZB\",Knt!$A$3,\"příjmení a jméno\",$A67)),0,GETPIVOTDATA(\"Součet z PZB\",Knt!$A$3,\"příjmení a jméno\",$A67))","v":0.25}]
[{"$f":"IF(Knt!A86=\" \",0,Knt!A86)","v":"Hřebavka Patrik"},{"$f":"IF(ISERR(GETPIVOTDATA(\"Bodů\",Knt!$A$3,\"příjmení a jméno\",$A68)),-1,GETPIVOTDATA(\"Bodů\",Knt!$A$3,\"příjmení a jméno\",$A68))","v":5},{"$f":"IF(ISERR(GETPIVOTDATA(\"Součet z RZB\",Knt!$A$3,\"příjmení a jméno\",$A68)),0,GETPIVOTDATA(\"Součet z RZB\",Knt!$A$3,\"příjmení a jméno\",$A68))","v":2},{"$f":"IF(ISERR(GETPIVOTDATA(\"Součet z PZB\",Knt!$A$3,\"příjmení a jméno\",$A68)),0,GETPIVOTDATA(\"Součet z PZB\",Knt!$A$3,\"příjmení a jméno\",$A68))","v":3}]
[{"$f":"IF(Knt!A74=\" \",0,Knt!A74)","v":"Drastich Vojtěch"},{"$f":"IF(ISERR(GETPIVOTDATA(\"Bodů\",Knt!$A$3,\"příjmení a jméno\",$A69)),-1,GETPIVOTDATA(\"Bodů\",Knt!$A$3,\"příjmení a jméno\",$A69))","v":5},{"$f":"IF(ISERR(GETPIVOTDATA(\"Součet z RZB\",Knt!$A$3,\"příjmení a jméno\",$A69)),0,GETPIVOTDATA(\"Součet z RZB\",Knt!$A$3,\"příjmení a jméno\",$A69))","v":2},{"$f":"IF(ISERR(GETPIVOTDATA(\"Součet z PZB\",Knt!$A$3,\"příjmení a jméno\",$A69)),0,GETPIVOTDATA(\"Součet z PZB\",Knt!$A$3,\"příjmení a jméno\",$A69))","v":0}]
[{"$f":"IF(Knt!A84=\" \",0,Knt!A84)","v":"Janík Tadeáš"},{"$f":"IF(ISERR(GETPIVOTDATA(\"Bodů\",Knt!$A$3,\"příjmení a jméno\",$A70)),-1,GETPIVOTDATA(\"Bodů\",Knt!$A$3,\"příjmení a jméno\",$A70))","v":5},{"$f":"IF(ISERR(GETPIVOTDATA(\"Součet z RZB\",Knt!$A$3,\"příjmení a jméno\",$A70)),0,GETPIVOTDATA(\"Součet z RZB\",Knt!$A$3,\"příjmení a jméno\",$A70))","v":2},{"$f":"IF(ISERR(GETPIVOTDATA(\"Součet z PZB\",Knt!$A$3,\"příjmení a jméno\",$A70)),0,GETPIVOTDATA(\"Součet z PZB\",Knt!$A$3,\"příjmení a jméno\",$A70))","v":0}]
[{"$f":"IF(Knt!A88=\" \",0,Knt!A88)","v":"Kubík Martin"},{"$f":"IF(ISERR(GETPIVOTDATA(\"Bodů\",Knt!$A$3,\"příjmení a jméno\",$A71)),-1,GETPIVOTDATA(\"Bodů\",Knt!$A$3,\"příjmení a jméno\",$A71))","v":5},{"$f":"IF(ISERR(GETPIVOTDATA(\"Součet z RZB\",Knt!$A$3,\"příjmení a jméno\",$A71)),0,GETPIVOTDATA(\"Součet z RZB\",Knt!$A$3,\"příjmení a jméno\",$A71))","v":2},{"$f":"IF(ISERR(GETPIVOTDATA(\"Součet z PZB\",Knt!$A$3,\"příjmení a jméno\",$A71)),0,GETPIVOTDATA(\"Součet z PZB\",Knt!$A$3,\"příjmení a jméno\",$A71))","v":0}]
[{"$f":"IF(Knt!A83=\" \",0,Knt!A83)","v":"Zvardoň Daniel"},{"$f":"IF(ISERR(GETPIVOTDATA(\"Bodů\",Knt!$A$3,\"příjmení a jméno\",$A72)),-1,GETPIVOTDATA(\"Bodů\",Knt!$A$3,\"příjmení a jméno\",$A72))","v":5},{"$f":"IF(ISERR(GETPIVOTDATA(\"Součet z RZB\",Knt!$A$3,\"příjmení a jméno\",$A72)),0,GETPIVOTDATA(\"Součet z RZB\",Knt!$A$3,\"příjmení a jméno\",$A72))","v":2},{"$f":"IF(ISERR(GETPIVOTDATA(\"Součet z PZB\",Knt!$A$3,\"příjmení a jméno\",$A72)),0,GETPIVOTDATA(\"Součet z PZB\",Knt!$A$3,\"příjmení a jméno\",$A72))","v":0}]
[{"$f":"IF(Knt!A82=\" \",0,Knt!A82)","v":"Černý Michal"},{"$f":"IF(ISERR(GETPIVOTDATA(\"Bodů\",Knt!$A$3,\"příjmení a jméno\",$A73)),-1,GETPIVOTDATA(\"Bodů\",Knt!$A$3,\"příjmení a jméno\",$A73))","v":5},{"$f":"IF(ISERR(GETPIVOTDATA(\"Součet z RZB\",Knt!$A$3,\"příjmení a jméno\",$A73)),0,GETPIVOTDATA(\"Součet z RZB\",Knt!$A$3,\"příjmení a jméno\",$A73))","v":2},{"$f":"IF(ISERR(GETPIVOTDATA(\"Součet z PZB\",Knt!$A$3,\"příjmení a jméno\",$A73)),0,GETPIVOTDATA(\"Součet z PZB\",Knt!$A$3,\"příjmení a jméno\",$A73))","v":0}]
[{"$f":"IF(Knt!A80=\" \",0,Knt!A80)","v":"Šlauka Martin"},{"$f":"IF(ISERR(GETPIVOTDATA(\"Bodů\",Knt!$A$3,\"příjmení a jméno\",$A74)),-1,GETPIVOTDATA(\"Bodů\",Knt!$A$3,\"příjmení a jméno\",$A74))","v":5},{"$f":"IF(ISERR(GETPIVOTDATA(\"Součet z RZB\",Knt!$A$3,\"příjmení a jméno\",$A74)),0,GETPIVOTDATA(\"Součet z RZB\",Knt!$A$3,\"příjmení a jméno\",$A74))","v":2},{"$f":"IF(ISERR(GETPIVOTDATA(\"Součet z PZB\",Knt!$A$3,\"příjmení a jméno\",$A74)),0,GETPIVOTDATA(\"Součet z PZB\",Knt!$A$3,\"příjmení a jméno\",$A74))","v":0}]
[{"$f":"IF(Knt!A85=\" \",0,Knt!A85)","v":"Motyka Dominik"},{"$f":"IF(ISERR(GETPIVOTDATA(\"Bodů\",Knt!$A$3,\"příjmení a jméno\",$A75)),-1,GETPIVOTDATA(\"Bodů\",Knt!$A$3,\"příjmení a jméno\",$A75))","v":5},{"$f":"IF(ISERR(GETPIVOTDATA(\"Součet z RZB\",Knt!$A$3,\"příjmení a jméno\",$A75)),0,GETPIVOTDATA(\"Součet z RZB\",Knt!$A$3,\"příjmení a jméno\",$A75))","v":2},{"$f":"IF(ISERR(GETPIVOTDATA(\"Součet z PZB\",Knt!$A$3,\"příjmení a jméno\",$A75)),0,GETPIVOTDATA(\"Součet z PZB\",Knt!$A$3,\"příjmení a jméno\",$A75))","v":0}]
[{"$f":"IF(Knt!A76=\" \",0,Knt!A76)","v":"Matušek Jakub"},{"$f":"IF(ISERR(GETPIVOTDATA(\"Bodů\",Knt!$A$3,\"příjmení a jméno\",$A76)),-1,GETPIVOTDATA(\"Bodů\",Knt!$A$3,\"příjmení a jméno\",$A76))","v":5},{"$f":"IF(ISERR(GETPIVOTDATA(\"Součet z RZB\",Knt!$A$3,\"příjmení a jméno\",$A76)),0,GETPIVOTDATA(\"Součet z RZB\",Knt!$A$3,\"příjmení a jméno\",$A76))","v":2},{"$f":"IF(ISERR(GETPIVOTDATA(\"Součet z PZB\",Knt!$A$3,\"příjmení a jméno\",$A76)),0,GETPIVOTDATA(\"Součet z PZB\",Knt!$A$3,\"příjmení a jméno\",$A76))","v":0}]
[{"$f":"IF(Knt!A78=\" \",0,Knt!A78)","v":"Rajna Alexandr"},{"$f":"IF(ISERR(GETPIVOTDATA(\"Bodů\",Knt!$A$3,\"příjmení a jméno\",$A77)),-1,GETPIVOTDATA(\"Bodů\",Knt!$A$3,\"příjmení a jméno\",$A77))","v":5},{"$f":"IF(ISERR(GETPIVOTDATA(\"Součet z RZB\",Knt!$A$3,\"příjmení a jméno\",$A77)),0,GETPIVOTDATA(\"Součet z RZB\",Knt!$A$3,\"příjmení a jméno\",$A77))","v":2},{"$f":"IF(ISERR(GETPIVOTDATA(\"Součet z PZB\",Knt!$A$3,\"příjmení a jméno\",$A77)),0,GETPIVOTDATA(\"Součet z PZB\",Knt!$A$3,\"příjmení a jméno\",$A77))","v":0}]
[{"$f":"IF(Knt!A87=\" \",0,Knt!A87)","v":"Rudinský Alex"},{"$f":"IF(ISERR(GETPIVOTDATA(\"Bodů\",Knt!$A$3,\"příjmení a jméno\",$A78)),-1,GETPIVOTDATA(\"Bodů\",Knt!$A$3,\"příjmení a jméno\",$A78))","v":5},{"$f":"IF(ISERR(GETPIVOTDATA(\"Součet z RZB\",Knt!$A$3,\"příjmení a jméno\",$A78)),0,GETPIVOTDATA(\"Součet z RZB\",Knt!$A$3,\"příjmení a jméno\",$A78))","v":1},{"$f":"IF(ISERR(GETPIVOTDATA(\"Součet z PZB\",Knt!$A$3,\"příjmení a jméno\",$A78)),0,GETPIVOTDATA(\"Součet z PZB\",Knt!$A$3,\"příjmení a jméno\",$A78))","v":2}]
[{"$f":"IF(Knt!A77=\" \",0,Knt!A77)","v":"Volný Jakub"},{"$f":"IF(ISERR(GETPIVOTDATA(\"Bodů\",Knt!$A$3,\"příjmení a jméno\",$A79)),-1,GETPIVOTDATA(\"Bodů\",Knt!$A$3,\"příjmení a jméno\",$A79))","v":5},{"$f":"IF(ISERR(GETPIVOTDATA(\"Součet z RZB\",Knt!$A$3,\"příjmení a jméno\",$A79)),0,GETPIVOTDATA(\"Součet z RZB\",Knt!$A$3,\"příjmení a jméno\",$A79))","v":-1},{"$f":"IF(ISERR(GETPIVOTDATA(\"Součet z PZB\",Knt!$A$3,\"příjmení a jméno\",$A79)),0,GETPIVOTDATA(\"Součet z PZB\",Knt!$A$3,\"příjmení a jméno\",$A79))","v":0.75}]
[{"$f":"IF(Knt!A73=\" \",0,Knt!A73)","v":"Mička Ladislav"},{"$f":"IF(ISERR(GETPIVOTDATA(\"Bodů\",Knt!$A$3,\"příjmení a jméno\",$A80)),-1,GETPIVOTDATA(\"Bodů\",Knt!$A$3,\"příjmení a jméno\",$A80))","v":5},{"$f":"IF(ISERR(GETPIVOTDATA(\"Součet z RZB\",Knt!$A$3,\"příjmení a jméno\",$A80)),0,GETPIVOTDATA(\"Součet z RZB\",Knt!$A$3,\"příjmení a jméno\",$A80))","v":-2},{"$f":"IF(ISERR(GETPIVOTDATA(\"Součet z PZB\",Knt!$A$3,\"příjmení a jméno\",$A80)),0,GETPIVOTDATA(\"Součet z PZB\",Knt!$A$3,\"příjmení a jméno\",$A80))","v":0.6}]
[{"$f":"IF(Knt!A79=\" \",0,Knt!A79)","v":"Žárski Adam"},{"$f":"IF(ISERR(GETPIVOTDATA(\"Bodů\",Knt!$A$3,\"příjmení a jméno\",$A81)),-1,GETPIVOTDATA(\"Bodů\",Knt!$A$3,\"příjmení a jméno\",$A81))","v":5},{"$f":"IF(ISERR(GETPIVOTDATA(\"Součet z RZB\",Knt!$A$3,\"příjmení a jméno\",$A81)),0,GETPIVOTDATA(\"Součet z RZB\",Knt!$A$3,\"příjmení a jméno\",$A81))","v":-2},{"$f":"IF(ISERR(GETPIVOTDATA(\"Součet z PZB\",Knt!$A$3,\"příjmení a jméno\",$A81)),0,GETPIVOTDATA(\"Součet z PZB\",Knt!$A$3,\"příjmení a jméno\",$A81))","v":0.5}]
[{"$f":"IF(Knt!A72=\" \",0,Knt!A72)","v":"Mikenda Ondřej"},{"$f":"IF(ISERR(GETPIVOTDATA(\"Bodů\",Knt!$A$3,\"příjmení a jméno\",$A82)),-1,GETPIVOTDATA(\"Bodů\",Knt!$A$3,\"příjmení a jméno\",$A82))","v":5},{"$f":"IF(ISERR(GETPIVOTDATA(\"Součet z RZB\",Knt!$A$3,\"příjmení a jméno\",$A82)),0,GETPIVOTDATA(\"Součet z RZB\",Knt!$A$3,\"příjmení a jméno\",$A82))","v":-2},{"$f":"IF(ISERR(GETPIVOTDATA(\"Součet z PZB\",Knt!$A$3,\"příjmení a jméno\",$A82)),0,GETPIVOTDATA(\"Součet z PZB\",Knt!$A$3,\"příjmení a jméno\",$A82))","v":0.33333333333333331}]
[{"$f":"IF(Knt!A89=\" \",0,Knt!A89)","v":"Martináková  Ema"},{"$f":"IF(ISERR(GETPIVOTDATA(\"Bodů\",Knt!$A$3,\"příjmení a jméno\",$A83)),-1,GETPIVOTDATA(\"Bodů\",Knt!$A$3,\"příjmení a jméno\",$A83))","v":5},{"$f":"IF(ISERR(GETPIVOTDATA(\"Součet z RZB\",Knt!$A$3,\"příjmení a jméno\",$A83)),0,GETPIVOTDATA(\"Součet z RZB\",Knt!$A$3,\"příjmení a jméno\",$A83))","v":-3},{"$f":"IF(ISERR(GETPIVOTDATA(\"Součet z PZB\",Knt!$A$3,\"příjmení a jméno\",$A83)),0,GETPIVOTDATA(\"Součet z PZB\",Knt!$A$3,\"příjmení a jméno\",$A83))","v":0.5}]
[{"$f":"IF(Knt!A75=\" \",0,Knt!A75)","v":"Blažek Daniel"},{"$f":"IF(ISERR(GETPIVOTDATA(\"Bodů\",Knt!$A$3,\"příjmení a jméno\",$A84)),-1,GETPIVOTDATA(\"Bodů\",Knt!$A$3,\"příjmení a jméno\",$A84))","v":5},{"$f":"IF(ISERR(GETPIVOTDATA(\"Součet z RZB\",Knt!$A$3,\"příjmení a jméno\",$A84)),0,GETPIVOTDATA(\"Součet z RZB\",Knt!$A$3,\"příjmení a jméno\",$A84))","v":-3},{"$f":"IF(ISERR(GETPIVOTDATA(\"Součet z PZB\",Knt!$A$3,\"příjmení a jméno\",$A84)),0,GETPIVOTDATA(\"Součet z PZB\",Knt!$A$3,\"příjmení a jméno\",$A84))","v":0.4}]
[{"$f":"IF(Knt!A81=\" \",0,Knt!A81)","v":"Papavasilevský Marek"},{"$f":"IF(ISERR(GETPIVOTDATA(\"Bodů\",Knt!$A$3,\"příjmení a jméno\",$A85)),-1,GETPIVOTDATA(\"Bodů\",Knt!$A$3,\"příjmení a jméno\",$A85))","v":5},{"$f":"IF(ISERR(GETPIVOTDATA(\"Součet z RZB\",Knt!$A$3,\"příjmení a jméno\",$A85)),0,GETPIVOTDATA(\"Součet z RZB\",Knt!$A$3,\"příjmení a jméno\",$A85))","v":-4},{"$f":"IF(ISERR(GETPIVOTDATA(\"Součet z PZB\",Knt!$A$3,\"příjmení a jméno\",$A85)),0,GETPIVOTDATA(\"Součet z PZB\",Knt!$A$3,\"příjmení a jméno\",$A85))","v":0.33333333333333331}]
[{"$f":"IF(Knt!A90=\" \",0,Knt!A90)","v":"Marek Šimon"},{"$f":"IF(ISERR(GETPIVOTDATA(\"Bodů\",Knt!$A$3,\"příjmení a jméno\",$A86)),-1,GETPIVOTDATA(\"Bodů\",Knt!$A$3,\"příjmení a jméno\",$A86))","v":5},{"$f":"IF(ISERR(GETPIVOTDATA(\"Součet z RZB\",Knt!$A$3,\"příjmení a jméno\",$A86)),0,GETPIVOTDATA(\"Součet z RZB\",Knt!$A$3,\"příjmení a jméno\",$A86))","v":-5},{"$f":"IF(ISERR(GETPIVOTDATA(\"Součet z PZB\",Knt!$A$3,\"příjmení a jméno\",$A86)),0,GETPIVOTDATA(\"Součet z PZB\",Knt!$A$3,\"příjmení a jméno\",$A86))","v":0.16666666666666666}]
[{"$f":"IF(Knt!A99=\" \",0,Knt!A99)","v":"Slavíček Václav"},{"$f":"IF(ISERR(GETPIVOTDATA(\"Bodů\",Knt!$A$3,\"příjmení a jméno\",$A87)),-1,GETPIVOTDATA(\"Bodů\",Knt!$A$3,\"příjmení a jméno\",$A87))","v":4},{"$f":"IF(ISERR(GETPIVOTDATA(\"Součet z RZB\",Knt!$A$3,\"příjmení a jméno\",$A87)),0,GETPIVOTDATA(\"Součet z RZB\",Knt!$A$3,\"příjmení a jméno\",$A87))","v":2},{"$f":"IF(ISERR(GETPIVOTDATA(\"Součet z PZB\",Knt!$A$3,\"příjmení a jméno\",$A87)),0,GETPIVOTDATA(\"Součet z PZB\",Knt!$A$3,\"příjmení a jméno\",$A87))","v":0}]
[{"$f":"IF(Knt!A93=\" \",0,Knt!A93)","v":"Stryžovský Sebastian"},{"$f":"IF(ISERR(GETPIVOTDATA(\"Bodů\",Knt!$A$3,\"příjmení a jméno\",$A88)),-1,GETPIVOTDATA(\"Bodů\",Knt!$A$3,\"příjmení a jméno\",$A88))","v":4},{"$f":"IF(ISERR(GETPIVOTDATA(\"Součet z RZB\",Knt!$A$3,\"příjmení a jméno\",$A88)),0,GETPIVOTDATA(\"Součet z RZB\",Knt!$A$3,\"příjmení a jméno\",$A88))","v":1},{"$f":"IF(ISERR(GETPIVOTDATA(\"Součet z PZB\",Knt!$A$3,\"příjmení a jméno\",$A88)),0,GETPIVOTDATA(\"Součet z PZB\",Knt!$A$3,\"příjmení a jméno\",$A88))","v":2}]
[{"$f":"IF(Knt!A101=\" \",0,Knt!A101)","v":"Tomek David"},{"$f":"IF(ISERR(GETPIVOTDATA(\"Bodů\",Knt!$A$3,\"příjmení a jméno\",$A89)),-1,GETPIVOTDATA(\"Bodů\",Knt!$A$3,\"příjmení a jméno\",$A89))","v":4},{"$f":"IF(ISERR(GETPIVOTDATA(\"Součet z RZB\",Knt!$A$3,\"příjmení a jméno\",$A89)),0,GETPIVOTDATA(\"Součet z RZB\",Knt!$A$3,\"příjmení a jméno\",$A89))","v":1},{"$f":"IF(ISERR(GETPIVOTDATA(\"Součet z PZB\",Knt!$A$3,\"příjmení a jméno\",$A89)),0,GETPIVOTDATA(\"Součet z PZB\",Knt!$A$3,\"příjmení a jméno\",$A89))","v":2}]
[{"$f":"IF(Knt!A103=\" \",0,Knt!A103)","v":"Válek Matěj"},{"$f":"IF(ISERR(GETPIVOTDATA(\"Bodů\",Knt!$A$3,\"příjmení a jméno\",$A90)),-1,GETPIVOTDATA(\"Bodů\",Knt!$A$3,\"příjmení a jméno\",$A90))","v":4},{"$f":"IF(ISERR(GETPIVOTDATA(\"Součet z RZB\",Knt!$A$3,\"příjmení a jméno\",$A90)),0,GETPIVOTDATA(\"Součet z RZB\",Knt!$A$3,\"příjmení a jméno\",$A90))","v":1},{"$f":"IF(ISERR(GETPIVOTDATA(\"Součet z PZB\",Knt!$A$3,\"příjmení a jméno\",$A90)),0,GETPIVOTDATA(\"Součet z PZB\",Knt!$A$3,\"příjmení a jméno\",$A90))","v":2}]
[{"$f":"IF(Knt!A104=\" \",0,Knt!A104)","v":"Miková  Nikola"},{"$f":"IF(ISERR(GETPIVOTDATA(\"Bodů\",Knt!$A$3,\"příjmení a jméno\",$A91)),-1,GETPIVOTDATA(\"Bodů\",Knt!$A$3,\"příjmení a jméno\",$A91))","v":4},{"$f":"IF(ISERR(GETPIVOTDATA(\"Součet z RZB\",Knt!$A$3,\"příjmení a jméno\",$A91)),0,GETPIVOTDATA(\"Součet z RZB\",Knt!$A$3,\"příjmení a jméno\",$A91))","v":1},{"$f":"IF(ISERR(GETPIVOTDATA(\"Součet z PZB\",Knt!$A$3,\"příjmení a jméno\",$A91)),0,GETPIVOTDATA(\"Součet z PZB\",Knt!$A$3,\"příjmení a jméno\",$A91))","v":2}]
[{"$f":"IF(Knt!A100=\" \",0,Knt!A100)","v":"Otáhalová Magda"},{"$f":"IF(ISERR(GETPIVOTDATA(\"Bodů\",Knt!$A$3,\"příjmení a jméno\",$A92)),-1,GETPIVOTDATA(\"Bodů\",Knt!$A$3,\"příjmení a jméno\",$A92))","v":4},{"$f":"IF(ISERR(GETPIVOTDATA(\"Součet z RZB\",Knt!$A$3,\"příjmení a jméno\",$A92)),0,GETPIVOTDATA(\"Součet z RZB\",Knt!$A$3,\"příjmení a jméno\",$A92))","v":-2},{"$f":"IF(ISERR(GETPIVOTDATA(\"Součet z PZB\",Knt!$A$3,\"příjmení a jméno\",$A92)),0,GETPIVOTDATA(\"Součet z PZB\",Knt!$A$3,\"příjmení a jméno\",$A92))","v":0.6}]
[{"$f":"IF(Knt!A96=\" \",0,Knt!A96)","v":"Blažej Daniel"},{"$f":"IF(ISERR(GETPIVOTDATA(\"Bodů\",Knt!$A$3,\"příjmení a jméno\",$A93)),-1,GETPIVOTDATA(\"Bodů\",Knt!$A$3,\"příjmení a jméno\",$A93))","v":4},{"$f":"IF(ISERR(GETPIVOTDATA(\"Součet z RZB\",Knt!$A$3,\"příjmení a jméno\",$A93)),0,GETPIVOTDATA(\"Součet z RZB\",Knt!$A$3,\"příjmení a jméno\",$A93))","v":-2},{"$f":"IF(ISERR(GETPIVOTDATA(\"Součet z PZB\",Knt!$A$3,\"příjmení a jméno\",$A93)),0,GETPIVOTDATA(\"Součet z PZB\",Knt!$A$3,\"příjmení a jméno\",$A93))","v":0.5}]
[{"$f":"IF(Knt!A94=\" \",0,Knt!A94)","v":"Obercian Martin"},{"$f":"IF(ISERR(GETPIVOTDATA(\"Bodů\",Knt!$A$3,\"příjmení a jméno\",$A94)),-1,GETPIVOTDATA(\"Bodů\",Knt!$A$3,\"příjmení a jméno\",$A94))","v":4},{"$f":"IF(ISERR(GETPIVOTDATA(\"Součet z RZB\",Knt!$A$3,\"příjmení a jméno\",$A94)),0,GETPIVOTDATA(\"Součet z RZB\",Knt!$A$3,\"příjmení a jméno\",$A94))","v":-2},{"$f":"IF(ISERR(GETPIVOTDATA(\"Součet z PZB\",Knt!$A$3,\"příjmení a jméno\",$A94)),0,GETPIVOTDATA(\"Součet z PZB\",Knt!$A$3,\"příjmení a jméno\",$A94))","v":0.33333333333333331}]
[{"$f":"IF(Knt!A92=\" \",0,Knt!A92)","v":"Jarošek Adam"},{"$f":"IF(ISERR(GETPIVOTDATA(\"Bodů\",Knt!$A$3,\"příjmení a jméno\",$A95)),-1,GETPIVOTDATA(\"Bodů\",Knt!$A$3,\"příjmení a jméno\",$A95))","v":4},{"$f":"IF(ISERR(GETPIVOTDATA(\"Součet z RZB\",Knt!$A$3,\"příjmení a jméno\",$A95)),0,GETPIVOTDATA(\"Součet z RZB\",Knt!$A$3,\"příjmení a jméno\",$A95))","v":-3},{"$f":"IF(ISERR(GETPIVOTDATA(\"Součet z PZB\",Knt!$A$3,\"příjmení a jméno\",$A95)),0,GETPIVOTDATA(\"Součet z PZB\",Knt!$A$3,\"příjmení a jméno\",$A95))","v":0.25}]
[{"$f":"IF(Knt!A102=\" \",0,Knt!A102)","v":"Ďurina Lukáš"},{"$f":"IF(ISERR(GETPIVOTDATA(\"Bodů\",Knt!$A$3,\"příjmení a jméno\",$A96)),-1,GETPIVOTDATA(\"Bodů\",Knt!$A$3,\"příjmení a jméno\",$A96))","v":4},{"$f":"IF(ISERR(GETPIVOTDATA(\"Součet z RZB\",Knt!$A$3,\"příjmení a jméno\",$A96)),0,GETPIVOTDATA(\"Součet z RZB\",Knt!$A$3,\"příjmení a jméno\",$A96))","v":-4},{"$f":"IF(ISERR(GETPIVOTDATA(\"Součet z PZB\",Knt!$A$3,\"příjmení a jméno\",$A96)),0,GETPIVOTDATA(\"Součet z PZB\",Knt!$A$3,\"příjmení a jméno\",$A96))","v":0.2}]
[{"$f":"IF(Knt!A91=\" \",0,Knt!A91)","v":"Nachtmann Michael"},{"$f":"IF(ISERR(GETPIVOTDATA(\"Bodů\",Knt!$A$3,\"příjmení a jméno\",$A97)),-1,GETPIVOTDATA(\"Bodů\",Knt!$A$3,\"příjmení a jméno\",$A97))","v":4},{"$f":"IF(ISERR(GETPIVOTDATA(\"Součet z RZB\",Knt!$A$3,\"příjmení a jméno\",$A97)),0,GETPIVOTDATA(\"Součet z RZB\",Knt!$A$3,\"příjmení a jméno\",$A97))","v":-5},{"$f":"IF(ISERR(GETPIVOTDATA(\"Součet z PZB\",Knt!$A$3,\"příjmení a jméno\",$A97)),0,GETPIVOTDATA(\"Součet z PZB\",Knt!$A$3,\"příjmení a jméno\",$A97))","v":0.2857142857142857}]
[{"$f":"IF(Knt!A97=\" \",0,Knt!A97)","v":"Miková Nikola"},{"$f":"IF(ISERR(GETPIVOTDATA(\"Bodů\",Knt!$A$3,\"příjmení a jméno\",$A98)),-1,GETPIVOTDATA(\"Bodů\",Knt!$A$3,\"příjmení a jméno\",$A98))","v":4},{"$f":"IF(ISERR(GETPIVOTDATA(\"Součet z RZB\",Knt!$A$3,\"příjmení a jméno\",$A98)),0,GETPIVOTDATA(\"Součet z RZB\",Knt!$A$3,\"příjmení a jméno\",$A98))","v":-6},{"$f":"IF(ISERR(GETPIVOTDATA(\"Součet z PZB\",Knt!$A$3,\"příjmení a jméno\",$A98)),0,GETPIVOTDATA(\"Součet z PZB\",Knt!$A$3,\"příjmení a jméno\",$A98))","v":0.14285714285714285}]
[{"$f":"IF(Knt!A95=\" \",0,Knt!A95)","v":"Dušenka Michal"},{"$f":"IF(ISERR(GETPIVOTDATA(\"Bodů\",Knt!$A$3,\"příjmení a jméno\",$A99)),-1,GETPIVOTDATA(\"Bodů\",Knt!$A$3,\"příjmení a jméno\",$A99))","v":4},{"$f":"IF(ISERR(GETPIVOTDATA(\"Součet z RZB\",Knt!$A$3,\"příjmení a jméno\",$A99)),0,GETPIVOTDATA(\"Součet z RZB\",Knt!$A$3,\"příjmení a jméno\",$A99))","v":-10},{"$f":"IF(ISERR(GETPIVOTDATA(\"Součet z PZB\",Knt!$A$3,\"příjmení a jméno\",$A99)),0,GETPIVOTDATA(\"Součet z PZB\",Knt!$A$3,\"příjmení a jméno\",$A99))","v":0}]
[{"$f":"IF(Knt!A98=\" \",0,Knt!A98)","v":"Válek Prokop"},{"$f":"IF(ISERR(GETPIVOTDATA(\"Bodů\",Knt!$A$3,\"příjmení a jméno\",$A100)),-1,GETPIVOTDATA(\"Bodů\",Knt!$A$3,\"příjmení a jméno\",$A100))","v":4},{"$f":"IF(ISERR(GETPIVOTDATA(\"Součet z RZB\",Knt!$A$3,\"příjmení a jméno\",$A100)),0,GETPIVOTDATA(\"Součet z RZB\",Knt!$A$3,\"příjmení a jméno\",$A100))","v":-12},{"$f":"IF(ISERR(GETPIVOTDATA(\"Součet z PZB\",Knt!$A$3,\"příjmení a jméno\",$A100)),0,GETPIVOTDATA(\"Součet z PZB\",Knt!$A$3,\"příjmení a jméno\",$A100))","v":0.14285714285714285}]
[{"$f":"IF(Knt!A105=\" \",0,Knt!A105)","v":"Filipec Viktor"},{"$f":"IF(ISERR(GETPIVOTDATA(\"Bodů\",Knt!$A$3,\"příjmení a jméno\",$A101)),-1,GETPIVOTDATA(\"Bodů\",Knt!$A$3,\"příjmení a jméno\",$A101))","v":3},{"$f":"IF(ISERR(GETPIVOTDATA(\"Součet z RZB\",Knt!$A$3,\"příjmení a jméno\",$A101)),0,GETPIVOTDATA(\"Součet z RZB\",Knt!$A$3,\"příjmení a jméno\",$A101))","v":0},{"$f":"IF(ISERR(GETPIVOTDATA(\"Součet z PZB\",Knt!$A$3,\"příjmení a jméno\",$A101)),0,GETPIVOTDATA(\"Součet z PZB\",Knt!$A$3,\"příjmení a jméno\",$A101))","v":1}]
[{"$f":"IF(Knt!A113=\" \",0,Knt!A113)","v":"Čech Jiří"},{"$f":"IF(ISERR(GETPIVOTDATA(\"Bodů\",Knt!$A$3,\"příjmení a jméno\",$A102)),-1,GETPIVOTDATA(\"Bodů\",Knt!$A$3,\"příjmení a jméno\",$A102))","v":3},{"$f":"IF(ISERR(GETPIVOTDATA(\"Součet z RZB\",Knt!$A$3,\"příjmení a jméno\",$A102)),0,GETPIVOTDATA(\"Součet z RZB\",Knt!$A$3,\"příjmení a jméno\",$A102))","v":0},{"$f":"IF(ISERR(GETPIVOTDATA(\"Součet z PZB\",Knt!$A$3,\"příjmení a jméno\",$A102)),0,GETPIVOTDATA(\"Součet z PZB\",Knt!$A$3,\"příjmení a jméno\",$A102))","v":1}]
[{"$f":"IF(Knt!A117=\" \",0,Knt!A117)","v":"Kantoš David"},{"$f":"IF(ISERR(GETPIVOTDATA(\"Bodů\",Knt!$A$3,\"příjmení a jméno\",$A103)),-1,GETPIVOTDATA(\"Bodů\",Knt!$A$3,\"příjmení a jméno\",$A103))","v":3},{"$f":"IF(ISERR(GETPIVOTDATA(\"Součet z RZB\",Knt!$A$3,\"příjmení a jméno\",$A103)),0,GETPIVOTDATA(\"Součet z RZB\",Knt!$A$3,\"příjmení a jméno\",$A103))","v":0},{"$f":"IF(ISERR(GETPIVOTDATA(\"Součet z PZB\",Knt!$A$3,\"příjmení a jméno\",$A103)),0,GETPIVOTDATA(\"Součet z PZB\",Knt!$A$3,\"příjmení a jméno\",$A103))","v":1}]
[{"$f":"IF(Knt!A115=\" \",0,Knt!A115)","v":"Papaj  Tobiáš"},{"$f":"IF(ISERR(GETPIVOTDATA(\"Bodů\",Knt!$A$3,\"příjmení a jméno\",$A104)),-1,GETPIVOTDATA(\"Bodů\",Knt!$A$3,\"příjmení a jméno\",$A104))","v":3},{"$f":"IF(ISERR(GETPIVOTDATA(\"Součet z RZB\",Knt!$A$3,\"příjmení a jméno\",$A104)),0,GETPIVOTDATA(\"Součet z RZB\",Knt!$A$3,\"příjmení a jméno\",$A104))","v":0},{"$f":"IF(ISERR(GETPIVOTDATA(\"Součet z PZB\",Knt!$A$3,\"příjmení a jméno\",$A104)),0,GETPIVOTDATA(\"Součet z PZB\",Knt!$A$3,\"příjmení a jméno\",$A104))","v":1}]
[{"$f":"IF(Knt!A116=\" \",0,Knt!A116)","v":"Doubek Benjamin"},{"$f":"IF(ISERR(GETPIVOTDATA(\"Bodů\",Knt!$A$3,\"příjmení a jméno\",$A105)),-1,GETPIVOTDATA(\"Bodů\",Knt!$A$3,\"příjmení a jméno\",$A105))","v":3},{"$f":"IF(ISERR(GETPIVOTDATA(\"Součet z RZB\",Knt!$A$3,\"příjmení a jméno\",$A105)),0,GETPIVOTDATA(\"Součet z RZB\",Knt!$A$3,\"příjmení a jméno\",$A105))","v":0},{"$f":"IF(ISERR(GETPIVOTDATA(\"Součet z PZB\",Knt!$A$3,\"příjmení a jméno\",$A105)),0,GETPIVOTDATA(\"Součet z PZB\",Knt!$A$3,\"příjmení a jméno\",$A105))","v":1}]
[{"$f":"IF(Knt!A110=\" \",0,Knt!A110)","v":"Novotný Ladislav"},{"$f":"IF(ISERR(GETPIVOTDATA(\"Bodů\",Knt!$A$3,\"příjmení a jméno\",$A106)),-1,GETPIVOTDATA(\"Bodů\",Knt!$A$3,\"příjmení a jméno\",$A106))","v":3},{"$f":"IF(ISERR(GETPIVOTDATA(\"Součet z RZB\",Knt!$A$3,\"příjmení a jméno\",$A106)),0,GETPIVOTDATA(\"Součet z RZB\",Knt!$A$3,\"příjmení a jméno\",$A106))","v":0},{"$f":"IF(ISERR(GETPIVOTDATA(\"Součet z PZB\",Knt!$A$3,\"příjmení a jméno\",$A106)),0,GETPIVOTDATA(\"Součet z PZB\",Knt!$A$3,\"příjmení a jméno\",$A106))","v":1}]
[{"$f":"IF(Knt!A106=\" \",0,Knt!A106)","v":"Rudinský Jakub"},{"$f":"IF(ISERR(GETPIVOTDATA(\"Bodů\",Knt!$A$3,\"příjmení a jméno\",$A107)),-1,GETPIVOTDATA(\"Bodů\",Knt!$A$3,\"příjmení a jméno\",$A107))","v":3},{"$f":"IF(ISERR(GETPIVOTDATA(\"Součet z RZB\",Knt!$A$3,\"příjmení a jméno\",$A107)),0,GETPIVOTDATA(\"Součet z RZB\",Knt!$A$3,\"příjmení a jméno\",$A107))","v":0},{"$f":"IF(ISERR(GETPIVOTDATA(\"Součet z PZB\",Knt!$A$3,\"příjmení a jméno\",$A107)),0,GETPIVOTDATA(\"Součet z PZB\",Knt!$A$3,\"příjmení a jméno\",$A107))","v":1}]
[{"$f":"IF(Knt!A109=\" \",0,Knt!A109)","v":"Konečná Kateřina"},{"$f":"IF(ISERR(GETPIVOTDATA(\"Bodů\",Knt!$A$3,\"příjmení a jméno\",$A108)),-1,GETPIVOTDATA(\"Bodů\",Knt!$A$3,\"příjmení a jméno\",$A108))","v":3},{"$f":"IF(ISERR(GETPIVOTDATA(\"Součet z RZB\",Knt!$A$3,\"příjmení a jméno\",$A108)),0,GETPIVOTDATA(\"Součet z RZB\",Knt!$A$3,\"příjmení a jméno\",$A108))","v":0},{"$f":"IF(ISERR(GETPIVOTDATA(\"Součet z PZB\",Knt!$A$3,\"příjmení a jméno\",$A108)),0,GETPIVOTDATA(\"Součet z PZB\",Knt!$A$3,\"příjmení a jméno\",$A108))","v":1}]
[{"$f":"IF(Knt!A107=\" \",0,Knt!A107)","v":"Frais Jiří"},{"$f":"IF(ISERR(GETPIVOTDATA(\"Bodů\",Knt!$A$3,\"příjmení a jméno\",$A109)),-1,GETPIVOTDATA(\"Bodů\",Knt!$A$3,\"příjmení a jméno\",$A109))","v":3},{"$f":"IF(ISERR(GETPIVOTDATA(\"Součet z RZB\",Knt!$A$3,\"příjmení a jméno\",$A109)),0,GETPIVOTDATA(\"Součet z RZB\",Knt!$A$3,\"příjmení a jméno\",$A109))","v":0},{"$f":"IF(ISERR(GETPIVOTDATA(\"Součet z PZB\",Knt!$A$3,\"příjmení a jméno\",$A109)),0,GETPIVOTDATA(\"Součet z PZB\",Knt!$A$3,\"příjmení a jméno\",$A109))","v":1}]
[{"$f":"IF(Knt!A111=\" \",0,Knt!A111)","v":"Šebesta Jakub"},{"$f":"IF(ISERR(GETPIVOTDATA(\"Bodů\",Knt!$A$3,\"příjmení a jméno\",$A110)),-1,GETPIVOTDATA(\"Bodů\",Knt!$A$3,\"příjmení a jméno\",$A110))","v":3},{"$f":"IF(ISERR(GETPIVOTDATA(\"Součet z RZB\",Knt!$A$3,\"příjmení a jméno\",$A110)),0,GETPIVOTDATA(\"Součet z RZB\",Knt!$A$3,\"příjmení a jméno\",$A110))","v":-1},{"$f":"IF(ISERR(GETPIVOTDATA(\"Součet z PZB\",Knt!$A$3,\"příjmení a jméno\",$A110)),0,GETPIVOTDATA(\"Součet z PZB\",Knt!$A$3,\"příjmení a jméno\",$A110))","v":0.5}]
[{"$f":"IF(Knt!A114=\" \",0,Knt!A114)","v":"Endt David"},{"$f":"IF(ISERR(GETPIVOTDATA(\"Bodů\",Knt!$A$3,\"příjmení a jméno\",$A111)),-1,GETPIVOTDATA(\"Bodů\",Knt!$A$3,\"příjmení a jméno\",$A111))","v":3},{"$f":"IF(ISERR(GETPIVOTDATA(\"Součet z RZB\",Knt!$A$3,\"příjmení a jméno\",$A111)),0,GETPIVOTDATA(\"Součet z RZB\",Knt!$A$3,\"příjmení a jméno\",$A111))","v":-2},{"$f":"IF(ISERR(GETPIVOTDATA(\"Součet z PZB\",Knt!$A$3,\"příjmení a jméno\",$A111)),0,GETPIVOTDATA(\"Součet z PZB\",Knt!$A$3,\"příjmení a jméno\",$A111))","v":0.33333333333333331}]
[{"$f":"IF(Knt!A108=\" \",0,Knt!A108)","v":"Wanecki Filip"},{"$f":"IF(ISERR(GETPIVOTDATA(\"Bodů\",Knt!$A$3,\"příjmení a jméno\",$A112)),-1,GETPIVOTDATA(\"Bodů\",Knt!$A$3,\"příjmení a jméno\",$A112))","v":3},{"$f":"IF(ISERR(GETPIVOTDATA(\"Součet z RZB\",Knt!$A$3,\"příjmení a jméno\",$A112)),0,GETPIVOTDATA(\"Součet z RZB\",Knt!$A$3,\"příjmení a jméno\",$A112))","v":-2},{"$f":"IF(ISERR(GETPIVOTDATA(\"Součet z PZB\",Knt!$A$3,\"příjmení a jméno\",$A112)),0,GETPIVOTDATA(\"Součet z PZB\",Knt!$A$3,\"příjmení a jméno\",$A112))","v":0.33333333333333331}]
[{"$f":"IF(Knt!A112=\" \",0,Knt!A112)","v":"Caletka Michal"},{"$f":"IF(ISERR(GETPIVOTDATA(\"Bodů\",Knt!$A$3,\"příjmení a jméno\",$A113)),-1,GETPIVOTDATA(\"Bodů\",Knt!$A$3,\"příjmení a jméno\",$A113))","v":3},{"$f":"IF(ISERR(GETPIVOTDATA(\"Součet z RZB\",Knt!$A$3,\"příjmení a jméno\",$A113)),0,GETPIVOTDATA(\"Součet z RZB\",Knt!$A$3,\"příjmení a jméno\",$A113))","v":-6},{"$f":"IF(ISERR(GETPIVOTDATA(\"Součet z PZB\",Knt!$A$3,\"příjmení a jméno\",$A113)),0,GETPIVOTDATA(\"Součet z PZB\",Knt!$A$3,\"příjmení a jméno\",$A113))","v":0.14285714285714285}]
[{"$f":"IF(Knt!A120=\" \",0,Knt!A120)","v":"Tokarský Filip"},{"$f":"IF(ISERR(GETPIVOTDATA(\"Bodů\",Knt!$A$3,\"příjmení a jméno\",$A114)),-1,GETPIVOTDATA(\"Bodů\",Knt!$A$3,\"příjmení a jméno\",$A114))","v":2},{"$f":"IF(ISERR(GETPIVOTDATA(\"Součet z RZB\",Knt!$A$3,\"příjmení a jméno\",$A114)),0,GETPIVOTDATA(\"Součet z RZB\",Knt!$A$3,\"příjmení a jméno\",$A114))","v":-1},{"$f":"IF(ISERR(GETPIVOTDATA(\"Součet z PZB\",Knt!$A$3,\"příjmení a jméno\",$A114)),0,GETPIVOTDATA(\"Součet z PZB\",Knt!$A$3,\"příjmení a jméno\",$A114))","v":0.5}]
[{"$f":"IF(Knt!A118=\" \",0,Knt!A118)","v":"Tobola Alexandr"},{"$f":"IF(ISERR(GETPIVOTDATA(\"Bodů\",Knt!$A$3,\"příjmení a jméno\",$A115)),-1,GETPIVOTDATA(\"Bodů\",Knt!$A$3,\"příjmení a jméno\",$A115))","v":2},{"$f":"IF(ISERR(GETPIVOTDATA(\"Součet z RZB\",Knt!$A$3,\"příjmení a jméno\",$A115)),0,GETPIVOTDATA(\"Součet z RZB\",Knt!$A$3,\"příjmení a jméno\",$A115))","v":-1},{"$f":"IF(ISERR(GETPIVOTDATA(\"Součet z PZB\",Knt!$A$3,\"příjmení a jméno\",$A115)),0,GETPIVOTDATA(\"Součet z PZB\",Knt!$A$3,\"příjmení a jméno\",$A115))","v":0.5}]
[{"$f":"IF(Knt!A123=\" \",0,Knt!A123)","v":"Veselý Kryštof"},{"$f":"IF(ISERR(GETPIVOTDATA(\"Bodů\",Knt!$A$3,\"příjmení a jméno\",$A116)),-1,GETPIVOTDATA(\"Bodů\",Knt!$A$3,\"příjmení a jméno\",$A116))","v":2},{"$f":"IF(ISERR(GETPIVOTDATA(\"Součet z RZB\",Knt!$A$3,\"příjmení a jméno\",$A116)),0,GETPIVOTDATA(\"Součet z RZB\",Knt!$A$3,\"příjmení a jméno\",$A116))","v":-1},{"$f":"IF(ISERR(GETPIVOTDATA(\"Součet z PZB\",Knt!$A$3,\"příjmení a jméno\",$A116)),0,GETPIVOTDATA(\"Součet z PZB\",Knt!$A$3,\"příjmení a jméno\",$A116))","v":0}]
[{"$f":"IF(Knt!A119=\" \",0,Knt!A119)","v":"Vidlička Kristián"},{"$f":"IF(ISERR(GETPIVOTDATA(\"Bodů\",Knt!$A$3,\"příjmení a jméno\",$A117)),-1,GETPIVOTDATA(\"Bodů\",Knt!$A$3,\"příjmení a jméno\",$A117))","v":2},{"$f":"IF(ISERR(GETPIVOTDATA(\"Součet z RZB\",Knt!$A$3,\"příjmení a jméno\",$A117)),0,GETPIVOTDATA(\"Součet z RZB\",Knt!$A$3,\"příjmení a jméno\",$A117))","v":-2},{"$f":"IF(ISERR(GETPIVOTDATA(\"Součet z PZB\",Knt!$A$3,\"příjmení a jméno\",$A117)),0,GETPIVOTDATA(\"Součet z PZB\",Knt!$A$3,\"příjmení a jméno\",$A117))","v":0.33333333333333331}]
[{"$f":"IF(Knt!A121=\" \",0,Knt!A121)","v":"Horák Adam"},{"$f":"IF(ISERR(GETPIVOTDATA(\"Bodů\",Knt!$A$3,\"příjmení a jméno\",$A118)),-1,GETPIVOTDATA(\"Bodů\",Knt!$A$3,\"příjmení a jméno\",$A118))","v":2},{"$f":"IF(ISERR(GETPIVOTDATA(\"Součet z RZB\",Knt!$A$3,\"příjmení a jméno\",$A118)),0,GETPIVOTDATA(\"Součet z RZB\",Knt!$A$3,\"příjmení a jméno\",$A118))","v":-2},{"$f":"IF(ISERR(GETPIVOTDATA(\"Součet z PZB\",Knt!$A$3,\"příjmení a jméno\",$A118)),0,GETPIVOTDATA(\"Součet z PZB\",Knt!$A$3,\"příjmení a jméno\",$A118))","v":0}]
[{"$f":"IF(Knt!A122=\" \",0,Knt!A122)","v":"Turek Jakub"},{"$f":"IF(ISERR(GETPIVOTDATA(\"Bodů\",Knt!$A$3,\"příjmení a jméno\",$A119)),-1,GETPIVOTDATA(\"Bodů\",Knt!$A$3,\"příjmení a jméno\",$A119))","v":2},{"$f":"IF(ISERR(GETPIVOTDATA(\"Součet z RZB\",Knt!$A$3,\"příjmení a jméno\",$A119)),0,GETPIVOTDATA(\"Součet z RZB\",Knt!$A$3,\"příjmení a jméno\",$A119))","v":-4},{"$f":"IF(ISERR(GETPIVOTDATA(\"Součet z PZB\",Knt!$A$3,\"příjmení a jméno\",$A119)),0,GETPIVOTDATA(\"Součet z PZB\",Knt!$A$3,\"příjmení a jméno\",$A119))","v":0}]
[{"$f":"IF(Knt!A124=\" \",0,Knt!A124)","v":"Pravda Adam"},{"$f":"IF(ISERR(GETPIVOTDATA(\"Bodů\",Knt!$A$3,\"příjmení a jméno\",$A120)),-1,GETPIVOTDATA(\"Bodů\",Knt!$A$3,\"příjmení a jméno\",$A120))","v":2},{"$f":"IF(ISERR(GETPIVOTDATA(\"Součet z RZB\",Knt!$A$3,\"příjmení a jméno\",$A120)),0,GETPIVOTDATA(\"Součet z RZB\",Knt!$A$3,\"příjmení a jméno\",$A120))","v":-7},{"$f":"IF(ISERR(GETPIVOTDATA(\"Součet z PZB\",Knt!$A$3,\"příjmení a jméno\",$A120)),0,GETPIVOTDATA(\"Součet z PZB\",Knt!$A$3,\"příjmení a jméno\",$A120))","v":0.125}]
[{"$f":"IF(Knt!A125=\" \",0,Knt!A125)","v":"Caletka Petr"},{"$f":"IF(ISERR(GETPIVOTDATA(\"Bodů\",Knt!$A$3,\"příjmení a jméno\",$A121)),-1,GETPIVOTDATA(\"Bodů\",Knt!$A$3,\"příjmení a jméno\",$A121))","v":2},{"$f":"IF(ISERR(GETPIVOTDATA(\"Součet z RZB\",Knt!$A$3,\"příjmení a jméno\",$A121)),0,GETPIVOTDATA(\"Součet z RZB\",Knt!$A$3,\"příjmení a jméno\",$A121))","v":-8},{"$f":"IF(ISERR(GETPIVOTDATA(\"Součet z PZB\",Knt!$A$3,\"příjmení a jméno\",$A121)),0,GETPIVOTDATA(\"Součet z PZB\",Knt!$A$3,\"příjmení a jméno\",$A121))","v":0.1111111111111111}]

{"sheet":"Žebříček","index":4,"n_rows":43,"n_cols":8,"rows_kept":43,"cut":false,"hidden":false,"merged":[[0,0,0,7]]}
["Pořadí závodníků turnajů přípravek 2014"]
[]
["poř.","Příjmení a jméno","poř.","Příjmení a jméno","poř.","Příjmení a jméno","poř.","Příjmení a jméno"]
[1,{"$f":"IF('Seřazení Knt'!A2=0,\"\",'Seřazení Knt'!A2)","v":"Konvičný Dominik"},{"$f":"IF(D4=\"\",\"\",IF(AND('Seřazení Knt'!B41='Seřazení Knt'!B42,'Seřazení Knt'!C41='Seřazení Knt'!C42,'Seřazení Knt'!D41='Seřazení Knt'!D42),Žebříček!A43,Žebříček!A43+1))","v":33},{"$f":"IF('Seřazení Knt'!A42=0,\"\",'Seřazení Knt'!A42)","v":"Motyčka Lukáš"},{"$f":"IF(F4=\"\",\"\",IF(AND('Seřazení Knt'!B81='Seřazení Knt'!B82,'Seřazení Knt'!C81='Seřazení Knt'!C82,'Seřazení Knt'!D81='Seřazení Knt'!D82),Žebříček!C43,Žebříček!C43+1))","v":59},{"$f":"IF('Seřazení Knt'!A82=0,\"\",'Seřazení Knt'!A82)","v":"Mikenda Ondřej"},{"$f":"IF(H4=\"\",\"\",IF(AND('Seřazení Knt'!B121='Seřazení Knt'!B122,'Seřazení Knt'!C121='Seřazení Knt'!C122,'Seřazení Knt'!D121='Seřazení Knt'!D122),Žebříček!E43,Žebříček!E43+1))","v":""},{"$f":"IF('Seřazení Knt'!A122=0,\"\",'Seřazení Knt'!A122)","v":""}]
[{"$f":"IF(B5=\"\",\"\",IF(AND('Seřazení Knt'!B2='Seřazení Knt'!B3,'Seřazení Knt'!C2='Seřazení Knt'!C3,'Seřazení Knt'!D2='Seřazení Knt'!D3),Žebříček!A4,Žebříček!A4+1))","v":2},{"$f":"IF('Seřazení Knt'!A3=0,\"\",'Seřazení Knt'!A3)","v":"Cagala Šimon"},{"$f":"IF(D5=\"\",\"\",IF(AND('Seřazení Knt'!B42='Seřazení Knt'!B43,'Seřazení Knt'!C42='Seřazení Knt'!C43,'Seřazení Knt'!D42='Seřazení Knt'!D43),Žebříček!C4,Žebříček!C4+1))","v":34},{"$f":"IF('Seřazení Knt'!A43=0,\"\",'Seřazení Knt'!A43)","v":"Ryška Václav"},{"$f":"IF(F5=\"\",\"\",IF(AND('Seřazení Knt'!B82='Seřazení Knt'!B83,'Seřazení Knt'!C82='Seřazení Knt'!C83,'Seřazení Knt'!D82='Seřazení Knt'!D83),Žebříček!E4,Žebříček!E4+1))","v":60},{"$f":"IF('Seřazení Knt'!A83=0,\"\",'Seřazení Knt'!A83)","v":"Martináková  Ema"},{"$f":"IF(H5=\"\",\"\",IF(AND('Seřazení Knt'!B122='Seřazení Knt'!B123,'Seřazení Knt'!C122='Seřazení Knt'!C123,'Seřazení Knt'!D122='Seřazení Knt'!D123),Žebříček!G4,Žebříček!G4+1))","v":""},{"$f":"IF('Seřazení Knt'!A123=0,\"\",'Seřazení Knt'!A123)","v":""}]
[{"$f":"IF(B6=\"\",\"\",IF(AND('Seřazení Knt'!B3='Seřazení Knt'!B4,'Seřazení Knt'!C3='Seřazení Knt'!C4,'Seřazení Knt'!D3='Seřazení Knt'!D4),Žebříček!A5,Žebříček!A5+1))","v":3},{"$f":"IF('Seřazení Knt'!A4=0,\"\",'Seřazení Knt'!A4)","v":"Přibyl Jakub"},{"$f":"IF(D6=\"\",\"\",IF(AND('Seřazení Knt'!B43='Seřazení Knt'!B44,'Seřazení Knt'!C43='Seřazení Knt'!C44,'Seřazení Knt'!D43='Seřazení Knt'!D44),Žebříček!C5,Žebříček!C5+1))","v":35},{"$f":"IF('Seřazení Knt'!A44=0,\"\",'Seřazení Knt'!A44)","v":"Hroch  Jakub"},{"$f":"IF(F6=\"\",\"\",IF(AND('Seřazení Knt'!B83='Seřazení Knt'!B84,'Seřazení Knt'!C83='Seřazení Knt'!C84,'Seřazení Knt'!D83='Seřazení Knt'!D84),Žebříček!E5,Žebříček!E5+1))","v":61},{"$f":"IF('Seřazení Knt'!A84=0,\"\",'Seřazení Knt'!A84)","v":"Blažek Daniel"},{"$f":"IF(H6=\"\",\"\",IF(AND('Seřazení Knt'!B123='Seřazení Knt'!B124,'Seřazení Knt'!C123='Seřazení Knt'!C124,'Seřazení Knt'!D123='Seřazení Knt'!D124),Žebříček!G5,Žebříček!G5+1))","v":""},{"$f":"IF('Seřazení Knt'!A124=0,\"\",'Seřazení Knt'!A124)","v":""}]
[{"$f":"IF(B7=\"\",\"\",IF(AND('Seřazení Knt'!B4='Seřazení Knt'!B5,'Seřazení Knt'!C4='Seřazení Knt'!C5,'Seřazení Knt'!D4='Seřazení Knt'!D5),Žebříček!A6,Žebříček!A6+1))","v":4},{"$f":"IF('Seřazení Knt'!A5=0,\"\",'Seřazení Knt'!A5)","v":"Mikendová Tereza"},{"$f":"IF(D7=\"\",\"\",IF(AND('Seřazení Knt'!B44='Seřazení Knt'!B45,'Seřazení Knt'!C44='Seřazení Knt'!C45,'Seřazení Knt'!D44='Seřazení Knt'!D45),Žebříček!C6,Žebříček!C6+1))","v":36},{"$f":"IF('Seřazení Knt'!A45=0,\"\",'Seřazení Knt'!A45)","v":"Beutel David"},{"$f":"IF(F7=\"\",\"\",IF(AND('Seřazení Knt'!B84='Seřazení Knt'!B85,'Seřazení Knt'!C84='Seřazení Knt'!C85,'Seřazení Knt'!D84='Seřazení Knt'!D85),Žebříček!E6,Žebříček!E6+1))","v":62},{"$f":"IF('Seřazení Knt'!A85=0,\"\",'Seřazení Knt'!A85)","v":"Papavasilevský Marek"},{"$f":"IF(H7=\"\",\"\",IF(AND('Seřazení Knt'!B124='Seřazení Knt'!B125,'Seřazení Knt'!C124='Seřazení Knt'!C125,'Seřazení Knt'!D124='Seřazení Knt'!D125),Žebříček!G6,Žebříček!G6+1))","v":""},{"$f":"IF('Seřazení Knt'!A125=0,\"\",'Seřazení Knt'!A125)","v":""}]
[{"$f":"IF(B8=\"\",\"\",IF(AND('Seřazení Knt'!B5='Seřazení Knt'!B6,'Seřazení Knt'!C5='Seřazení Knt'!C6,'Seřazení Knt'!D5='Seřazení Knt'!D6),Žebříček!A7,Žebříček!A7+1))","v":5},{"$f":"IF('Seřazení Knt'!A6=0,\"\",'Seřazení Knt'!A6)","v":"Zach Matyáš"},{"$f":"IF(D8=\"\",\"\",IF(AND('Seřazení Knt'!B45='Seřazení Knt'!B46,'Seřazení Knt'!C45='Seřazení Knt'!C46,'Seřazení Knt'!D45='Seřazení Knt'!D46),Žebříček!C7,Žebříček!C7+1))","v":37},{"$f":"IF('Seřazení Knt'!A46=0,\"\",'Seřazení Knt'!A46)","v":"Turčínek Tomáš"},{"$f":"IF(F8=\"\",\"\",IF(AND('Seřazení Knt'!B85='Seřazení Knt'!B86,'Seřazení Knt'!C85='Seřazení Knt'!C86,'Seřazení Knt'!D85='Seřazení Knt'!D86),Žebříček!E7,Žebříček!E7+1))","v":63},{"$f":"IF('Seřazení Knt'!A86=0,\"\",'Seřazení Knt'!A86)","v":"Marek Šimon"},{"$f":"IF(H8=\"\",\"\",IF(AND('Seřazení Knt'!B125='Seřazení Knt'!B126,'Seřazení Knt'!C125='Seřazení Knt'!C126,'Seřazení Knt'!D125='Seřazení Knt'!D126),Žebříček!G7,Žebříček!G7+1))","v":""},{"$f":"IF('Seřazení Knt'!A126=0,\"\",'Seřazení Knt'!A126)","v":""}]
[{"$f":"IF(B9=\"\",\"\",IF(AND('Seřazení Knt'!B6='Seřazení Knt'!B7,'Seřazení Knt'!C6='Seřazení Knt'!C7,'Seřazení Knt'!D6='Seřazení Knt'!D7),Žebříček!A8,Žebříček!A8+1))","v":5},{"$f":"IF('Seřazení Knt'!A7=0,\"\",'Seřazení Knt'!A7)","v":"Seibert Marian"},{"$f":"IF(D9=\"\",\"\",IF(AND('Seřazení Knt'!B46='Seřazení Knt'!B47,'Seřazení Knt'!C46='Seřazení Knt'!C47,'Seřazení Knt'!D46='Seřazení Knt'!D47),Žebříček!C8,Žebříček!C8+1))","v":38},{"$f":"IF('Seřazení Knt'!A47=0,\"\",'Seřazení Knt'!A47)","v":"Částečka Filip"},{"$f":"IF(F9=\"\",\"\",IF(AND('Seřazení Knt'!B86='Seřazení Knt'!B87,'Seřazení Knt'!C86='Seřazení Knt'!C87,'Seřazení Knt'!D86='Seřazení Knt'!D87),Žebříček!E8,Žebříček!E8+1))","v":64},{"$f":"IF('Seřazení Knt'!A87=0,\"\",'Seřazení Knt'!A87)","v":"Slavíček Václav"},{"$f":"IF(H9=\"\",\"\",IF(AND('Seřazení Knt'!B126='Seřazení Knt'!B127,'Seřazení Knt'!C126='Seřazení Knt'!C127,'Seřazení Knt'!D126='Seřazení Knt'!D127),Žebříček!G8,Žebříček!G8+1))","v":""},{"$f":"IF('Seřazení Knt'!A127=0,\"\",'Seřazení Knt'!A127)","v":""}]
[{"$f":"IF(B10=\"\",\"\",IF(AND('Seřazení Knt'!B7='Seřazení Knt'!B8,'Seřazení Knt'!C7='Seřazení Knt'!C8,'Seřazení Knt'!D7='Seřazení Knt'!D8),Žebříček!A9,Žebříček!A9+1))","v":6},{"$f":"IF('Seřazení Knt'!A8=0,\"\",'Seřazení Knt'!A8)","v":"Kolář Daniel"},{"$f":"IF(D10=\"\",\"\",IF(AND('Seřazení Knt'!B47='Seřazení Knt'!B48,'Seřazení Knt'!C47='Seřazení Knt'!C48,'Seřazení Knt'!D47='Seřazení Knt'!D48),Žebříček!C9,Žebříček!C9+1))","v":38},{"$f":"IF('Seřazení Knt'!A48=0,\"\",'Seřazení Knt'!A48)","v":"Kuncová Viktorie"},{"$f":"IF(F10=\"\",\"\",IF(AND('Seřazení Knt'!B87='Seřazení Knt'!B88,'Seřazení Knt'!C87='Seřazení Knt'!C88,'Seřazení Knt'!D87='Seřazení Knt'!D88),Žebříček!E9,Žebříček!E9+1))","v":65},{"$f":"IF('Seřazení Knt'!A88=0,\"\",'Seřazení Knt'!A88)","v":"Stryžovský Sebastian"},{"$f":"IF(H10=\"\",\"\",IF(AND('Seřazení Knt'!B127='Seřazení Knt'!B128,'Seřazení Knt'!C127='Seřazení Knt'!C128,'Seřazení Knt'!D127='Seřazení Knt'!D128),Žebříček!G9,Žebříček!G9+1))","v":""},{"$f":"IF('Seřazení Knt'!A128=0,\"\",'Seřazení Knt'!A128)","v":""}]
[{"$f":"IF(B11=\"\",\"\",IF(AND('Seřazení Knt'!B8='Seřazení Knt'!B9,'Seřazení Knt'!C8='Seřazení Knt'!C9,'Seřazení Knt'!D8='Seřazení Knt'!D9),Žebříček!A10,Žebříček!A10+1))","v":7},{"$f":"IF('Seřazení Knt'!A9=0,\"\",'Seřazení Knt'!A9)","v":"Přibyl Jan"},{"$f":"IF(D11=\"\",\"\",IF(AND('Seřazení Knt'!B48='Seřazení Knt'!B49,'Seřazení Knt'!C48='Seřazení Knt'!C49,'Seřazení Knt'!D48='Seřazení Knt'!D49),Žebříček!C10,Žebříček!C10+1))","v":39},{"$f":"IF('Seřazení Knt'!A49=0,\"\",'Seřazení Knt'!A49)","v":"Kajfosz Kryštof"},{"$f":"IF(F11=\"\",\"\",IF(AND('Seřazení Knt'!B88='Seřazení Knt'!B89,'Seřazení Knt'!C88='Seřazení Knt'!C89,'Seřazení Knt'!D88='Seřazení Knt'!D89),Žebříček!E10,Žebříček!E10+1))","v":65},{"$f":"IF('Seřazení Knt'!A89=0,\"\",'Seřazení Knt'!A89)","v":"Tomek David"},{"$f":"IF(H11=\"\",\"\",IF(AND('Seřazení Knt'!B128='Seřazení Knt'!B129,'Seřazení Knt'!C128='Seřazení Knt'!C129,'Seřazení Knt'!D128='Seřazení Knt'!D129),Žebříček!G10,Žebříček!G10+1))","v":""},{"$f":"IF('Seřazení Knt'!A129=0,\"\",'Seřazení Knt'!A129)","v":""}]
[{"$f":"IF(B12=\"\",\"\",IF(AND('Seřazení Knt'!B9='Seřazení Knt'!B10,'Seřazení Knt'!C9='Seřazení Knt'!C10,'Seřazení Knt'!D9='Seřazení Knt'!D10),Žebříček!A11,Žebříček!A11+1))","v":8},{"$f":"IF('Seřazení Knt'!A10=0,\"\",'Seřazení Knt'!A10)","v":"Freiwald Richard"},{"$f":"IF(D12=\"\",\"\",IF(AND('Seřazení Knt'!B49='Seřazení Knt'!B50,'Seřazení Knt'!C49='Seřazení Knt'!C50,'Seřazení Knt'!D49='Seřazení Knt'!D50),Žebříček!C11,Žebříček!C11+1))","v":40},{"$f":"IF('Seřazení Knt'!A50=0,\"\",'Seřazení Knt'!A50)","v":"Škoda Vojtěch"},{"$f":"IF(F12=\"\",\"\",IF(AND('Seřazení Knt'!B89='Seřazení Knt'!B90,'Seřazení Knt'!C89='Seřazení Knt'!C90,'Seřazení Knt'!D89='Seřazení Knt'!D90),Žebříček!E11,Žebříček!E11+1))","v":65},{"$f":"IF('Seřazení Knt'!A90=0,\"\",'Seřazení Knt'!A90)","v":"Válek Matěj"},{"$f":"IF(H12=\"\",\"\",IF(AND('Seřazení Knt'!B129='Seřazení Knt'!B130,'Seřazení Knt'!C129='Seřazení Knt'!C130,'Seřazení Knt'!D129='Seřazení Knt'!D130),Žebříček!G11,Žebříček!G11+1))","v":""},{"$f":"IF('Seřazení Knt'!A130=0,\"\",'Seřazení Knt'!A130)","v":""}]
[{"$f":"IF(B13=\"\",\"\",IF(AND('Seřazení Knt'!B10='Seřazení Knt'!B11,'Seřazení Knt'!C10='Seřazení Knt'!C11,'Seřazení Knt'!D10='Seřazení Knt'!D11),Žebříček!A12,Žebříček!A12+1))","v":9},{"$f":"IF('Seřazení Knt'!A11=0,\"\",'Seřazení Knt'!A11)","v":"Kožušník Vojtěch"},{"$f":"IF(D13=\"\",\"\",IF(AND('Seřazení Knt'!B50='Seřazení Knt'!B51,'Seřazení Knt'!C50='Seřazení Knt'!C51,'Seřazení Knt'!D50='Seřazení Knt'!D51),Žebříček!C12,Žebříček!C12+1))","v":41},{"$f":"IF('Seřazení Knt'!A51=0,\"\",'Seřazení Knt'!A51)","v":"Čerchlová Markéta"},{"$f":"IF(F13=\"\",\"\",IF(AND('Seřazení Knt'!B90='Seřazení Knt'!B91,'Seřazení Knt'!C90='Seřazení Knt'!C91,'Seřazení Knt'!D90='Seřazení Knt'!D91),Žebříček!E12,Žebříček!E12+1))","v":65},{"$f":"IF('Seřazení Knt'!A91=0,\"\",'Seřazení Knt'!A91)","v":"Miková  Nikola"},{"$f":"IF(H13=\"\",\"\",IF(AND('Seřazení Knt'!B130='Seřazení Knt'!B131,'Seřazení Knt'!C130='Seřazení Knt'!C131,'Seřazení Knt'!D130='Seřazení Knt'!D131),Žebříček!G12,Žebříček!G12+1))","v":""},{"$f":"IF('Seřazení Knt'!A131=0,\"\",'Seřazení Knt'!A131)","v":""}]
[{"$f":"IF(B14=\"\",\"\",IF(AND('Seřazení Knt'!B11='Seřazení Knt'!B12,'Seřazení Knt'!C11='Seřazení Knt'!C12,'Seřazení Knt'!D11='Seřazení Knt'!D12),Žebříček!A13,Žebříček!A13+1))","v":10},{"$f":"IF('Seřazení Knt'!A12=0,\"\",'Seřazení Knt'!A12)","v":"Bortlíček Adam"},{"$f":"IF(D14=\"\",\"\",IF(AND('Seřazení Knt'!B51='Seřazení Knt'!B52,'Seřazení Knt'!C51='Seřazení Knt'!C52,'Seřazení Knt'!D51='Seřazení Knt'!D52),Žebříček!C13,Žebříček!C13+1))","v":42},{"$f":"IF('Seřazení Knt'!A52=0,\"\",'Seřazení Knt'!A52)","v":"Jakubec Lukáš"},{"$f":"IF(F14=\"\",\"\",IF(AND('Seřazení Knt'!B91='Seřazení Knt'!B92,'Seřazení Knt'!C91='Seřazení Knt'!C92,'Seřazení Knt'!D91='Seřazení Knt'!D92),Žebříček!E13,Žebříček!E13+1))","v":66},{"$f":"IF('Seřazení Knt'!A92=0,\"\",'Seřazení Knt'!A92)","v":"Otáhalová Magda"},{"$f":"IF(H14=\"\",\"\",IF(AND('Seřazení Knt'!B131='Seřazení Knt'!B132,'Seřazení Knt'!C131='Seřazení Knt'!C132,'Seřazení Knt'!D131='Seřazení Knt'!D132),Žebříček!G13,Žebříček!G13+1))","v":""},{"$f":"IF('Seřazení Knt'!A132=0,\"\",'Seřazení Knt'!A132)","v":""}]
[{"$f":"IF(B15=\"\",\"\",IF(AND('Seřazení Knt'!B12='Seřazení Knt'!B13,'Seřazení Knt'!C12='Seřazení Knt'!C13,'Seřazení Knt'!D12='Seřazení Knt'!D13),Žebříček!A14,Žebříček!A14+1))","v":11},{"$f":"IF('Seřazení Knt'!A13=0,\"\",'Seřazení Knt'!A13)","v":"Čerchla Michal"},{"$f":"IF(D15=\"\",\"\",IF(AND('Seřazení Knt'!B52='Seřazení Knt'!B53,'Seřazení Knt'!C52='Seřazení Knt'!C53,'Seřazení Knt'!D52='Seřazení Knt'!D53),Žebříček!C14,Žebříček!C14+1))","v":43},{"$f":"IF('Seřazení Knt'!A53=0,\"\",'Seřazení Knt'!A53)","v":"Kuželová Dominika"},{"$f":"IF(F15=\"\",\"\",IF(AND('Seřazení Knt'!B92='Seřazení Knt'!B93,'Seřazení Knt'!C92='Seřazení Knt'!C93,'Seřazení Knt'!D92='Seřazení Knt'!D93),Žebříček!E14,Žebříček!E14+1))","v":67},{"$f":"IF('Seřazení Knt'!A93=0,\"\",'Seřazení Knt'!A93)","v":"Blažej Daniel"},{"$f":"IF(H15=\"\",\"\",IF(AND('Seřazení Knt'!B132='Seřazení Knt'!B133,'Seřazení Knt'!C132='Seřazení Knt'!C133,'Seřazení Knt'!D132='Seřazení Knt'!D133),Žebříček!G14,Žebříček!G14+1))","v":""},{"$f":"IF('Seřazení Knt'!A133=0,\"\",'Seřazení Knt'!A133)","v":""}]
[{"$f":"IF(B16=\"\",\"\",IF(AND('Seřazení Knt'!B13='Seřazení Knt'!B14,'Seřazení Knt'!C13='Seřazení Knt'!C14,'Seřazení Knt'!D13='Seřazení Knt'!D14),Žebříček!A15,Žebříček!A15+1))","v":11},{"$f":"IF('Seřazení Knt'!A14=0,\"\",'Seřazení Knt'!A14)","v":"Neckář Matěj"},{"$f":"IF(D16=\"\",\"\",IF(AND('Seřazení Knt'!B53='Seřazení Knt'!B54,'Seřazení Knt'!C53='Seřazení Knt'!C54,'Seřazení Knt'!D53='Seřazení Knt'!D54),Žebříček!C15,Žebříček!C15+1))","v":44},{"$f":"IF('Seřazení Knt'!A54=0,\"\",'Seřazení Knt'!A54)","v":"Škuta Otakar"},{"$f":"IF(F16=\"\",\"\",IF(AND('Seřazení Knt'!B93='Seřazení Knt'!B94,'Seřazení Knt'!C93='Seřazení Knt'!C94,'Seřazení Knt'!D93='Seřazení Knt'!D94),Žebříček!E15,Žebříček!E15+1))","v":68},{"$f":"IF('Seřazení Knt'!A94=0,\"\",'Seřazení Knt'!A94)","v":"Obercian Martin"},{"$f":"IF(H16=\"\",\"\",IF(AND('Seřazení Knt'!B133='Seřazení Knt'!B134,'Seřazení Knt'!C133='Seřazení Knt'!C134,'Seřazení Knt'!D133='Seřazení Knt'!D134),Žebříček!G15,Žebříček!G15+1))","v":""},{"$f":"IF('Seřazení Knt'!A134=0,\"\",'Seřazení Knt'!A134)","v":""}]
[{"$f":"IF(B17=\"\",\"\",IF(AND('Seřazení Knt'!B14='Seřazení Knt'!B15,'Seřazení Knt'!C14='Seřazení Knt'!C15,'Seřazení Knt'!D14='Seřazení Knt'!D15),Žebříček!A16,Žebříček!A16+1))","v":12},{"$f":"IF('Seřazení Knt'!A15=0,\"\",'Seřazení Knt'!A15)","v":"Pražák Tomáš"},{"$f":"IF(D17=\"\",\"\",IF(AND('Seřazení Knt'!B54='Seřazení Knt'!B55,'Seřazení Knt'!C54='Seřazení Knt'!C55,'Seřazení Knt'!D54='Seřazení Knt'!D55),Žebříček!C16,Žebříček!C16+1))","v":45},{"$f":"IF('Seřazení Knt'!A55=0,\"\",'Seřazení Knt'!A55)","v":"Čebík Filip"},{"$f":"IF(F17=\"\",\"\",IF(AND('Seřazení Knt'!B94='Seřazení Knt'!B95,'Seřazení Knt'!C94='Seřazení Knt'!C95,'Seřazení Knt'!D94='Seřazení Knt'!D95),Žebříček!E16,Žebříček!E16+1))","v":69},{"$f":"IF('Seřazení Knt'!A95=0,\"\",'Seřazení Knt'!A95)","v":"Jarošek Adam"},{"$f":"IF(H17=\"\",\"\",IF(AND('Seřazení Knt'!B134='Seřazení Knt'!B135,'Seřazení Knt'!C134='Seřazení Knt'!C135,'Seřazení Knt'!D134='Seřazení Knt'!D135),Žebříček!G16,Žebříček!G16+1))","v":""},{"$f":"IF('Seřazení Knt'!A135=0,\"\",'Seřazení Knt'!A135)","v":""}]
[{"$f":"IF(B18=\"\",\"\",IF(AND('Seřazení Knt'!B15='Seřazení Knt'!B16,'Seřazení Knt'!C15='Seřazení Knt'!C16,'Seřazení Knt'!D15='Seřazení Knt'!D16),Žebříček!A17,Žebříček!A17+1))","v":12},{"$f":"IF('Seřazení Knt'!A16=0,\"\",'Seřazení Knt'!A16)","v":"Baštinská Adéla"},{"$f":"IF(D18=\"\",\"\",IF(AND('Seřazení Knt'!B55='Seřazení Knt'!B56,'Seřazení Knt'!C55='Seřazení Knt'!C56,'Seřazení Knt'!D55='Seřazení Knt'!D56),Žebříček!C17,Žebříček!C17+1))","v":45},{"$f":"IF('Seřazení Knt'!A56=0,\"\",'Seřazení Knt'!A56)","v":"Malaczynski Filip"},{"$f":"IF(F18=\"\",\"\",IF(AND('Seřazení Knt'!B95='Seřazení Knt'!B96,'Seřazení Knt'!C95='Seřazení Knt'!C96,'Seřazení Knt'!D95='Seřazení Knt'!D96),Žebříček!E17,Žebříček!E17+1))","v":70},{"$f":"IF('Seřazení Knt'!A96=0,\"\",'Seřazení Knt'!A96)","v":"Ďurina Lukáš"},{"$f":"IF(H18=\"\",\"\",IF(AND('Seřazení Knt'!B135='Seřazení Knt'!B136,'Seřazení Knt'!C135='Seřazení Knt'!C136,'Seřazení Knt'!D135='Seřazení Knt'!D136),Žebříček!G17,Žebříček!G17+1))","v":""},{"$f":"IF('Seřazení Knt'!A136=0,\"\",'Seřazení Knt'!A136)","v":""}]
[{"$f":"IF(B19=\"\",\"\",IF(AND('Seřazení Knt'!B16='Seřazení Knt'!B17,'Seřazení Knt'!C16='Seřazení Knt'!C17,'Seřazení Knt'!D16='Seřazení Knt'!D17),Žebříček!A18,Žebříček!A18+1))","v":13},{"$f":"IF('Seřazení Knt'!A17=0,\"\",'Seřazení Knt'!A17)","v":"Kolář Vojtěch"},{"$f":"IF(D19=\"\",\"\",IF(AND('Seřazení Knt'!B56='Seřazení Knt'!B57,'Seřazení Knt'!C56='Seřazení Knt'!C57,'Seřazení Knt'!D56='Seřazení Knt'!D57),Žebříček!C18,Žebříček!C18+1))","v":45},{"$f":"IF('Seřazení Knt'!A57=0,\"\",'Seřazení Knt'!A57)","v":"Žák Pavel"},{"$f":"IF(F19=\"\",\"\",IF(AND('Seřazení Knt'!B96='Seřazení Knt'!B97,'Seřazení Knt'!C96='Seřazení Knt'!C97,'Seřazení Knt'!D96='Seřazení Knt'!D97),Žebříček!E18,Žebříček!E18+1))","v":71},{"$f":"IF('Seřazení Knt'!A97=0,\"\",'Seřazení Knt'!A97)","v":"Nachtmann Michael"},{"$f":"IF(H19=\"\",\"\",IF(AND('Seřazení Knt'!B136='Seřazení Knt'!B137,'Seřazení Knt'!C136='Seřazení Knt'!C137,'Seřazení Knt'!D136='Seřazení Knt'!D137),Žebříček!G18,Žebříček!G18+1))","v":""},{"$f":"IF('Seřazení Knt'!A137=0,\"\",'Seřazení Knt'!A137)","v":""}]
[{"$f":"IF(B20=\"\",\"\",IF(AND('Seřazení Knt'!B17='Seřazení Knt'!B18,'Seřazení Knt'!C17='Seřazení Knt'!C18,'Seřazení Knt'!D17='Seřazení Knt'!D18),Žebříček!A19,Žebříček!A19+1))","v":14},{"$f":"IF('Seřazení Knt'!A18=0,\"\",'Seřazení Knt'!A18)","v":"Vykydal Tomáš"},{"$f":"IF(D20=\"\",\"\",IF(AND('Seřazení Knt'!B57='Seřazení Knt'!B58,'Seřazení Knt'!C57='Seřazení Knt'!C58,'Seřazení Knt'!D57='Seřazení Knt'!D58),Žebříček!C19,Žebříček!C19+1))","v":46},{"$f":"IF('Seřazení Knt'!A58=0,\"\",'Seřazení Knt'!A58)","v":"Matýsek Jan"},{"$f":"IF(F20=\"\",\"\",IF(AND('Seřazení Knt'!B97='Seřazení Knt'!B98,'Seřazení Knt'!C97='Seřazení Knt'!C98,'Seřazení Knt'!D97='Seřazení Knt'!D98),Žebříček!E19,Žebříček!E19+1))","v":72},{"$f":"IF('Seřazení Knt'!A98=0,\"\",'Seřazení Knt'!A98)","v":"Miková Nikola"},{"$f":"IF(H20=\"\",\"\",IF(AND('Seřazení Knt'!B137='Seřazení Knt'!B138,'Seřazení Knt'!C137='Seřazení Knt'!C138,'Seřazení Knt'!D137='Seřazení Knt'!D138),Žebříček!G19,Žebříček!G19+1))","v":""},{"$f":"IF('Seřazení Knt'!A138=0,\"\",'Seřazení Knt'!A138)","v":""}]
[{"$f":"IF(B21=\"\",\"\",IF(AND('Seřazení Knt'!B18='Seřazení Knt'!B19,'Seřazení Knt'!C18='Seřazení Knt'!C19,'Seřazení Knt'!D18='Seřazení Knt'!D19),Žebříček!A20,Žebříček!A20+1))","v":15},{"$f":"IF('Seřazení Knt'!A19=0,\"\",'Seřazení Knt'!A19)","v":"Hořín Matyáš"},{"$f":"IF(D21=\"\",\"\",IF(AND('Seřazení Knt'!B58='Seřazení Knt'!B59,'Seřazení Knt'!C58='Seřazení Knt'!C59,'Seřazení Knt'!D58='Seřazení Knt'!D59),Žebříček!C20,Žebříček!C20+1))","v":46},{"$f":"IF('Seřazení Knt'!A59=0,\"\",'Seřazení Knt'!A59)","v":"Vavřina Viktor"},{"$f":"IF(F21=\"\",\"\",IF(AND('Seřazení Knt'!B98='Seřazení Knt'!B99,'Seřazení Knt'!C98='Seřazení Knt'!C99,'Seřazení Knt'!D98='Seřazení Knt'!D99),Žebříček!E20,Žebříček!E20+1))","v":73},{"$f":"IF('Seřazení Knt'!A99=0,\"\",'Seřazení Knt'!A99)","v":"Dušenka Michal"},{"$f":"IF(H21=\"\",\"\",IF(AND('Seřazení Knt'!B138='Seřazení Knt'!B139,'Seřazení Knt'!C138='Seřazení Knt'!C139,'Seřazení Knt'!D138='Seřazení Knt'!D139),Žebříček!G20,Žebříček!G20+1))","v":""},{"$f":"IF('Seřazení Knt'!A139=0,\"\",'Seřazení Knt'!A139)","v":""}]
[{"$f":"IF(B22=\"\",\"\",IF(AND('Seřazení Knt'!B19='Seřazení Knt'!B20,'Seřazení Knt'!C19='Seřazení Knt'!C20,'Seřazení Knt'!D19='Seřazení Knt'!D20),Žebříček!A21,Žebříček!A21+1))","v":16},{"$f":"IF('Seřazení Knt'!A20=0,\"\",'Seřazení Knt'!A20)","v":"Šabacká Denisa"},{"$f":"IF(D22=\"\",\"\",IF(AND('Seřazení Knt'!B59='Seřazení Knt'!B60,'Seřazení Knt'!C59='Seřazení Knt'!C60,'Seřazení Knt'!D59='Seřazení Knt'!D60),Žebříček!C21,Žebříček!C21+1))","v":47},{"$f":"IF('Seřazení Knt'!A60=0,\"\",'Seřazení Knt'!A60)","v":"Mlčák Jan"},{"$f":"IF(F22=\"\",\"\",IF(AND('Seřazení Knt'!B99='Seřazení Knt'!B100,'Seřazení Knt'!C99='Seřazení Knt'!C100,'Seřazení Knt'!D99='Seřazení Knt'!D100),Žebříček!E21,Žebříček!E21+1))","v":74},{"$f":"IF('Seřazení Knt'!A100=0,\"\",'Seřazení Knt'!A100)","v":"Válek Prokop"},{"$f":"IF(H22=\"\",\"\",IF(AND('Seřazení Knt'!B139='Seřazení Knt'!B140,'Seřazení Knt'!C139='Seřazení Knt'!C140,'Seřazení Knt'!D139='Seřazení Knt'!D140),Žebříček!G21,Žebříček!G21+1))","v":""},{"$f":"IF('Seřazení Knt'!A140=0,\"\",'Seřazení Knt'!A140)","v":""}]
[{"$f":"IF(B23=\"\",\"\",IF(AND('Seřazení Knt'!B20='Seřazení Knt'!B21,'Seřazení Knt'!C20='Seřazení Knt'!C21,'Seřazení Knt'!D20='Seřazení Knt'!D21),Žebříček!A22,Žebříček!A22+1))","v":16},{"$f":"IF('Seřazení Knt'!A21=0,\"\",'Seřazení Knt'!A21)","v":"Končítek Kryštof"},{"$f":"IF(D23=\"\",\"\",IF(AND('Seřazení Knt'!B60='Seřazení Knt'!B61,'Seřazení Knt'!C60='Seřazení Knt'!C61,'Seřazení Knt'!D60='Seřazení Knt'!D61),Žebříček!C22,Žebříček!C22+1))","v":48},{"$f":"IF('Seřazení Knt'!A61=0,\"\",'Seřazení Knt'!A61)","v":"Vrbas Alexandr"},{"$f":"IF(F23=\"\",\"\",IF(AND('Seřazení Knt'!B100='Seřazení Knt'!B101,'Seřazení Knt'!C100='Seřazení Knt'!C101,'Seřazení Knt'!D100='Seřazení Knt'!D101),Žebříček!E22,Žebříček!E22+1))","v":75},{"$f":"IF('Seřazení Knt'!A101=0,\"\",'Seřazení Knt'!A101)","v":"Filipec Viktor"},{"$f":"IF(H23=\"\",\"\",IF(AND('Seřazení Knt'!B140='Seřazení Knt'!B141,'Seřazení Knt'!C140='Seřazení Knt'!C141,'Seřazení Knt'!D140='Seřazení Knt'!D141),Žebříček!G22,Žebříček!G22+1))","v":""},{"$f":"IF('Seřazení Knt'!A141=0,\"\",'Seřazení Knt'!A141)","v":""}]
[{"$f":"IF(B24=\"\",\"\",IF(AND('Seřazení Knt'!B21='Seřazení Knt'!B22,'Seřazení Knt'!C21='Seřazení Knt'!C22,'Seřazení Knt'!D21='Seřazení Knt'!D22),Žebříček!A23,Žebříček!A23+1))","v":17},{"$f":"IF('Seřazení Knt'!A22=0,\"\",'Seřazení Knt'!A22)","v":"Macháček Matyáš"},{"$f":"IF(D24=\"\",\"\",IF(AND('Seřazení Knt'!B61='Seřazení Knt'!B62,'Seřazení Knt'!C61='Seřazení Knt'!C62,'Seřazení Knt'!D61='Seřazení Knt'!D62),Žebříček!C23,Žebříček!C23+1))","v":49},{"$f":"IF('Seřazení Knt'!A62=0,\"\",'Seřazení Knt'!A62)","v":"Anošová Anna"},{"$f":"IF(F24=\"\",\"\",IF(AND('Seřazení Knt'!B101='Seřazení Knt'!B102,'Seřazení Knt'!C101='Seřazení Knt'!C102,'Seřazení Knt'!D101='Seřazení Knt'!D102),Žebříček!E23,Žebříček!E23+1))","v":75},{"$f":"IF('Seřazení Knt'!A102=0,\"\",'Seřazení Knt'!A102)","v":"Čech Jiří"},{"$f":"IF(H24=\"\",\"\",IF(AND('Seřazení Knt'!B141='Seřazení Knt'!B142,'Seřazení Knt'!C141='Seřazení Knt'!C142,'Seřazení Knt'!D141='Seřazení Knt'!D142),Žebříček!G23,Žebříček!G23+1))","v":""},{"$f":"IF('Seřazení Knt'!A142=0,\"\",'Seřazení Knt'!A142)","v":""}]
[{"$f":"IF(B25=\"\",\"\",IF(AND('Seřazení Knt'!B22='Seřazení Knt'!B23,'Seřazení Knt'!C22='Seřazení Knt'!C23,'Seřazení Knt'!D22='Seřazení Knt'!D23),Žebříček!A24,Žebříček!A24+1))","v":18},{"$f":"IF('Seřazení Knt'!A23=0,\"\",'Seřazení Knt'!A23)","v":"Papaj Tobiáš"},{"$f":"IF(D25=\"\",\"\",IF(AND('Seřazení Knt'!B62='Seřazení Knt'!B63,'Seřazení Knt'!C62='Seřazení Knt'!C63,'Seřazení Knt'!D62='Seřazení Knt'!D63),Žebříček!C24,Žebříček!C24+1))","v":49},{"$f":"IF('Seřazení Knt'!A63=0,\"\",'Seřazení Knt'!A63)","v":"Pařík Teodor"},{"$f":"IF(F25=\"\",\"\",IF(AND('Seřazení Knt'!B102='Seřazení Knt'!B103,'Seřazení Knt'!C102='Seřazení Knt'!C103,'Seřazení Knt'!D102='Seřazení Knt'!D103),Žebříček!E24,Žebříček!E24+1))","v":75},{"$f":"IF('Seřazení Knt'!A103=0,\"\",'Seřazení Knt'!A103)","v":"Kantoš David"},{"$f":"IF(H25=\"\",\"\",IF(AND('Seřazení Knt'!B142='Seřazení Knt'!B143,'Seřazení Knt'!C142='Seřazení Knt'!C143,'Seřazení Knt'!D142='Seřazení Knt'!D143),Žebříček!G24,Žebříček!G24+1))","v":""},{"$f":"IF('Seřazení Knt'!A143=0,\"\",'Seřazení Knt'!A143)","v":""}]
[{"$f":"IF(B26=\"\",\"\",IF(AND('Seřazení Knt'!B23='Seřazení Knt'!B24,'Seřazení Knt'!C23='Seřazení Knt'!C24,'Seřazení Knt'!D23='Seřazení Knt'!D24),Žebříček!A25,Žebříček!A25+1))","v":19},{"$f":"IF('Seřazení Knt'!A24=0,\"\",'Seřazení Knt'!A24)","v":"Košťálek Václav"},{"$f":"IF(D26=\"\",\"\",IF(AND('Seřazení Knt'!B63='Seřazení Knt'!B64,'Seřazení Knt'!C63='Seřazení Knt'!C64,'Seřazení Knt'!D63='Seřazení Knt'!D64),Žebříček!C25,Žebříček!C25+1))","v":50},{"$f":"IF('Seřazení Knt'!A64=0,\"\",'Seřazení Knt'!A64)","v":"Krčmář Jakub"},{"$f":"IF(F26=\"\",\"\",IF(AND('Seřazení Knt'!B103='Seřazení Knt'!B104,'Seřazení Knt'!C103='Seřazení Knt'!C104,'Seřazení Knt'!D103='Seřazení Knt'!D104),Žebříček!E25,Žebříček!E25+1))","v":75},{"$f":"IF('Seřazení Knt'!A104=0,\"\",'Seřazení Knt'!A104)","v":"Papaj  Tobiáš"},{"$f":"IF(H26=\"\",\"\",IF(AND('Seřazení Knt'!B143='Seřazení Knt'!B144,'Seřazení Knt'!C143='Seřazení Knt'!C144,'Seřazení Knt'!D143='Seřazení Knt'!D144),Žebříček!G25,Žebříček!G25+1))","v":""},{"$f":"IF('Seřazení Knt'!A144=0,\"\",'Seřazení Knt'!A144)","v":""}]
[{"$f":"IF(B27=\"\",\"\",IF(AND('Seřazení Knt'!B24='Seřazení Knt'!B25,'Seřazení Knt'!C24='Seřazení Knt'!C25,'Seřazení Knt'!D24='Seřazení Knt'!D25),Žebříček!A26,Žebříček!A26+1))","v":20},{"$f":"IF('Seřazení Knt'!A25=0,\"\",'Seřazení Knt'!A25)","v":"Neuwirt Petr"},{"$f":"IF(D27=\"\",\"\",IF(AND('Seřazení Knt'!B64='Seřazení Knt'!B65,'Seřazení Knt'!C64='Seřazení Knt'!C65,'Seřazení Knt'!D64='Seřazení Knt'!D65),Žebříček!C26,Žebříček!C26+1))","v":51},{"$f":"IF('Seřazení Knt'!A65=0,\"\",'Seřazení Knt'!A65)","v":"Šlauka David"},{"$f":"IF(F27=\"\",\"\",IF(AND('Seřazení Knt'!B104='Seřazení Knt'!B105,'Seřazení Knt'!C104='Seřazení Knt'!C105,'Seřazení Knt'!D104='Seřazení Knt'!D105),Žebříček!E26,Žebříček!E26+1))","v":75},{"$f":"IF('Seřazení Knt'!A105=0,\"\",'Seřazení Knt'!A105)","v":"Doubek Benjamin"},{"$f":"IF(H27=\"\",\"\",IF(AND('Seřazení Knt'!B144='Seřazení Knt'!B145,'Seřazení Knt'!C144='Seřazení Knt'!C145,'Seřazení Knt'!D144='Seřazení Knt'!D145),Žebříček!G26,Žebříček!G26+1))","v":""},{"$f":"IF('Seřazení Knt'!A145=0,\"\",'Seřazení Knt'!A145)","v":""}]
[{"$f":"IF(B28=\"\",\"\",IF(AND('Seřazení Knt'!B25='Seřazení Knt'!B26,'Seřazení Knt'!C25='Seřazení Knt'!C26,'Seřazení Knt'!D25='Seřazení Knt'!D26),Žebříček!A27,Žebříček!A27+1))","v":21},{"$f":"IF('Seřazení Knt'!A26=0,\"\",'Seřazení Knt'!A26)","v":"Meixner Michal"},{"$f":"IF(D28=\"\",\"\",IF(AND('Seřazení Knt'!B65='Seřazení Knt'!B66,'Seřazení Knt'!C65='Seřazení Knt'!C66,'Seřazení Knt'!D65='Seřazení Knt'!D66),Žebříček!C27,Žebříček!C27+1))","v":51},{"$f":"IF('Seřazení Knt'!A66=0,\"\",'Seřazení Knt'!A66)","v":"Paloch Martin"},{"$f":"IF(F28=\"\",\"\",IF(AND('Seřazení Knt'!B105='Seřazení Knt'!B106,'Seřazení Knt'!C105='Seřazení Knt'!C106,'Seřazení Knt'!D105='Seřazení Knt'!D106),Žebříček!E27,Žebříček!E27+1))","v":75},{"$f":"IF('Seřazení Knt'!A106=0,\"\",'Seřazení Knt'!A106)","v":"Novotný Ladislav"},{"$f":"IF(H28=\"\",\"\",IF(AND('Seřazení Knt'!B145='Seřazení Knt'!B146,'Seřazení Knt'!C145='Seřazení Knt'!C146,'Seřazení Knt'!D145='Seřazení Knt'!D146),Žebříček!G27,Žebříček!G27+1))","v":""},{"$f":"IF('Seřazení Knt'!A146=0,\"\",'Seřazení Knt'!A146)","v":""}]
[{"$f":"IF(B29=\"\",\"\",IF(AND('Seřazení Knt'!B26='Seřazení Knt'!B27,'Seřazení Knt'!C26='Seřazení Knt'!C27,'Seřazení Knt'!D26='Seřazení Knt'!D27),Žebříček!A28,Žebříček!A28+1))","v":21},{"$f":"IF('Seřazení Knt'!A27=0,\"\",'Seřazení Knt'!A27)","v":"Polák Matyáš"},{"$f":"IF(D29=\"\",\"\",IF(AND('Seřazení Knt'!B66='Seřazení Knt'!B67,'Seřazení Knt'!C66='Seřazení Knt'!C67,'Seřazení Knt'!D66='Seřazení Knt'!D67),Žebříček!C28,Žebříček!C28+1))","v":52},{"$f":"IF('Seřazení Knt'!A67=0,\"\",'Seřazení Knt'!A67)","v":"Holík Denis"},{"$f":"IF(F29=\"\",\"\",IF(AND('Seřazení Knt'!B106='Seřazení Knt'!B107,'Seřazení Knt'!C106='Seřazení Knt'!C107,'Seřazení Knt'!D106='Seřazení Knt'!D107),Žebříček!E28,Žebříček!E28+1))","v":75},{"$f":"IF('Seřazení Knt'!A107=0,\"\",'Seřazení Knt'!A107)","v":"Rudinský Jakub"},{"$f":"IF(H29=\"\",\"\",IF(AND('Seřazení Knt'!B146='Seřazení Knt'!B147,'Seřazení Knt'!C146='Seřazení Knt'!C147,'Seřazení Knt'!D146='Seřazení Knt'!D147),Žebříček!G28,Žebříček!G28+1))","v":""},{"$f":"IF('Seřazení Knt'!A147=0,\"\",'Seřazení Knt'!A147)","v":""}]
[{"$f":"IF(B30=\"\",\"\",IF(AND('Seřazení Knt'!B27='Seřazení Knt'!B28,'Seřazení Knt'!C27='Seřazení Knt'!C28,'Seřazení Knt'!D27='Seřazení Knt'!D28),Žebříček!A29,Žebříček!A29+1))","v":22},{"$f":"IF('Seřazení Knt'!A28=0,\"\",'Seřazení Knt'!A28)","v":"Vaculík Lukáš"},{"$f":"IF(D30=\"\",\"\",IF(AND('Seřazení Knt'!B67='Seřazení Knt'!B68,'Seřazení Knt'!C67='Seřazení Knt'!C68,'Seřazení Knt'!D67='Seřazení Knt'!D68),Žebříček!C29,Žebříček!C29+1))","v":53},{"$f":"IF('Seřazení Knt'!A68=0,\"\",'Seřazení Knt'!A68)","v":"Hřebavka Patrik"},{"$f":"IF(F30=\"\",\"\",IF(AND('Seřazení Knt'!B107='Seřazení Knt'!B108,'Seřazení Knt'!C107='Seřazení Knt'!C108,'Seřazení Knt'!D107='Seřazení Knt'!D108),Žebříček!E29,Žebříček!E29+1))","v":75},{"$f":"IF('Seřazení Knt'!A108=0,\"\",'Seřazení Knt'!A108)","v":"Konečná Kateřina"},{"$f":"IF(H30=\"\",\"\",IF(AND('Seřazení Knt'!B147='Seřazení Knt'!B148,'Seřazení Knt'!C147='Seřazení Knt'!C148,'Seřazení Knt'!D147='Seřazení Knt'!D148),Žebříček!G29,Žebříček!G29+1))","v":""},{"$f":"IF('Seřazení Knt'!A148=0,\"\",'Seřazení Knt'!A148)","v":""}]
[{"$f":"IF(B31=\"\",\"\",IF(AND('Seřazení Knt'!B28='Seřazení Knt'!B29,'Seřazení Knt'!C28='Seřazení Knt'!C29,'Seřazení Knt'!D28='Seřazení Knt'!D29),Žebříček!A30,Žebříček!A30+1))","v":23},{"$f":"IF('Seřazení Knt'!A29=0,\"\",'Seřazení Knt'!A29)","v":"Martináková  Stela"},{"$f":"IF(D31=\"\",\"\",IF(AND('Seřazení Knt'!B68='Seřazení Knt'!B69,'Seřazení Knt'!C68='Seřazení Knt'!C69,'Seřazení Knt'!D68='Seřazení Knt'!D69),Žebříček!C30,Žebříček!C30+1))","v":54},{"$f":"IF('Seřazení Knt'!A69=0,\"\",'Seřazení Knt'!A69)","v":"Drastich Vojtěch"},{"$f":"IF(F31=\"\",\"\",IF(AND('Seřazení Knt'!B108='Seřazení Knt'!B109,'Seřazení Knt'!C108='Seřazení Knt'!C109,'Seřazení Knt'!D108='Seřazení Knt'!D109),Žebříček!E30,Žebříček!E30+1))","v":75},{"$f":"IF('Seřazení Knt'!A109=0,\"\",'Seřazení Knt'!A109)","v":"Frais Jiří"},{"$f":"IF(H31=\"\",\"\",IF(AND('Seřazení Knt'!B148='Seřazení Knt'!B149,'Seřazení Knt'!C148='Seřazení Knt'!C149,'Seřazení Knt'!D148='Seřazení Knt'!D149),Žebříček!G30,Žebříček!G30+1))","v":""},{"$f":"IF('Seřazení Knt'!A149=0,\"\",'Seřazení Knt'!A149)","v":""}]
[{"$f":"IF(B32=\"\",\"\",IF(AND('Seřazení Knt'!B29='Seřazení Knt'!B30,'Seřazení Knt'!C29='Seřazení Knt'!C30,'Seřazení Knt'!D29='Seřazení Knt'!D30),Žebříček!A31,Žebříček!A31+1))","v":24},{"$f":"IF('Seřazení Knt'!A30=0,\"\",'Seřazení Knt'!A30)","v":"Mojík Filip"},{"$f":"IF(D32=\"\",\"\",IF(AND('Seřazení Knt'!B69='Seřazení Knt'!B70,'Seřazení Knt'!C69='Seřazení Knt'!C70,'Seřazení Knt'!D69='Seřazení Knt'!D70),Žebříček!C31,Žebříček!C31+1))","v":54},{"$f":"IF('Seřazení Knt'!A70=0,\"\",'Seřazení Knt'!A70)","v":"Janík Tadeáš"},{"$f":"IF(F32=\"\",\"\",IF(AND('Seřazení Knt'!B109='Seřazení Knt'!B110,'Seřazení Knt'!C109='Seřazení Knt'!C110,'Seřazení Knt'!D109='Seřazení Knt'!D110),Žebříček!E31,Žebříček!E31+1))","v":76},{"$f":"IF('Seřazení Knt'!A110=0,\"\",'Seřazení Knt'!A110)","v":"Šebesta Jakub"},{"$f":"IF(H32=\"\",\"\",IF(AND('Seřazení Knt'!B149='Seřazení Knt'!B150,'Seřazení Knt'!C149='Seřazení Knt'!C150,'Seřazení Knt'!D149='Seřazení Knt'!D150),Žebříček!G31,Žebříček!G31+1))","v":""},{"$f":"IF('Seřazení Knt'!A150=0,\"\",'Seřazení Knt'!A150)","v":""}]
[{"$f":"IF(B33=\"\",\"\",IF(AND('Seřazení Knt'!B30='Seřazení Knt'!B31,'Seřazení Knt'!C30='Seřazení Knt'!C31,'Seřazení Knt'!D30='Seřazení Knt'!D31),Žebříček!A32,Žebříček!A32+1))","v":25},{"$f":"IF('Seřazení Knt'!A31=0,\"\",'Seřazení Knt'!A31)","v":"Kovalčík Martin"},{"$f":"IF(D33=\"\",\"\",IF(AND('Seřazení Knt'!B70='Seřazení Knt'!B71,'Seřazení Knt'!C70='Seřazení Knt'!C71,'Seřazení Knt'!D70='Seřazení Knt'!D71),Žebříček!C32,Žebříček!C32+1))","v":54},{"$f":"IF('Seřazení Knt'!A71=0,\"\",'Seřazení Knt'!A71)","v":"Kubík Martin"},{"$f":"IF(F33=\"\",\"\",IF(AND('Seřazení Knt'!B110='Seřazení Knt'!B111,'Seřazení Knt'!C110='Seřazení Knt'!C111,'Seřazení Knt'!D110='Seřazení Knt'!D111),Žebříček!E32,Žebříček!E32+1))","v":77},{"$f":"IF('Seřazení Knt'!A111=0,\"\",'Seřazení Knt'!A111)","v":"Endt David"},{"$f":"IF(H33=\"\",\"\",IF(AND('Seřazení Knt'!B150='Seřazení Knt'!B151,'Seřazení Knt'!C150='Seřazení Knt'!C151,'Seřazení Knt'!D150='Seřazení Knt'!D151),Žebříček!G32,Žebříček!G32+1))","v":""},{"$f":"IF('Seřazení Knt'!A151=0,\"\",'Seřazení Knt'!A151)","v":""}]
[{"$f":"IF(B34=\"\",\"\",IF(AND('Seřazení Knt'!B31='Seřazení Knt'!B32,'Seřazení Knt'!C31='Seřazení Knt'!C32,'Seřazení Knt'!D31='Seřazení Knt'!D32),Žebříček!A33,Žebříček!A33+1))","v":26},{"$f":"IF('Seřazení Knt'!A32=0,\"\",'Seřazení Knt'!A32)","v":"Bartoň Metoděj"},{"$f":"IF(D34=\"\",\"\",IF(AND('Seřazení Knt'!B71='Seřazení Knt'!B72,'Seřazení Knt'!C71='Seřazení Knt'!C72,'Seřazení Knt'!D71='Seřazení Knt'!D72),Žebříček!C33,Žebříček!C33+1))","v":54},{"$f":"IF('Seřazení Knt'!A72=0,\"\",'Seřazení Knt'!A72)","v":"Zvardoň Daniel"},{"$f":"IF(F34=\"\",\"\",IF(AND('Seřazení Knt'!B111='Seřazení Knt'!B112,'Seřazení Knt'!C111='Seřazení Knt'!C112,'Seřazení Knt'!D111='Seřazení Knt'!D112),Žebříček!E33,Žebříček!E33+1))","v":77},{"$f":"IF('Seřazení Knt'!A112=0,\"\",'Seřazení Knt'!A112)","v":"Wanecki Filip"},{"$f":"IF(H34=\"\",\"\",IF(AND('Seřazení Knt'!B151='Seřazení Knt'!B152,'Seřazení Knt'!C151='Seřazení Knt'!C152,'Seřazení Knt'!D151='Seřazení Knt'!D152),Žebříček!G33,Žebříček!G33+1))","v":""},{"$f":"IF('Seřazení Knt'!A152=0,\"\",'Seřazení Knt'!A152)","v":""}]
[{"$f":"IF(B35=\"\",\"\",IF(AND('Seřazení Knt'!B32='Seřazení Knt'!B33,'Seřazení Knt'!C32='Seřazení Knt'!C33,'Seřazení Knt'!D32='Seřazení Knt'!D33),Žebříček!A34,Žebříček!A34+1))","v":27},{"$f":"IF('Seřazení Knt'!A33=0,\"\",'Seřazení Knt'!A33)","v":"Gurbovič Daniel"},{"$f":"IF(D35=\"\",\"\",IF(AND('Seřazení Knt'!B72='Seřazení Knt'!B73,'Seřazení Knt'!C72='Seřazení Knt'!C73,'Seřazení Knt'!D72='Seřazení Knt'!D73),Žebříček!C34,Žebříček!C34+1))","v":54},{"$f":"IF('Seřazení Knt'!A73=0,\"\",'Seřazení Knt'!A73)","v":"Černý Michal"},{"$f":"IF(F35=\"\",\"\",IF(AND('Seřazení Knt'!B112='Seřazení Knt'!B113,'Seřazení Knt'!C112='Seřazení Knt'!C113,'Seřazení Knt'!D112='Seřazení Knt'!D113),Žebříček!E34,Žebříček!E34+1))","v":78},{"$f":"IF('Seřazení Knt'!A113=0,\"\",'Seřazení Knt'!A113)","v":"Caletka Michal"},{"$f":"IF(H35=\"\",\"\",IF(AND('Seřazení Knt'!B152='Seřazení Knt'!B153,'Seřazení Knt'!C152='Seřazení Knt'!C153,'Seřazení Knt'!D152='Seřazení Knt'!D153),Žebříček!G34,Žebříček!G34+1))","v":""},{"$f":"IF('Seřazení Knt'!A153=0,\"\",'Seřazení Knt'!A153)","v":""}]
[{"$f":"IF(B36=\"\",\"\",IF(AND('Seřazení Knt'!B33='Seřazení Knt'!B34,'Seřazení Knt'!C33='Seřazení Knt'!C34,'Seřazení Knt'!D33='Seřazení Knt'!D34),Žebříček!A35,Žebříček!A35+1))","v":27},{"$f":"IF('Seřazení Knt'!A34=0,\"\",'Seřazení Knt'!A34)","v":"Zabek Matyáš"},{"$f":"IF(D36=\"\",\"\",IF(AND('Seřazení Knt'!B73='Seřazení Knt'!B74,'Seřazení Knt'!C73='Seřazení Knt'!C74,'Seřazení Knt'!D73='Seřazení Knt'!D74),Žebříček!C35,Žebříček!C35+1))","v":54},{"$f":"IF('Seřazení Knt'!A74=0,\"\",'Seřazení Knt'!A74)","v":"Šlauka Martin"},{"$f":"IF(F36=\"\",\"\",IF(AND('Seřazení Knt'!B113='Seřazení Knt'!B114,'Seřazení Knt'!C113='Seřazení Knt'!C114,'Seřazení Knt'!D113='Seřazení Knt'!D114),Žebříček!E35,Žebříček!E35+1))","v":79},{"$f":"IF('Seřazení Knt'!A114=0,\"\",'Seřazení Knt'!A114)","v":"Tokarský Filip"},{"$f":"IF(H36=\"\",\"\",IF(AND('Seřazení Knt'!B153='Seřazení Knt'!B154,'Seřazení Knt'!C153='Seřazení Knt'!C154,'Seřazení Knt'!D153='Seřazení Knt'!D154),Žebříček!G35,Žebříček!G35+1))","v":""},{"$f":"IF('Seřazení Knt'!A154=0,\"\",'Seřazení Knt'!A154)","v":""}]
[{"$f":"IF(B37=\"\",\"\",IF(AND('Seřazení Knt'!B34='Seřazení Knt'!B35,'Seřazení Knt'!C34='Seřazení Knt'!C35,'Seřazení Knt'!D34='Seřazení Knt'!D35),Žebříček!A36,Žebříček!A36+1))","v":28},{"$f":"IF('Seřazení Knt'!A35=0,\"\",'Seřazení Knt'!A35)","v":"Košťálek Vojtěch"},{"$f":"IF(D37=\"\",\"\",IF(AND('Seřazení Knt'!B74='Seřazení Knt'!B75,'Seřazení Knt'!C74='Seřazení Knt'!C75,'Seřazení Knt'!D74='Seřazení Knt'!D75),Žebříček!C36,Žebříček!C36+1))","v":54},{"$f":"IF('Seřazení Knt'!A75=0,\"\",'Seřazení Knt'!A75)","v":"Motyka Dominik"},{"$f":"IF(F37=\"\",\"\",IF(AND('Seřazení Knt'!B114='Seřazení Knt'!B115,'Seřazení Knt'!C114='Seřazení Knt'!C115,'Seřazení Knt'!D114='Seřazení Knt'!D115),Žebříček!E36,Žebříček!E36+1))","v":79},{"$f":"IF('Seřazení Knt'!A115=0,\"\",'Seřazení Knt'!A115)","v":"Tobola Alexandr"},{"$f":"IF(H37=\"\",\"\",IF(AND('Seřazení Knt'!B154='Seřazení Knt'!B155,'Seřazení Knt'!C154='Seřazení Knt'!C155,'Seřazení Knt'!D154='Seřazení Knt'!D155),Žebříček!G36,Žebříček!G36+1))","v":""},{"$f":"IF('Seřazení Knt'!A155=0,\"\",'Seřazení Knt'!A155)","v":""}]
[{"$f":"IF(B38=\"\",\"\",IF(AND('Seřazení Knt'!B35='Seřazení Knt'!B36,'Seřazení Knt'!C35='Seřazení Knt'!C36,'Seřazení Knt'!D35='Seřazení Knt'!D36),Žebříček!A37,Žebříček!A37+1))","v":29},{"$f":"IF('Seřazení Knt'!A36=0,\"\",'Seřazení Knt'!A36)","v":"Boháč Adam"},{"$f":"IF(D38=\"\",\"\",IF(AND('Seřazení Knt'!B75='Seřazení Knt'!B76,'Seřazení Knt'!C75='Seřazení Knt'!C76,'Seřazení Knt'!D75='Seřazení Knt'!D76),Žebříček!C37,Žebříček!C37+1))","v":54},{"$f":"IF('Seřazení Knt'!A76=0,\"\",'Seřazení Knt'!A76)","v":"Matušek Jakub"},{"$f":"IF(F38=\"\",\"\",IF(AND('Seřazení Knt'!B115='Seřazení Knt'!B116,'Seřazení Knt'!C115='Seřazení Knt'!C116,'Seřazení Knt'!D115='Seřazení Knt'!D116),Žebříček!E37,Žebříček!E37+1))","v":80},{"$f":"IF('Seřazení Knt'!A116=0,\"\",'Seřazení Knt'!A116)","v":"Veselý Kryštof"},{"$f":"IF(H38=\"\",\"\",IF(AND('Seřazení Knt'!B155='Seřazení Knt'!B156,'Seřazení Knt'!C155='Seřazení Knt'!C156,'Seřazení Knt'!D155='Seřazení Knt'!D156),Žebříček!G37,Žebříček!G37+1))","v":""},{"$f":"IF('Seřazení Knt'!A156=0,\"\",'Seřazení Knt'!A156)","v":""}]
[{"$f":"IF(B39=\"\",\"\",IF(AND('Seřazení Knt'!B36='Seřazení Knt'!B37,'Seřazení Knt'!C36='Seřazení Knt'!C37,'Seřazení Knt'!D36='Seřazení Knt'!D37),Žebříček!A38,Žebříček!A38+1))","v":30},{"$f":"IF('Seřazení Knt'!A37=0,\"\",'Seřazení Knt'!A37)","v":"Huvar Jakub"},{"$f":"IF(D39=\"\",\"\",IF(AND('Seřazení Knt'!B76='Seřazení Knt'!B77,'Seřazení Knt'!C76='Seřazení Knt'!C77,'Seřazení Knt'!D76='Seřazení Knt'!D77),Žebříček!C38,Žebříček!C38+1))","v":54},{"$f":"IF('Seřazení Knt'!A77=0,\"\",'Seřazení Knt'!A77)","v":"Rajna Alexandr"},{"$f":"IF(F39=\"\",\"\",IF(AND('Seřazení Knt'!B116='Seřazení Knt'!B117,'Seřazení Knt'!C116='Seřazení Knt'!C117,'Seřazení Knt'!D116='Seřazení Knt'!D117),Žebříček!E38,Žebříček!E38+1))","v":81},{"$f":"IF('Seřazení Knt'!A117=0,\"\",'Seřazení Knt'!A117)","v":"Vidlička Kristián"},{"$f":"IF(H39=\"\",\"\",IF(AND('Seřazení Knt'!B156='Seřazení Knt'!B157,'Seřazení Knt'!C156='Seřazení Knt'!C157,'Seřazení Knt'!D156='Seřazení Knt'!D157),Žebříček!G38,Žebříček!G38+1))","v":""},{"$f":"IF('Seřazení Knt'!A157=0,\"\",'Seřazení Knt'!A157)","v":""}]
[{"$f":"IF(B40=\"\",\"\",IF(AND('Seřazení Knt'!B37='Seřazení Knt'!B38,'Seřazení Knt'!C37='Seřazení Knt'!C38,'Seřazení Knt'!D37='Seřazení Knt'!D38),Žebříček!A39,Žebříček!A39+1))","v":31},{"$f":"IF('Seřazení Knt'!A38=0,\"\",'Seřazení Knt'!A38)","v":"Jakšik Daniel"},{"$f":"IF(D40=\"\",\"\",IF(AND('Seřazení Knt'!B77='Seřazení Knt'!B78,'Seřazení Knt'!C77='Seřazení Knt'!C78,'Seřazení Knt'!D77='Seřazení Knt'!D78),Žebříček!C39,Žebříček!C39+1))","v":55},{"$f":"IF('Seřazení Knt'!A78=0,\"\",'Seřazení Knt'!A78)","v":"Rudinský Alex"},{"$f":"IF(F40=\"\",\"\",IF(AND('Seřazení Knt'!B117='Seřazení Knt'!B118,'Seřazení Knt'!C117='Seřazení Knt'!C118,'Seřazení Knt'!D117='Seřazení Knt'!D118),Žebříček!E39,Žebříček!E39+1))","v":82},{"$f":"IF('Seřazení Knt'!A118=0,\"\",'Seřazení Knt'!A118)","v":"Horák Adam"},{"$f":"IF(H40=\"\",\"\",IF(AND('Seřazení Knt'!B157='Seřazení Knt'!B158,'Seřazení Knt'!C157='Seřazení Knt'!C158,'Seřazení Knt'!D157='Seřazení Knt'!D158),Žebříček!G39,Žebříček!G39+1))","v":""},{"$f":"IF('Seřazení Knt'!A158=0,\"\",'Seřazení Knt'!A158)","v":""}]
[{"$f":"IF(B41=\"\",\"\",IF(AND('Seřazení Knt'!B38='Seřazení Knt'!B39,'Seřazení Knt'!C38='Seřazení Knt'!C39,'Seřazení Knt'!D38='Seřazení Knt'!D39),Žebříček!A40,Žebříček!A40+1))","v":31},{"$f":"IF('Seřazení Knt'!A39=0,\"\",'Seřazení Knt'!A39)","v":"Kuzník Tadeáš"},{"$f":"IF(D41=\"\",\"\",IF(AND('Seřazení Knt'!B78='Seřazení Knt'!B79,'Seřazení Knt'!C78='Seřazení Knt'!C79,'Seřazení Knt'!D78='Seřazení Knt'!D79),Žebříček!C40,Žebříček!C40+1))","v":56},{"$f":"IF('Seřazení Knt'!A79=0,\"\",'Seřazení Knt'!A79)","v":"Volný Jakub"},{"$f":"IF(F41=\"\",\"\",IF(AND('Seřazení Knt'!B118='Seřazení Knt'!B119,'Seřazení Knt'!C118='Seřazení Knt'!C119,'Seřazení Knt'!D118='Seřazení Knt'!D119),Žebříček!E40,Žebříček!E40+1))","v":83},{"$f":"IF('Seřazení Knt'!A119=0,\"\",'Seřazení Knt'!A119)","v":"Turek Jakub"},{"$f":"IF(H41=\"\",\"\",IF(AND('Seřazení Knt'!B158='Seřazení Knt'!B159,'Seřazení Knt'!C158='Seřazení Knt'!C159,'Seřazení Knt'!D158='Seřazení Knt'!D159),Žebříček!G40,Žebříček!G40+1))","v":""},{"$f":"IF('Seřazení Knt'!A159=0,\"\",'Seřazení Knt'!A159)","v":""}]
[{"$f":"IF(B42=\"\",\"\",IF(AND('Seřazení Knt'!B39='Seřazení Knt'!B40,'Seřazení Knt'!C39='Seřazení Knt'!C40,'Seřazení Knt'!D39='Seřazení Knt'!D40),Žebříček!A41,Žebříček!A41+1))","v":32},{"$f":"IF('Seřazení Knt'!A40=0,\"\",'Seřazení Knt'!A40)","v":"Král Miroslav"},{"$f":"IF(D42=\"\",\"\",IF(AND('Seřazení Knt'!B79='Seřazení Knt'!B80,'Seřazení Knt'!C79='Seřazení Knt'!C80,'Seřazení Knt'!D79='Seřazení Knt'!D80),Žebříček!C41,Žebříček!C41+1))","v":57},{"$f":"IF('Seřazení Knt'!A80=0,\"\",'Seřazení Knt'!A80)","v":"Mička Ladislav"},{"$f":"IF(F42=\"\",\"\",IF(AND('Seřazení Knt'!B119='Seřazení Knt'!B120,'Seřazení Knt'!C119='Seřazení Knt'!C120,'Seřazení Knt'!D119='Seřazení Knt'!D120),Žebříček!E41,Žebříček!E41+1))","v":84},{"$f":"IF('Seřazení Knt'!A120=0,\"\",'Seřazení Knt'!A120)","v":"Pravda Adam"},{"$f":"IF(H42=\"\",\"\",IF(AND('Seřazení Knt'!B159='Seřazení Knt'!B160,'Seřazení Knt'!C159='Seřazení Knt'!C160,'Seřazení Knt'!D159='Seřazení Knt'!D160),Žebříček!G41,Žebříček!G41+1))","v":""},{"$f":"IF('Seřazení Knt'!A160=0,\"\",'Seřazení Knt'!A160)","v":""}]
[{"$f":"IF(B43=\"\",\"\",IF(AND('Seřazení Knt'!B40='Seřazení Knt'!B41,'Seřazení Knt'!C40='Seřazení Knt'!C41,'Seřazení Knt'!D40='Seřazení Knt'!D41),Žebříček!A42,Žebříček!A42+1))","v":32},{"$f":"IF('Seřazení Knt'!A41=0,\"\",'Seřazení Knt'!A41)","v":"Huvar Jan"},{"$f":"IF(D43=\"\",\"\",IF(AND('Seřazení Knt'!B80='Seřazení Knt'!B81,'Seřazení Knt'!C80='Seřazení Knt'!C81,'Seřazení Knt'!D80='Seřazení Knt'!D81),Žebříček!C42,Žebříček!C42+1))","v":58},{"$f":"IF('Seřazení Knt'!A81=0,\"\",'Seřazení Knt'!A81)","v":"Žárski Adam"},{"$f":"IF(F43=\"\",\"\",IF(AND('Seřazení Knt'!B120='Seřazení Knt'!B121,'Seřazení Knt'!C120='Seřazení Knt'!C121,'Seřazení Knt'!D120='Seřazení Knt'!D121),Žebříček!E42,Žebříček!E42+1))","v":85},{"$f":"IF('Seřazení Knt'!A121=0,\"\",'Seřazení Knt'!A121)","v":"Caletka Petr"},{"$f":"IF(H43=\"\",\"\",IF(AND('Seřazení Knt'!B160='Seřazení Knt'!B161,'Seřazení Knt'!C160='Seřazení Knt'!C161,'Seřazení Knt'!D160='Seřazení Knt'!D161),Žebříček!G42,Žebříček!G42+1))","v":""},{"$f":"IF('Seřazení Knt'!A161=0,\"\",'Seřazení Knt'!A161)","v":""}]